{"text_format":"1","workbook":"xlsx","n_sheets":6,"sheets":["Diagram","Motor","Calc","Calc2","Motor_Mechanic","Kompatibilitätsbericht"],"not_rendered":{"charts":1,"images":9,"macros":1,"external_links":1,"defined_names":42,"comments":0,"pivot_tables":1},"unopened":[],"bounds":{"document_bytes":16777216,"sheet_cells":100000,"rows_first":2000,"rows_last":500,"rows_between":2000,"halvings":0,"cell_chars":16384,"cell_head_chars":4096},"cells_cut":0,"cells_raw":0,"read":"whole","date_system":"1900"}

{"sheet":"Diagram","index":0,"n_rows":21,"n_cols":29,"rows_kept":21,"cut":false,"hidden":false,"merged":[[0,24,1,26],[1,27,6,27],[1,28,6,28],[2,0,2,1],[0,3,1,6],[2,7,2,13],[0,13,1,14],[0,10,1,12],[0,7,1,9],[0,0,1,2]]}
["KOLLMORGEN",null,null,{"$f":"Calc!A2","v":"AKM12E"},null,null,null,{"$f":"IF(Calc!D2,Calc2!A2,\"\")","v":""},null,null,{"$f":"IF(Calc!B2=\"max.\",\"Max motor data\",Calc!B2 )","v":"Servostar 303"},null,null,{"$f":"Calc!C2*1","v":75},null,null,null,null,null,null,null,null,null,null,"Flange Motor 1 (if AKM)",null,null,null,{"$f":"CONCATENATE(MID(AC2,1,4),\"-\",MID(AC2,8,2))","v":"AKM1-AN"}]
[null,null,null,null,null,null,null,null,null,null,null,null,null,null,null,null,null,null,null,null,null,null,null,null,null,null,null,null,{"$f":"Motor_Mechanic!AF6","v":"AKM12E-AN"}]
[]
[]
[]
[]
[null,null,null,null,null,null,null,null,null,null,null,null,null,null,null,null,null,null,null,null,null,null,null,null,null,"Motor","Einheit"]
[]
[null,null,null,null,null,null,null,null,null,null,null,null,null,null,null,null,null,null,null,null,null,null,null,null,null,"Lochkreis","mm",null,{"$f":"SUMIF(Motor_Mechanic!A:A,AC1,Motor_Mechanic!I:I)","v":46}]
[null,null,null,null,null,null,null,null,null,null,null,null,null,null,null,null,null,null,null,null,null,null,null,null,null,"Zentrierung","mm",null,{"$f":"SUMIF(Motor_Mechanic!A:A,AC1,Motor_Mechanic!F:F)","v":30}]
[null,null,null,null,null,null,null,null,null,null,null,null,null,null,null,null,null,null,null,null,null,null,null,null,null,"Welle","mm",null,{"$f":"CONCATENATE(SUMIF(Motor_Mechanic!A:A,AC1,Motor_Mechanic!L:L),\"x\",SUMIF(Motor_Mechanic!A:A,AC1,Motor_Mechanic!O:O))","v":"8x25"}]
[]
[null,null,null,null,null,null,null,null,null,null,null,null,null,null,null,null,null,null,null,null,null,null,null,null,null,"Stillstandsmoment","Nm",null,{"$f":"Calc!G10","v":0.3}]
[null,null,null,null,null,null,null,null,null,null,null,null,null,null,null,null,null,null,null,null,null,null,null,null,null,"Stillstandsstrom","Arms",null,{"$f":"Calc!H10","v":2.72}]
[null,null,null,null,null,null,null,null,null,null,null,null,null,null,null,null,null,null,null,null,null,null,null,null,null,"Max. Drehmoment","Nm",null,{"$f":"Calc!I10","v":1.08}]
[null,null,null,null,null,null,null,null,null,null,null,null,null,null,null,null,null,null,null,null,null,null,null,null,null,"Max. Strom","Arms",null,{"$f":"Calc!D10","v":10.9}]
[null,null,null,null,null,null,null,null,null,null,null,null,null,null,null,null,null,null,null,null,null,null,null,null,null,"Nennmoment","Nm",null,{"$f":"Calc!A142","v":0.3}]
[null,null,null,null,null,null,null,null,null,null,null,null,null,null,null,null,null,null,null,null,null,null,null,null,null,"Nenndrehzahl","rpm",null,{"$f":"Calc!B142","v":3000}]
[null,null,null,null,null,null,null,null,null,null,null,null,null,null,null,null,null,null,null,null,null,null,null,null,null,"Leistung","W",null,{"$f":"(AC17*AC18)/9.55","v":94.240837696335078}]
[null,null,null,null,null,null,null,null,null,null,null,null,null,null,null,null,null,null,null,null,null,null,null,null,null,"Drehmomentkonstante",null,null,{"$f":"AC13/AC14","v":0.11029411764705881}]
[null,null,null,null,null,null,null,null,null,null,null,null,null,null,null,null,null,null,null,null,null,null,null,null,null,"Rotorträgheit","Kgcm²",null,{"$f":"SUMIF(Motor!A:A,Calc!A2,Motor!U:U)","v":3.1E-2}]

{"sheet":"Motor","index":1,"n_rows":1285,"n_cols":27,"rows_kept":1285,"cut":false,"hidden":true,"merged":[[0,5,0,6],[1,5,7,5],[1,6,7,6],[0,21,7,21],[0,13,0,14],[0,20,7,20],[0,15,0,16],[1,16,7,16],[0,17,0,18],[1,18,7,18],[1,17,7,17],[1,14,7,14],[1,11,7,11],[1,12,7,12],[0,11,0,12],[1,15,7,15],[0,0,7,0],[0,1,7,1],[0,3,7,3],[0,2,7,2],[0,4,7,4],[0,22,7,22],[1,13,7,13],[0,26,7,26],[0,24,7,24],[0,19,7,19],[0,23,7,23],[0,9,0,10],[1,9,7,9],[0,7,0,8],[1,7,7,7],[1,8,7,8],[1,10,7,10]]}
["Motortype","Peak Stall Torque\n[Nm]","Peak Current \n[A]","Cont Stall \nTorque [Nm]","Cont. Stall \nCurrent [A]","24VDC",null,"48VDC",null,"75VDC",null,"160VDC",null,"320VDC",null,"560VDC",null,"640VDC",null,"max Speed\n[1/min]","Inertia\n[kgcm2]","R \n[Ohm]","L\n[mH]","Ke\n[mV/rpm]","Poles",null,"Ist ein SFD Feedback \nMöglich?"]
[null,null,null,null,null,"Cont Rate \nTorque [Nm]","Rated Speed\n[1/min]","Cont Rate \nTorque [Nm]","Rated Speed\n[1/min]","Cont Rate \nTorque [Nm]","Rated Speed\n[1/min]","Cont Rate \nTorque [Nm]","Rated Speed\n[1/min]","Cont Rate \nTorque [Nm]","Rated Speed\n[1/min]","Cont Rate \nTorque [Nm]","Rated Speed\n[1/min]","Cont Rate \nTorque [Nm]","Rated Speed\n[1/min]"]
[]
[]
[]
[]
[]
[]
["6SM27M-4000",1.2,3.5,0.32,0.8,null,null,null,null,null,null,null,null,null,null,0.3,4000,null,null,9000,0.08,31,21,25,6,null,"Nein"]
["6SM27LL-4500",3.2,3.7,0.8,0.82,null,null,null,null,null,null,null,null,null,null,0.72,4500,null,null,9000,0.14000000000000001,37,42,59,6,null,"Nein"]
["6SM37S-6000",1.8,4,0.5,1,null,null,null,null,null,null,null,null,null,null,0.4,6000,null,null,9000,0.45,36,32,30,6,null,"Nein"]
["6SM37M-6000",3.6,6.5,1,1.6,null,null,null,null,null,null,null,null,null,null,0.8,6000,null,null,9000,0.7,12.8,21,38,6,null,"Nein"]
["6SM37L-4000",5.4,6.4,1.5,1.6,null,null,null,null,null,null,null,null,null,null,1.2,4000,null,null,9000,1,15.5,30,58,6,null,"Nein"]
["6SM37VL-6000",10.8,15.2,3,3.8,null,null,null,null,null,null,null,null,null,null,2,6000,null,null,9000,1.6,3.65,8,48,6,null,"Nein"]
["6SM47L-3000",10.6,9,3,2.2999999999999998,null,null,null,null,null,null,null,null,null,null,2.2000000000000002,3000,null,null,6000,1.6,11,25,81,6,null,"Nein"]
["6SM57S-3000",16.3,11,4.5999999999999996,2.8,null,null,null,null,null,null,null,null,null,null,3,3000,null,null,6000,3.1,6.3,35,97,6,null,"Nein"]
["6SM57M-3000",28.5,17,8,4.3,null,null,null,null,null,null,null,null,null,null,6,3000,null,null,6000,4.5,3.9,24,112,6,null,"Nein"]
["6SM77K-3000",39.6,24,11,6,null,null,null,null,null,null,null,null,null,null,8.5,3000,null,null,6000,12,2.2000000000000002,18,112,6,null,"Nein"]
["6SM77S-3000",61.2,40,17,10,null,null,null,null,null,null,null,null,null,null,12,3000,null,null,6000,18,1.1000000000000001,8.3000000000000007,103,6,null,"Nein"]
["6SM107K-3000",100.2,70,26,16,null,null,null,null,null,null,null,null,null,null,20,3000,null,null,6000,82,0.45,4.4000000000000004,97,6,null,"Nein"]
["6SM107S-3000",120.7,85,32,20,null,null,null,null,null,null,null,null,null,null,23,3000,null,null,6000,104,0.37,3.6,97,6,null,"Nein"]
["6SM45S-3000",2.8,4.7,0.85,1.3,null,null,null,null,null,null,null,null,null,null,0.8,3000,null,null,8000,1.5,25.4,54,41.012193308819754,6,null,"Nein"]
["6SM45M-3000",6.5,5.6,1.7,1.3,null,null,null,null,null,null,null,null,null,null,1.6,3000,null,null,8000,2.1,34,99,82.024386617639507,6,null,"Nein"]
["6SM45L-3000",11.5,9.6,3.2,2.4,null,null,null,null,null,null,null,null,null,null,2.9,3000,null,null,8000,3.4,11.9,47,82.024386617639507,6,null,"Nein"]
["6SM56S-3000",14.8,12.4,3.8,2.8,null,null,null,null,null,null,null,null,null,null,3.6,3000,null,null,8000,5.2,9.4,54,80.610173055266415,6,null,"Nein"]
["6SM56M-3000",25.6,19.600000000000001,7,4.8,null,null,null,null,null,null,null,null,null,null,6.4,3000,null,null,8000,10,4,30,87.681240867131891,6,null,"Nein"]
["6SM56L-3000",34,28.3,10,7.6,null,null,null,null,null,null,null,null,null,null,8.4,3000,null,null,8000,15,1.8,15.8,79.903066274079862,6,null,"Nein"]
["6SM71K-3000",37.799999999999997,32,10.5,8,null,null,null,null,null,null,null,null,null,null,9.5,3000,null,null,6000,20,1.65,19.600000000000001,79.195959492893323,6,null,"Nein"]
["6SM71S-3000",54.4,44,16.5,12.3,null,null,null,null,null,null,null,null,null,null,13.4,3000,null,null,6000,31,0.8,12,81.317279836452954,6,null,"Nein"]
["6SM71M-3000",67.400000000000006,51,22,15.6,null,null,null,null,null,null,null,null,null,null,16.3,3000,null,null,6000,42,0.56999999999999995,9,85.559920523572245,6,null,"Nein"]
["6SM100K-3000",87,72,25,18.8,null,null,null,null,null,null,null,null,null,null,19.899999999999999,3000,null,null,6000,74,0.46,10.5,80.610173055266415,6,null,"Nein"]
["6SM100S-3000",135.4,113,36,26.7,null,null,null,null,null,null,null,null,null,null,24.6,3000,null,null,6000,108,0.22,7,82.024386617639507,6,null,"Nein"]
["6SM100M-3000",174.6,150,46,35,null,null,null,null,null,null,null,null,null,null,27.1,3000,null,null,6000,141,0.16,5,79.903066274079862,6,null,"Nein"]
["6SM100L-3000",216.4,180,57,42,null,null,null,null,null,null,null,null,null,null,28,3000,null,null,6000,175,0.12,4,81.317279836452954,6,null,"Nein"]
["AKM11B",0.61,4.5999999999999996,0.18,1.1599999999999999,null,null,null,null,null,null,0.18,4000,0.17,8000,null,null,null,null,8000,1.6999999999999998E-2,20.2,12.5,10.199999999999999,6,null,"Ja"]
["AKM11C",0.61,5.8,0.19,1.45,null,null,null,null,null,null,0.18,6000,null,null,null,null,null,null,8000,1.6999999999999998E-2,13.1,8.3000000000000007,8.3000000000000007,6,null,"Ja"]
["AKM11E",0.61,11.6,0.19,2.91,null,null,null,null,0.18,6000,null,null,null,null,null,null,null,null,8000,1.6999999999999998E-2,3.3,2.04,4.0999999999999996,6,null,"Ja"]
["AKM11F",0.59,15.5,0.18,3.87,0.18,1000,0.17,5000,0.16,8000,null,null,null,null,null,null,null,null,8000,1.6999999999999998E-2,1.8,1.04,2.94,6,null,"Ja"]
["AKM12C",1.08,6,0.31,1.5,null,null,null,null,null,null,0.3,4000,0.28000000000000003,8000,null,null,null,null,8000,3.1E-2,12.4,9.1,13.3,6,null,"Ja"]
["AKM12E",1.08,10.9,0.3,2.72,null,null,0.3,1500,0.3,3000,0.27,8000,null,null,null,null,null,null,8000,3.1E-2,3.9,2.7,7.2,6,null,"Ja"]
["AKM13C",1.1599999999999999,5.9,0.41,1.48,null,null,null,null,null,null,null,null,0.36,8000,null,null,null,null,8000,4.4999999999999998E-2,13.5,10.3,17.899999999999999,6,null,"Ja"]
["AKM13D",1.44,9.6,0.4,2.4,null,null,null,null,0.4,2000,0.36,7000,null,null,null,null,null,null,8000,4.4999999999999998E-2,5.21,3.8,10.9,6,null,"Ja"]
["AKM21C",1.47,6.3,0.45,1.5,null,null,null,null,null,null,0.45,2500,0.39,8000,null,null,null,null,8000,0.107,13,19,19.5,6,null,"Ja"]
["AKM21E",1.49,12.4,0.48,3,null,null,null,null,0.48,2000,0.41,7000,null,null,null,null,null,null,8000,0.107,3.42,5.2,10.199999999999999,6,null,"Ja"]
["AKM21G",1.51,19.5,0.5,4.87,null,null,null,null,0.46,4000,null,null,null,null,null,null,null,null,8000,0.107,1.44,2.1800000000000002,6.6,6,null,"Ja"]
["AKM21J",1.38,28.5,0.43,7.13,0.42,1200,0.39,4500,0.35,8000,null,null,null,null,null,null,null,null,8000,0.11,0.68,0.8,3.9,6,null,"Ja"]
["AKM22C",2.73,5.6,0.84,1.39,null,null,null,null,null,null,0.83,1000,0.78,3500,0.68,8000,0.68,8000,8000,0.161,19.399999999999999,35.5,39,6,null,"Ja"]
["AKM22E",2.76,11,0.87,2.73,null,null,null,null,0.85,1000,0.81,3500,0.7,8000,null,null,null,null,8000,0.161,5.09,9.6999999999999993,22.4,6,null,"Ja"]
["AKM22G",2.79,19.3,0.88,4.82,null,null,null,null,0.84,2500,0.74,7000,null,null,null,null,null,null,8000,0.161,1.69,3.19,11.7,6,null,"Ja"]
["AKM22H",2.8,21.6,0.88,5.41,null,null,0.85,1500,0.82,3000,0.7,8000,null,null,null,null,null,null,8000,0.16,1.4,2.57,10.51,6,null,"Ja"]
["AKM23C",3.77,5.6,1.1299999999999999,1.41,null,null,null,null,null,null,1.1100000000000001,1000,1.08,2500,0.99,5500,0.95,7000,8000,0.21600000000000003,20.3,40.700000000000003,51.8,6,null,"Ja"]
["AKM23D",3.84,8.8000000000000007,1.1599999999999999,2.19,null,null,null,null,null,null,1.1200000000000001,1500,1.03,5000,0.92,8000,0.92,8000,8000,0.21600000000000003,8.36,17.3,33.799999999999997,6,null,"Ja"]
["AKM23E",3.88,11.3,1.1599999999999999,2.78,null,null,null,null,null,null,1.1000000000000001,2500,0.98,6500,null,null,null,null,8000,0.22,5.44,11.1,27,6,null,"Ja"]
["AKM23F",3.88,17.2,1.18,4.3099999999999996,null,null,null,null,1.1499999999999999,1500,1.07,4500,0.94,8000,null,null,null,null,8000,0.21600000000000003,2.23,4.68,17.600000000000001,6,null,"Ja"]
["AKM24C",4.67,5.7,1.38,1.42,null,null,null,null,null,null,null,null,1.32,2000,1.25,4500,1.22,5500,8000,0.27,20.399999999999999,43.8,62.4,6,null,"Ja"]
["AKM24D",4.76,8.8000000000000007,1.41,2.21,null,null,null,null,null,null,1.36,1500,1.29,4000,1.1100000000000001,8000,1.1100000000000001,8000,8000,0.27,8.4,18.7,40.799999999999997,6,null,"Ja"]
["AKM24E",4.76,9.5,1.4,2.79,null,null,null,null,null,null,1.34,2000,1.24,5500,null,null,null,null,8000,0.27,5.44,11.8,32.4,6,null,"Ja"]
["AKM24F",4.82,15.6,1.42,3.89,null,null,null,null,1.39,1000,1.33,3000,1.1200000000000001,8000,null,null,null,null,8000,0.27,2.77,6.16,23.4,6,null,"Ja"]
["AKM31C",3.88,5.5,1.1499999999999999,1.37,null,null,null,null,null,null,null,null,1.1200000000000001,2500,1,5000,0.91,6000,8000,0.33,21.4,37.5,54.5,8,null,"Ja"]
["AKM31E",4,12,1.2,2.99,null,null,null,null,1.19,750,1.17,2500,0.95,6000,null,null,null,null,8000,0.33,4.58,8.6,26.1,8,null,"Ja"]
["AKM31H",4.0599999999999996,23.4,1.23,5.85,null,null,null,null,1.2,2000,0.97,6000,null,null,null,null,null,null,8000,0.33,1.25,2.4,13.7,8,null,"Ja"]
["AKM31K",4.12,36.4,1.25,9.1,null,null,1.23,2000,1.19,3500,0.76,8000,null,null,null,null,null,null,8000,0.33,0.57999999999999996,1.02,8.98,8,null,"Ja"]
["AKM32C",6.92,5.8,2,1.44,null,null,null,null,null,null,null,null,1.95,1500,1.86,3000,1.83,3500,8000,0.59,23,46.5,89.8,8,null,"Ja"]
["AKM32D",7.1,8.9,2.04,2.23,null,null,null,null,null,null,2,1000,1.93,2500,1.65,5500,1.58,6000,8000,0.59,9.57,20.100000000000001,59,8,null,"Ja"]
["AKM32E",7.11,11.3,2.04,2.82,null,null,null,null,null,null,null,null,1.87,3500,1.41,7000,1.22,8000,8000,0.59,6.3,12.8,47.1,8,null,"Ja"]
["AKM32H",7.26,22,2.1,5.5,null,null,null,null,2.06,1200,1.96,3000,1.45,7000,null,null,null,null,8000,0.59,1.64,3.55,24.8,8,null,"Ja"]
["AKM33C",9.76,5.9,2.71,1.47,null,null,null,null,null,null,null,null,2.64,1000,2.54,2000,2.5,2500,8000,0.85,25.4,53.6,120,8,null,"Ja"]
["AKM33E",9.9600000000000009,10.3,2.79,2.58,null,null,null,null,null,null,null,null,2.62,2000,2.34,4500,2.27,5000,8000,0.85,8.36,18.5,70.599999999999994,8,null,"Ja"]
["AKM33H",10.220000000000001,22.5,2.88,5.62,null,null,null,null,2.82,800,2.66,2500,2.27,5500,null,null,null,null,8000,0.85,1.82,4.0999999999999996,33.4,8,null,"Ja"]
["AKM41C",6.12,5.8,1.95,1.46,null,null,null,null,null,null,null,null,1.88,1200,1.77,3000,1.74,3500,6000,0.81,21.7,66.099999999999994,86.3,10,null,"Ja"]
["AKM41E",6.28,11.4,2.02,2.85,null,null,null,null,null,null,1.94,1200,1.82,3000,1.58,6000,1.58,6000,6000,0.81,5.7,18.399999999999999,45.6,10,null,"Ja"]
["AKM41H",6.36,22.4,2.06,5.6,null,null,null,null,1.99,1000,1.86,3000,1.62,6000,null,null,null,null,6000,0.81,1.51,5,23.7,10,null,"Ja"]
["AKM42C",11.3,5.6,3.35,1.4,null,null,null,null,null,null,null,null,null,null,3.1,1500,3.02,2000,6000,1.45,27.52,97.4,154,10,null,"Ja"]
["AKM42E",11.3,11,3.42,2.74,null,null,null,null,null,null,null,null,3.12,1800,2.81,3500,2.72,4000,6000,1.45,7.22,26.8,80.900000000000006,10,null,"Ja"]
["AKM42G",11.5,19.2,3.53,4.8,null,null,null,null,null,null,null,null,2.9,3500,2.35,6000,2.35,6000,6000,1.45,2.38,9.1999999999999993,47.5,10,null,"Ja"]
["AKM42H",11.5,24,3.54,6,null,null,null,null,null,null,3.2,2000,2.72,4500,null,null,null,null,6000,1.5,1.65,6,38.299999999999997,10,null,"Ja"]
["AKM42J",11.6,33.6,3.56,8.4,null,null,null,null,null,null,3.03,3000,2.38,6000,null,null,null,null,6000,1.45,0.8,3.1,27.5,10,null,"Ja"]
["AKM43E",15.9,11,4.7,2.76,null,null,null,null,null,null,null,null,4.24,1500,3.92,2500,3.76,3000,6000,2.09,8.0399999999999991,32.6,111,10,null,"Ja"]
["AKM43G",16.100000000000001,19.5,4.8,4.87,null,null,null,null,null,null,null,null,4,2500,3.01,5000,2.57,6000,6000,2.09,2.61,10.8,63.9,10,null,"Ja"]
["AKM43H",16.100000000000001,22,4.82,5.4,null,null,null,null,null,null,null,null,3.86,3000,2.58,6000,null,null,6000,2.1,2.1,6.8,57.4,10,null,"Ja"]
["AKM43K",16.399999999999999,38.4,4.9000000000000004,9.6,null,null,null,null,null,null,4.08,2500,2.62,6000,null,null,null,null,6000,2.09,0.7,2.9,33.200000000000003,10,null,"Ja"]
["AKM43L",16.399999999999999,47.3,4.7300000000000004,11.2,null,null,null,null,null,null,3.78,3000,2.5299999999999998,6000,null,null,null,null,6000,2.1,0.56999999999999995,2,27.5,10,null,"Ja"]
["AKM44E",19.899999999999999,11.4,5.76,2.85,null,null,null,null,null,null,null,null,5.2,1200,4.8,2000,4.5599999999999996,2500,6000,2.73,8.08,33.9,132,10,null,"Ja"]
["AKM44G",20.3,20,5.88,5,null,null,null,null,null,null,null,null,4.9000000000000004,2000,3.76,4000,3.19,5000,6000,2.73,2.65,11.5,76.599999999999994,10,null,"Ja"]
["AKM44H",20.3,23.5,5.89,5.6,null,null,null,null,null,null,null,null,4.66,2500,3.19,5000,2.7,6000,6000,2.7,2.23,9.1,68,10,null,"Ja"]
["AKM44J",20.399999999999999,35.200000000000003,6,8.8000000000000007,null,null,null,null,null,null,5,2000,3.84,4000,2.75,6000,2.75,6000,6000,2.73,0.88,3.8,44.2,10,null,"Ja"]
["AKM44K",20.399999999999999,42.7,5.88,10.1,null,null,null,null,null,null,4.9000000000000004,2000,3.18,5000,null,null,null,null,6000,2.7,0.68,2.8,37.799999999999997,10,null,"Ja"]
["AKM51E",11.6,8.1999999999999993,4.7,2.75,null,null,null,null,null,null,null,null,4.41,1200,3.98,2500,3.8,3000,6000,3.42,8.4700000000000006,36.6,110,10,null,"Ja"]
["AKM51G",11.7,14.5,4.75,4.84,null,null,null,null,null,null,null,null,4.03,2500,2.62,5000,1.94,6000,6000,3.42,2.75,12.1,63.6,10,null,"Ja"]
["AKM51H",11.7,18,4.79,6,null,null,null,null,null,null,null,null,3.87,3000,1.95,6000,1.95,6000,6000,3.4,1.97,7.9,51.3,10,null,"Ja"]
["AKM51I",11.8,22.5,4.83,7.5,null,null,null,null,null,null,4.3499999999999996,1750,3.35,4000,1.97,6000,1.97,6000,6000,3.4,1.3,5.15,41.4,10,null,"Ja"]
["AKM51K",11.9,28.2,4.9000000000000004,9.4,null,null,null,null,null,null,4.1500000000000004,2500,2.35,5500,null,null,null,null,6000,3.42,0.75,3.4,33.5,10,null,"Ja"]
["AKM51L",11.9,35,4.8899999999999997,11.9,null,null,null,null,null,null,3.95,3000,2,6000,null,null,null,null,6000,3.4,0.56000000000000005,2.1,26.6,10,null,"Ja"]
["AKM52E",21.3,9,8.34,2.99,null,null,null,null,null,null,null,null,null,null,7.61,1500,7.28,2000,6000,6.22,8.59,44.7,179,10,null,"Ja"]
["AKM52G",21.5,14.2,8.43,4.72,null,null,null,null,null,null,null,null,7.69,1500,7.06,2500,6.66,3000,6000,6.22,3.47,18.5,115,10,null,"Ja"]
["AKM52H",21.6,17.7,8.48,5.9,null,null,null,null,null,null,null,null,7.53,1800,6.26,3500,5.77,4000,6000,6.2,2.35,11.9,92.7,10,null,"Ja"]
["AKM52I",21.6,22.2,8.5299999999999994,7.4,null,null,null,null,null,null,null,null,5.79,2250,5.16,4500,4.51,5000,6000,6.2,1.57,7.8,74.900000000000006,10,null,"Ja"]
["AKM52K",21.9,27.9,8.6,9.3000000000000007,null,null,null,null,null,null,null,null,6.8,3000,3.9,5500,3.25,6000,6000,6.22,0.93,5,60.1,10,null,"Ja"]
["AKM52L",21.9,35.700000000000003,8.67,11.6,null,null,null,null,null,null,null,null,6.4,3500,3.27,6000,3.27,6000,6000,6.2,0.61,3.24,48.3,10,null,"Ja"]
["AKM52M",21.9,39.4,8.6,13.1,null,null,null,null,null,null,null,null,5.2,4500,null,null,null,null,6000,6.22,0.48,2.5,42.4,10,null,"Ja"]
["AKM53G",29.7,14.3,11.4,4.7699999999999996,null,null,null,null,null,null,null,null,10.7,1000,9.85,2000,9.5,2400,6000,9.1199999999999992,3.75,21.3,154,10,null,"Ja"]
["AKM53H",30,19.8,11.51,6.6,null,null,null,null,null,null,null,null,null,null,8.83,3000,8.23,3500,6000,9.1,2.1,11.4,112.4,10,null,"Ja"]
["AKM53I",30,22.2,11.58,7.4,null,null,null,null,null,null,null,null,10.28,1750,8.58,3250,7.63,4000,6000,9.1,1.66,9.11,100.6,10,null,"Ja"]
["AKM53K",30.3,28.2,11.6,9.4,null,null,null,null,null,null,null,null,10.1,2000,7.65,4000,6.85,4500,6000,9.1199999999999992,1,5.7,79.8,10,null,"Ja"]
["AKM53L",30.3,37.6,11.6,11.8,null,null,null,null,null,null,null,null,8.9,3000,5.0599999999999996,5500,4.05,6000,6000,9.1,0.69,3.64,63.6,10,null,"Ja"]
["AKM53M",29.7,40.200000000000003,11.4,13.4,null,null,null,null,null,null,null,null,8.7200000000000006,3000,null,null,null,null,6000,9.1199999999999992,0.51,2.7,54.7,10,null,"Ja"]
["AKM53P",29.8,57.4,11.4,19.100000000000001,null,null,null,null,null,null,null,null,5.88,5000,null,null,null,null,6000,9.1199999999999992,0.27,1.3,38.4,10,null,"Ja"]
["AKM53Q",29.8,63.3,11.57,21.1,null,null,null,null,null,null,9.58,2500,4.99,5500,null,null,null,null,6000,9.1,0.25,1.1299999999999999,35.5,10,null,"Ja"]
["AKM54G",38,15,14.3,4.9800000000000004,null,null,null,null,null,null,null,null,null,null,12.9,1500,12.3,2000,6000,11.9,3.8,22.9,185,10,null,"Ja"]
["AKM54H",37.5,16.5,14.19,5.5,null,null,null,null,null,null,null,null,13.35,1000,12.6,1800,12.22,2000,6000,12,3.2,18.3,165.6,10,null,"Ja"]
["AKM54I",38,23.1,14.42,7.7,null,null,null,null,null,null,null,null,13.07,1500,11.71,2500,10.81,3000,6000,12,1.66,9.84,120.3,10,null,"Ja"]
["AKM54K",38.4,29.2,14.4,9.6999999999999993,null,null,null,null,null,null,null,null,12.7,1800,10.1,3500,9.25,4000,8000,11.9,1.02,6.2,96.6,10,null,"Ja"]
["AKM54L",37.5,37.5,14.1,12.5,null,null,null,null,null,null,null,null,11.5,2500,8.1300000000000008,4500,null,null,6000,11.9,0.63,3.5,72.900000000000006,10,null,"Ja"]
["AKM54N",37.6,53.4,14.1,17.8,null,null,null,null,null,null,null,null,9.85,3500,null,null,null,null,8000,11.9,0.33,1.8,51.3,10,null,"Ja"]
["AKM54P",38,58.8,14.36,19.600000000000001,null,null,null,null,null,null,null,null,9.23,4000,null,null,null,null,6000,12,0.3,1.5,47.3,10,null,"Ja"]
["AKM62G",29.7,14.7,11.9,4.8499999999999996,null,null,null,null,null,null,null,null,null,null,10.7,1800,10.199999999999999,2000,6000,16.899999999999999,3.94,31.7,159,10,null,"Ja"]
["AKM62H",29.7,16.399999999999999,11.9,5.4,null,null,null,null,null,null,null,null,11.2,1000,10.199999999999999,2000,9.9,2400,6000,17,3.3,25.4,142.1,10,null,"Ja"]
["AKM62I",29.9,22.8,12.1,7.6,null,null,null,null,null,null,null,null,10.8,1500,9.4,3000,8.9,3500,6000,17,1.75,13.4,103.2,10,null,"Ja"]
["AKM62K",30.2,28.8,12.2,9.6,null,null,null,null,null,null,null,null,10.4,2000,9.01,3500,8.02,4500,6000,16.899999999999999,1.05,8.5,82.1,10,null,"Ja"]
["AKM62L",30.2,36,12.2,12,null,null,null,null,null,null,null,null,10,2500,7.42,5000,5.74,6000,6000,17,0.74,5.4,65.5,10,null,"Ja"]
["AKM62M",30.2,40.299999999999997,12.2,13.4,null,null,null,null,null,null,null,null,9.5,3000,5.74,6000,5.74,6000,6000,16.899999999999999,0.55000000000000004,4.4000000000000004,58.8,10,null,"Ja"]
["AKM62P",30.3,56.4,12.3,18.8,null,null,null,null,null,null,null,null,8.1,4500,null,null,null,null,6000,16.899999999999999,0.3,2.2000000000000002,42.2,10,null,"Ja"]
["AKM62Q",30.3,67,12,21.8,null,null,null,null,null,null,null,null,6.5,5500,null,null,null,null,6000,17,0.27,1.6,35.5,10,null,"Ja"]
["AKM63G",42.1,13.5,16.5,4.4800000000000004,null,null,null,null,null,null,null,null,null,null,15.3,1200,14.6,1500,6000,24.2,5.16,43.5,238,10,null,"Ja"]
["AKM63H",42.2,17.5,16.600000000000001,5.6,null,null,null,null,null,null,null,null,null,null,14.6,1500,14.2,1800,6000,24,3.43,28.1,191.5,10,null,"Ja"]
["AKM63I",42.2,24.2,16.8,7.9,null,null,null,null,null,null,null,null,15.3,1200,14.1,2000,13.5,2500,6000,24,1.5,14.6,138.19999999999999,10,null,"Ja"]
["AKM63K",42.6,29.7,16.8,9.9,null,null,null,null,null,null,null,null,14.9,1500,12.9,3000,12,3500,6000,24.2,1.0900000000000001,9.3000000000000007,110,10,null,"Ja"]
["AKM63L",42.6,34.299999999999997,16.8,11.1,null,null,null,null,null,null,null,null,14.4,1800,12.9,3000,12,3500,6000,24,0.94,7.4,98.2,10,null,"Ja"]
["AKM63M",43,41.4,17,13.8,null,null,null,null,null,null,null,null,14.3,2000,11.3,4000,10.5,4500,6000,24.2,0.57999999999999996,4.9000000000000004,79.900000000000006,10,null,"Ja"]
["AKM63N",43,52.2,17,17.399999999999999,null,null,null,null,null,null,null,null,13,3000,9.6,5000,7,6000,6000,24.2,0.38,3.1,63.3,10,null,"Ja"]
["AKM63Q",43,70.3,16.7,22.4,null,null,null,null,null,null,null,null,11.9,3500,null,null,null,null,6000,24,0.23,1.8,48.3,10,null,"Ja"]
["AKM64K",53.5,27.6,20.8,9.1999999999999993,null,null,null,null,null,null,null,null,19.2,1200,17.2,2000,16.3,2500,6000,31.6,1.34,11.8,147,10,null,"Ja"]
["AKM64L",54.1,38.4,21,12.8,null,null,null,null,null,null,null,null,18.399999999999999,1500,15.6,3000,14.4,3500,6000,31.6,0.71,6.2,107,10,null,"Ja"]
["AKM64P",52.9,55.9,20.399999999999999,18.600000000000001,null,null,null,null,null,null,null,null,16,2500,11.9,4500,9.02,5500,6000,31.6,0.36,2.8,71,10,null,"Ja"]
["AKM64Q",53.2,62.1,20,20.7,null,null,null,null,null,null,null,null,15.3,3000,10.7,5000,7.4,6000,6000,32,0.32,2.2999999999999998,64.400000000000006,10,null,"Ja"]
["AKM65K",64.5,29.4,24.8,9.8000000000000007,null,null,null,null,null,null,null,null,22.8,1000,20.2,2000,19.7,2200,6000,40,1.27,11.4,164,10,null,"Ja"]
["AKM65M",65.2,40.799999999999997,25,13.6,null,null,null,null,null,null,null,null,21.9,1500,19.2,2500,18.100000000000001,3000,6000,40,0.68,6.1,119,10,null,"Ja"]
["AKM65N",63.7,53.4,24.3,17.8,null,null,null,null,null,null,null,null,19.8,2000,16,3500,14.7,4000,6000,40,0.42,3.4,88.8,10,null,"Ja"]
["AKM65L",63.7,38,25,12.2,null,null,null,null,null,null,null,null,22.4,1300,19.2,2500,18.3,2800,6000,40,0.9,7.6,133.19999999999999,10,null,"Ja"]
["AKM65P",64.099999999999994,59.3,24.5,19.8,null,null,null,null,null,null,null,null,19.100000000000001,2400,14.9,4000,11.6,5000,6000,40,0.37,2.8,80.5,10,null,"Ja"]
["AKM72K",79.400000000000006,27.9,29.7,9.3000000000000007,null,null,null,null,null,null,null,null,null,null,25.1,1500,24,1800,6000,64.5,1.22,20.7,208,10,null,"Ja"]
["AKM72L",79.400000000000006,37.1,30,11.5,null,null,null,null,null,null,null,null,null,null,24.3,1800,23.6,2000,6000,65,0.92,13.6,168.5,10,null,"Ja"]
["AKM72M",79.8,39,30,13,null,null,null,null,null,null,null,null,null,null,23.6,2000,22.1,2500,6000,64.5,0.64,10.8,150,10,null,"Ja"]
["AKM72P",78.5,56.1,29.4,18.7,null,null,null,null,null,null,null,null,23.8,1800,20.100000000000001,3000,18.2,3500,6000,64.5,0.33,5,102,10,null,"Ja"]
["AKM72Q",78.400000000000006,70.5,29.5,23.5,null,null,null,null,null,null,null,null,23.2,2000,16.3,4000,14.1,4500,6000,65,0.26,3.2,81.2,10,null,"Ja"]
["AKM73L",112,39.4,42,12.1,null,null,null,null,null,null,null,null,null,null,34.4,1400,33.799999999999997,1500,6000,92,0.95,15.7,224.7,10,null,"Ja"]
["AKM73M",112,40.799999999999997,42,13.6,null,null,null,null,null,null,null,null,null,null,33.799999999999997,1500,32.1,1800,6000,92.1,0.68,12.4,200,10,null,"Ja"]
["AKM73P",111,58.6,41.6,19.5,null,null,null,null,null,null,null,null,34.700000000000003,1300,28.5,2400,26.3,2800,6000,92.1,0.35,5.9,137,10,null,"Ja"]
["AKM73Q",111,73.5,41.5,24.5,null,null,null,null,null,null,null,null,33.4,1500,25.2,3000,22,3500,6000,92,0.27,3.7,109.2,10,null,"Ja"]
["AKM74L",143,38.700000000000003,53,12.9,null,null,null,null,null,null,null,null,null,null,45.5,1200,41.5,1400,6000,120,0.85,16.399999999999999,266,10,null,"Ja"]
["AKM74P",142,55.5,52.5,18.5,null,null,null,null,null,null,null,null,null,null,37.6,1800,35.9,2000,6000,120,0.43,7.7,183,10,null,"Ja"]
["AKM74Q",141,78.3,52.2,26.1,null,null,null,null,null,null,null,null,41.9,1300,31.5,2500,27.3,3000,6000,120,0.26,3.8,129,10,null,"Ja"]
["AKM82T",210,144,75,48,null,null,null,null,null,null,null,null,null,null,47.5,2500,38,3000,4000,172,9.1999999999999998E-2,2.73,108.4,10,null,"Ja"]
["AKM83T",456,186,130,62,null,null,null,null,null,null,null,null,null,null,70,2200,60,2500,4000,334,6.0999999999999999E-2,2.36,140.1,10,null,"Ja"]
["AKM84T",668,201,180,67,null,null,null,null,null,null,null,null,null,null,105,2000,93,2000,4000,495,5.8000000000000003E-2,2.5,177.4,10,null,"Ja"]
["DBK4N00100",4,5,1,1.1000000000000001,null,null,null,null,null,null,null,null,null,null,0.9,3000,0.88,3600,9000,0.79,38,70,56,6,null,"Nein"]
["DBK4H00100",4,8.6999999999999993,1,1.9,null,null,null,null,null,null,null,null,0.9,3000,null,null,null,null,9000,0.79,13,24,32,6,null,"Nein"]
["DBK4N00160",6.3,4.9000000000000004,1.6,1.1000000000000001,null,null,null,null,null,null,null,null,null,null,1.4,3000,1.35,3600,9000,1.28,25,68,90,6,null,"Nein"]
["DBK4H00160",5.5,7.1,1.6,1.9,null,null,null,null,null,null,null,null,1.4,3000,null,null,null,null,9000,1.28,7.6,18,51,6,null,"Nein"]
["DBK5N00210",8.5,7,2.1,1.5,null,null,null,null,null,null,null,null,null,null,1.9,3000,1.8,3600,9000,4.13,22,60,83,6,null,"Nein"]
["DBK5H00210",7,14.6,2.1,4,null,null,null,null,null,null,null,null,1.9,3000,null,null,null,null,9000,4.13,3.1,10,32,6,null,"Nein"]
["DBK5N00430",16.899999999999999,13,4.3,2.9,null,null,null,null,null,null,null,null,null,null,3.9,3000,3.8,3600,9000,5.78,7.1,32,90,6,null,"Nein"]
["DBK5H00430",16.899999999999999,22.5,4.3,5,null,null,null,null,null,null,null,null,3.9,3000,null,null,null,null,9000,5.78,2.2000000000000002,10,53,6,null,"Nein"]
["DBK6N00350",14.1,13,3.5,2.8,null,null,null,null,null,null,null,null,null,null,3,3000,2.9,3600,9000,8,12,56,77,6,null,"Nein"]
["DBK6N00700",28,23,7,5,null,null,null,null,null,null,null,null,null,null,6,3000,5.7,3600,9000,11.35,4.4000000000000004,34,84,6,null,"Nein"]
["DBK7N00650",26.3,21,6.5,4.5,null,null,null,null,null,null,null,null,null,null,5,3000,4.7,3600,9000,32.36,4.1500000000000004,22,87,6,null,"Nein"]
["DBK7N01200",48,34.5,12,7.5,null,null,null,null,null,null,null,null,null,null,10,3000,9.6,3600,9000,53.11,1.65,11.5,98,6,null,"Nein"]
["DBK7N01950",78.8,55,19.5,11.8,null,null,null,null,null,null,null,null,null,null,15,3000,14,3600,9000,69.16,0.9,7,100,6,null,"Nein"]
["DBL1X00010",0.4,2.8,0.1,0.6,null,null,null,null,null,null,null,null,0.09,6000,null,null,null,null,12000,0.06,38.200000000000003,6.5,10,6,null,"Nein"]
["DBL1X00020",0.8,4.3,0.2,0.93,null,null,null,null,null,null,null,null,0.18,6000,null,null,null,null,12000,0.12,22,4.7,13,6,null,"Nein"]
["DBL2H00040",1.6,4.3,0.4,0.93,null,null,null,null,null,null,null,null,0.36,4500,0.34,6000,null,null,12000,0.08,26.5,20,26,6,null,"Nein"]
["DBL2H00060",2.4,6.8,0.6,1.5,null,null,null,null,null,null,null,null,0.55000000000000004,4500,0.52,6000,null,null,12000,0.11,14.8,13.2,25,6,null,"Nein"]
["DBL2M00080",3.2,3.8,0.8,0.83,null,null,null,null,null,null,null,null,null,null,0.72,4500,null,null,12000,0.13,47.7,43,58,6,null,"Nein"]
["DBL2H00080",3.2,6.8,0.8,1.49,null,null,null,null,null,null,null,null,0.72,4500,0.69,6000,null,null,12000,0.13,14.7,13,33,6,null,"Nein"]
["DBL3N00065",2.5,3,0.65,0.67,null,null,null,null,null,null,null,null,null,null,0.6,3000,0.57999999999999996,3600,9000,0.5,79,82.8,59,6,null,"Nein"]
["DBL3H00065",2.6,5,0.65,1.08,null,null,null,null,null,null,null,null,0.6,3000,0.48,6000,null,null,9000,0.5,30.3,31,36.5,6,null,"Nein"]
["DBL3N00130",5.0999999999999996,4.5,1.3,1,null,null,null,null,null,null,null,null,null,null,1.2,3000,1.1499999999999999,3600,9000,0.8,35.5,61,77.5,6,null,"Nein"]
["DBL3H00130",4.9000000000000004,7.5,1.3,1.75,null,null,null,null,null,null,null,null,1.2,3000,1.1000000000000001,6000,null,null,9000,0.8,13,22,45,6,null,"Nein"]
["DBL3M00190",7.6,6.9,1.9,1.5,null,null,null,null,null,null,null,null,null,null,1.6,3000,1.54,3600,9000,1,21.3,40,77,6,null,"Nein"]
["DBL3H00250",10.1,13.9,2.5,3,null,null,null,null,null,null,null,null,2.2000000000000002,3000,1.8,6000,null,null,9000,1.4,5.0999999999999996,11,50,6,null,"Nein"]
["DBL3N00300",11.9,9.5,3,2.1,null,null,null,null,null,null,null,null,null,null,2.6,3000,2.5,3600,9000,1.7,11.5,25,88,6,null,"Nein"]
["DBL4N00260",10.3,8.6,2.6,1.9,null,null,null,null,null,null,null,null,null,null,2.2999999999999998,3000,2.2000000000000002,3600,9000,2.1,9.5,40,82,6,null,"Nein"]
["DBL4H00260",10,13,2.6,3,null,null,null,null,null,null,null,null,2.2999999999999998,3000,null,null,null,null,9000,2.1,3.8,15,52,6,null,"Nein"]
["DBL4N00530",21.5,15,5.3,3.2,null,null,null,null,null,null,null,null,null,null,4.5999999999999996,3000,4.4000000000000004,3600,9000,2.8,6.14,30,100,6,null,"Nein"]
["DBL4H00530",21.3,30,5.3,6.5,null,null,null,null,null,null,null,null,4.5999999999999996,3000,null,null,null,null,9000,2.8,1.65,9.3000000000000007,49,6,null,"Nein"]
["DBL4N00750",30.2,19,7.5,4.0999999999999996,null,null,null,null,null,null,null,null,null,null,6.5,3000,6.25,3600,9000,4.3,3.8,22.6,112,6,null,"Nein"]
["DBL4H00750",29.9,42.6,7.5,9.3000000000000007,null,null,null,null,null,null,null,null,6.4,3000,null,null,null,null,9000,4.3,0.86,5.3,49,6,null,"Nein"]
["DBL4N00950",37.5,27.5,9.5,6.1,null,null,null,null,null,null,null,null,null,null,8,3000,7.8,3600,9000,6.5,1.61,10,94,6,null,"Nein"]
["DBL5N01050",42.1,30,10.5,6.5,null,null,null,null,null,null,null,null,null,null,8.5,3000,8,3600,9000,8.1,2.25,19.8,97,6,null,"Nein"]
["DBL5H01050",44.8,71,10.5,14.1,null,null,null,null,null,null,null,null,8.5,3000,null,null,null,null,9000,8.1,0.52,4.5,45,6,null,"Nein"]
["DBL5N01350",54,40,13.5,8.6999999999999993,null,null,null,null,null,null,null,null,null,null,10.7,3000,10,3600,9000,9.1,1.71,16.5,94,6,null,"Nein"]
["DBL5H01350",53.8,85,13.5,18.600000000000001,null,null,null,null,null,null,null,null,10.7,3000,null,null,null,null,9000,9.1,0.38,3.1,44,6,null,"Nein"]
["DBL5N01700",68.2,48,17,10.4,null,null,null,null,null,null,null,null,null,null,14,3000,13.4,3600,9000,11.3,1.25,12.6,99,6,null,"Nein"]
["DBL5H01700",67.5,91,17,20,null,null,null,null,null,null,null,null,14,3000,null,null,null,null,9000,11.3,0.36,3.3,52,6,null,"Nein"]
["DBL5N02200",88,63,22,13.7,null,null,null,null,null,null,null,null,null,null,17,3000,16,3600,9000,13.1,0.94,9,97,6,null,"Nein"]
["DBL6N02200",88.1,69.5,22,15.1,null,null,null,null,null,null,null,null,null,null,16,3000,14.8,3600,9000,25.1,0.72,8.5,88,6,null,"Nein"]
["DBL6N02900",116.6,81,29,17.5,null,null,null,null,null,null,null,null,null,null,20,3000,18.399999999999999,3600,9000,38.200000000000003,0.55000000000000004,6.5,100,6,null,"Nein"]
["DBL7N02600",101.9,76,26,17,null,null,null,null,null,null,null,null,null,null,20,3000,18.8,3600,9000,97.4,0.46,4.5,92.5,6,null,"Nein"]
["DBL7N03200",125.8,89.8,32,20,null,null,null,null,null,null,null,null,null,null,23,3000,21,3600,9000,114.1,0.36,3.6,97,6,null,"Nein"]
["DBL7N04000",144.5,94,40,23.4,null,null,null,null,null,null,null,null,null,null,26,3000,23.2,3600,9000,139.4,0.3,2.9,103.5,6,null,"Nein"]
["DBL8N04000",128.80000000000001,80,40,23,null,null,null,null,null,null,null,null,null,null,32,3000,30.4,3600,9000,71.099999999999994,0.35,7.5,105,6,null,"Nein"]
["DBL8N06800",234.3,140,68,37,null,null,null,null,null,null,null,null,null,null,50,3000,45.6,3600,9000,113.6,0.12,3.4,112,6,null,"Nein"]
["DBL8L09300",299,118,93,34,null,null,null,null,null,null,null,null,null,null,70,2000,null,null,6000,153,0.16,4.4000000000000004,164,6,null,"Nein"]
["DBL8L11500",363.2,146,115,43,null,null,null,null,null,null,null,null,null,null,85,2000,null,null,6000,190,0.11,3.9,164,6,null,"Nein"]
["SBK4-0100 (320V)",4,11,1,1.82,null,null,null,null,null,null,null,null,0.9,3000,null,null,null,null,12000,0.79,13,24,33.5,6,null,"Nein"]
["SBK4-0100 (560V)",4,5,1,1.1000000000000001,null,null,null,null,null,null,null,null,null,null,0.9,3000,null,null,12000,0.79,38,70,56,6,null,"Nein"]
["SBK5-0210 (320V)",6.3,12,2.1,2.7,null,null,null,null,null,null,null,null,1.9,3000,null,null,null,null,9000,4.0999999999999996,6.5,21.5,47.5,6,null,"Nein"]
["SBK5-0210 (560V)",6.3,7,2.1,1.5,null,null,null,null,null,null,null,null,null,null,1.9,3000,null,null,9000,4.0999999999999996,21,66,82.5,6,null,"Nein"]
["SBK5-0430 (320V)",12.9,22.5,4.3,5,null,null,null,null,null,null,null,null,3.9,3000,null,null,null,null,9000,5.8,2.16,10,52.5,6,null,"Nein"]
["SBK5-0430 (560V)",12.9,13,4.3,2.9,null,null,null,null,null,null,null,null,null,null,3.9,3000,null,null,9000,5.8,7.1,32,90,6,null,"Nein"]
["SBK6-0350 (320V)",10.5,21.5,3.5,5.2,null,null,null,null,null,null,null,null,3,3000,null,null,null,null,6000,8,2.95,17.5,41,6,null,"Nein"]
["SBK6-0350 (560V)",10.5,12.4,3.5,3.1,null,null,null,null,null,null,null,null,null,null,3,3000,null,null,6000,8,8.8000000000000007,52,70,6,null,"Nein"]
["SBK6-0700 (320V)",21,45.3,7,9.8000000000000007,null,null,null,null,null,null,null,null,6,3000,null,null,null,null,6000,11.4,1,7.3,43,6,null,"Nein"]
["SBK6-0700 (560V)",21,25.3,7,5.5,null,null,null,null,null,null,null,null,null,null,6,3000,null,null,6000,11.4,3.3,23.3,77,6,null,"Nein"]
["SBK7-0650 (320V)",19.5,39,6.5,8.5,null,null,null,null,null,null,null,null,5,3000,null,null,null,null,6000,32.4,1.31,4.2,46,6,null,"Nein"]
["SBK7-0650 (560V)",19.5,21,6.5,4.5,null,null,null,null,null,null,null,null,null,null,5,3000,null,null,6000,32.4,4.2,22,86.5,6,null,"Nein"]
["SBK7-1200 (320V)",36,59,12,12.7,null,null,null,null,null,null,null,null,10,3000,null,null,null,null,6000,53.1,0.54,3.9,57,6,null,"Nein"]
["SBK7-1200 (560V)",36,34.5,12,7.4,null,null,null,null,null,null,null,null,null,null,10,3000,null,null,6000,53.1,1.65,11.5,97.5,6,null,"Nein"]
["SBK7-1950 (320V)",58.5,100,19.5,21.8,null,null,null,null,null,null,null,null,15,3000,null,null,null,null,6000,69.2,0.25,1.4,54,6,null,"Nein"]
["SBK7-1950 (560V)",58.5,55,19.5,11.8,null,null,null,null,null,null,null,null,null,null,15,3000,null,null,6000,69.2,0.9,7,100,6,null,"Nein"]
["SBL2-0020 (320V)",0.8,2.7,0.2,0.57999999999999996,null,null,null,null,null,null,null,null,0.19,4500,null,null,null,null,12000,0.06,55,29.5,21,6,null,"Nein"]
["SBL2-0020 (560V)",0.8,2,0.2,0.46,null,null,null,null,null,null,null,null,null,null,0.19,4500,null,null,12000,0.06,105,52,26.5,6,null,"Nein"]
["SBL2-0040 (320V)",1.6,4.3,0.4,0.93,null,null,null,null,null,null,null,null,0.36,4500,null,null,null,null,12000,0.08,26.5,20,26,6,null,"Nein"]
["SBL2-0040 (560V)",1.6,2.4,0.4,0.55000000000000004,null,null,null,null,null,null,null,null,null,null,0.36,4500,null,null,12000,0.08,78.7,59.5,44,6,null,"Nein"]
["SBL2-0060 (320V)",2.4,5.3,0.6,1.17,null,null,null,null,null,null,null,null,0.55000000000000004,4500,null,null,null,null,12000,0.11,19.7,17,31,6,null,"Nein"]
["SBL2-0060 (560V)",2.4,3.3,0.6,0.73,null,null,null,null,null,null,null,null,null,null,0.55000000000000004,4500,null,null,12000,0.11,52,45,49.5,6,null,"Nein"]
["SBL2-0080 (320V)",3.2,6.8,0.8,1.5,null,null,null,null,null,null,null,null,0.72,4500,null,null,null,null,12000,0.13,14.7,13,33,6,null,"Nein"]
["SBL2-0080 (560V)",3.2,4.2,0.8,1,null,null,null,null,null,null,null,null,null,null,0.72,4500,null,null,12000,0.13,38,39,50,6,null,"Nein"]
["SBL3-0065 (320V)",2.6,5,0.65,1.1000000000000001,null,null,null,null,null,null,null,null,0.6,3000,null,null,null,null,12000,0.5,28.5,33,36.5,6,null,"Nein"]
["SBL3-0065 (560V)",2.6,3,0.65,0.67,null,null,null,null,null,null,null,null,null,null,0.6,3000,null,null,12000,0.5,79,83,59,6,null,"Nein"]
["SBL3-0130 (320V)",5.2,7.5,1.3,1.7,null,null,null,null,null,null,null,null,1.1499999999999999,3000,null,null,null,null,12000,0.8,13,22,47,6,null,"Nein"]
["SBL3-0130 (560V)",5.2,4.5,1.3,1,null,null,null,null,null,null,null,null,null,null,1.1499999999999999,3000,null,null,12000,0.8,35.5,61,77.5,6,null,"Nein"]
["SBL3-0190 (320V)",7.6,12.1,1.9,2.6,null,null,null,null,null,null,null,null,1.6,3000,null,null,null,null,12000,1,6.8,13,43.5,6,null,"Nein"]
["SBL3-0190 (560V)",7.6,6.9,1.9,1.5,null,null,null,null,null,null,null,null,null,null,1.6,3000,null,null,12000,1,21.3,40,77,6,null,"Nein"]
["SBL3-0250 (320V)",10,13.5,2.5,3,null,null,null,null,null,null,null,null,2.15,3000,null,null,null,null,12000,1.4,5.3,12,49,6,null,"Nein"]
["SBL3-0250 (560V)",10,8.1999999999999993,2.5,1.8,null,null,null,null,null,null,null,null,null,null,2.15,3000,null,null,12000,1.4,14.8,31.4,83,6,null,"Nein"]
["SBL3-0300 (320V)",12,17.399999999999999,3,3.8,null,null,null,null,null,null,null,null,2.5,3000,null,null,null,null,12000,1.7,3.7,8.4,48,6,null,"Nein"]
["SBL3-0300 (560V)",12,9.5,3,2.1,null,null,null,null,null,null,null,null,null,null,2.5,3000,null,null,12000,1.7,11.5,25,88,6,null,"Nein"]
["SBL4-0260 (320V)",10.4,15.7,2.6,3.4,null,null,null,null,null,null,null,null,2.2999999999999998,3000,null,null,null,null,12000,2.1,3.1,1.7,46,6,null,"Nein"]
["SBL4-0260 (560V)",10.4,8.6,2.6,1.9,null,null,null,null,null,null,null,null,null,null,2.2999999999999998,3000,null,null,12000,2.1,9.5,40,8.1999999999999993,6,null,"Nein"]
["SBL4-0530 (320V)",21.2,30,5.3,6.5,null,null,null,null,null,null,null,null,4.5999999999999996,3000,null,null,null,null,12000,2.8,1.65,9.3000000000000007,49,6,null,"Nein"]
["SBL4-0530 (560V)",21.2,18,5.3,4,null,null,null,null,null,null,null,null,null,null,4.5999999999999996,3000,null,null,12000,2.8,4.0999999999999996,20.7,80,6,null,"Nein"]
["SBL4-0750 (320V)",30,43,7.5,9.3000000000000007,null,null,null,null,null,null,null,null,6.4,3000,null,null,null,null,12000,4.3,0.86,5.3,49,6,null,"Nein"]
["SBL4-0750 (560V)",30,22,7.5,4.7,null,null,null,null,null,null,null,null,null,null,6.4,3000,null,null,12000,4.3,2.9,17,96,6,null,"Nein"]
["SBL5-0660 (320V)",19.8,35,6.6,7.7,null,null,null,null,null,null,null,null,5.6,3000,null,null,null,null,9000,8.9,1.2,7.2,52,6,null,"Nein"]
["SBL5-0660 (560V)",19.8,21,6.6,4.5999999999999996,null,null,null,null,null,null,null,null,null,null,5.6,3000,null,null,9000,8.9,3.55,17.3,87.5,6,null,"Nein"]
["SBL5-1050 (320V)",31.5,61,10.5,12.7,null,null,null,null,null,null,null,null,8.5,3000,null,null,null,null,9000,11.9,0.57999999999999996,4.3,50,6,null,"Nein"]
["SBL5-1050 (560V)",31.5,34,10.5,7.1,null,null,null,null,null,null,null,null,null,null,8.5,3000,null,null,9000,11.9,1.7,11.5,90,6,null,"Nein"]
["SBL5-1350 (320V)",40.5,80,13.5,16.8,null,null,null,null,null,null,null,null,10.7,3000,null,null,null,null,9000,13.4,0.5,4.3,51,6,null,"Nein"]
["SBL5-1350 (560V)",40.5,42,13.5,9.1,null,null,null,null,null,null,null,null,null,null,10.7,3000,null,null,9000,13.4,1.36,11,90,6,null,"Nein"]
["SBL5-1700 (320V)",51,95,17,20.6,null,null,null,null,null,null,null,null,14,3000,null,null,null,null,9000,17.2,0.31,2.2999999999999998,50,6,null,"Nein"]
["SBL5-1700 (560V)",51,52,17,10.7,null,null,null,null,null,null,null,null,null,null,14,3000,null,null,9000,17.2,1.1000000000000001,8,96,6,null,"Nein"]
["SBL5-2200 (320V)",66,117,22,24.6,null,null,null,null,null,null,null,null,17,3000,null,null,null,null,9000,19.899999999999999,0.27,2.8,54,6,null,"Nein"]
["SBL5-2200 (560V)",66,70,22,14.8,null,null,null,null,null,null,null,null,null,null,17,3000,null,null,9000,19.899999999999999,0.75,7.7,90,6,null,"Nein"]
["SBL6-1350 (320V)",40.5,84,13.5,18.3,null,null,null,null,null,null,null,null,10,3000,null,null,null,null,6000,15.9,0.52,4.8,44.5,6,null,"Nein"]
["SBL6-1350 (560V)",40.5,50,13.5,10.9,null,null,null,null,null,null,null,null,null,null,10,3000,null,null,6000,15.9,1.47,13.5,75,6,null,"Nein"]
["SBL6-1900 (320V)",57,112,19,23,null,null,null,null,null,null,null,null,14,3000,null,null,null,null,6000,22,0.31,3.4,50,6,null,"Nein"]
["SBL6-1900 (560V)",57,63,19,13.5,null,null,null,null,null,null,null,null,null,null,14,3000,null,null,6000,22,0.88,10,85,6,null,"Nein"]
["SBL6-2200 (320V)",66,120,22,26.1,null,null,null,null,null,null,null,null,16,3000,null,null,null,null,6000,25.1,0.24,2.8,51,6,null,"Nein"]
["SBL6-2200 (560V)",66,70,22,15.1,null,null,null,null,null,null,null,null,null,null,16,3000,null,null,6000,25.1,0.72,8.5,88,6,null,"Nein"]
["SBL6-2900 (320V)",87,156,29,37.299999999999997,null,null,null,null,null,null,null,null,22,3000,null,null,null,null,6000,38.200000000000003,0.12,1.4,47,6,null,"Nein"]
["SBL6-2900 (560V)",87,94,29,20.399999999999999,null,null,null,null,null,null,null,null,null,null,22,3000,null,null,6000,38.200000000000003,0.33,4.5,86,6,null,"Nein"]
["SBL7-2600 (320V)",78,137,26,30.5,null,null,null,null,null,null,null,null,20,3000,null,null,null,null,4500,97,0.14000000000000001,1.3,51.5,6,null,"Nein"]
["SBL7-2600 (560V)",78,66,26,17,null,null,null,null,null,null,null,null,null,null,20,3000,null,null,4500,97,0.48,4.5,92.5,6,null,"Nein"]
["SBL7-3200 (320V)",96,168,32,37.6,null,null,null,null,null,null,null,null,23,3000,null,null,null,null,4500,114,0.11,1,51.5,6,null,"Nein"]
["SBL7-3200 (560V)",96,96,32,21.4,null,null,null,null,null,null,null,null,null,null,23,3000,null,null,4500,114,0.31,3.1,90.5,6,null,"Nein"]
["SBL7-4000 (320V)",120,160,40,40,null,null,null,null,null,null,null,null,26,3000,null,null,null,null,4500,139,0.09,1,60.5,6,null,"Nein"]
["SBL7-4000 (560V)",120,92,40,24.2,null,null,null,null,null,null,null,null,null,null,26,3000,null,null,4500,139,0.28000000000000003,3.1,100,6,null,"Nein"]
["SBL8-4000 (320V)",120,150,40,38.4,null,null,null,null,null,null,null,null,30,3000,null,null,null,null,3600,76,0.08,1.9,63,6,null,"Nein"]
["SBL8-4000 (560V)",120,86,40,22,null,null,null,null,null,null,null,null,null,null,30,3000,null,null,3600,76,0.26,5.6,110,6,null,"Nein"]
["SBL8-6800 (320V)",204,253,68,65,null,null,null,null,null,null,null,null,50,3000,null,null,null,null,3600,114,0.04,1.05,63.5,6,null,"Nein"]
["SBL8-6800 (560V)",204,139,68,36,null,null,null,null,null,null,null,null,null,null,50,3000,null,null,3600,114,0.13,3.2,115,6,null,"Nein"]
["SBL8-9300 (320V)",279,236,93,60,null,null,null,null,null,null,null,null,70,2000,null,null,null,null,3600,153,0.05,1.5,93,6,null,"Nein"]
["SBL8-9300 (560V)",279,130,93,34,null,null,null,null,null,null,null,null,null,null,70,2000,null,null,3600,153,0.15,4.7,168,6,null,"Nein"]
["SBL8-11500 (320V)",345,288,115,74,null,null,null,null,null,null,null,null,85,2000,null,null,null,null,3600,190,0.04,1.1000000000000001,94,6,null,"Nein"]
["SBL8-11500 (560V)",345,165,115,42,null,null,null,null,null,null,null,null,null,null,85,2000,null,null,3600,190,0.11,3.2,164,6,null,"Nein"]
["C/CH 41A",12.3,8.19,4.57,2.73,null,null,null,null,null,null,null,null,4.2300000000000004,1750,4.08,2500,4.08,2500,2500,0.58600000000000008,8.4700000000000006,34.4,102,10,null,"Nein"]
["C/CH 41B",12.2,14.1,4.51,4.6900000000000004,null,null,null,null,null,null,null,null,4.03,2500,4.03,2500,4.03,2500,2500,0.58600000000000008,2.87,11.4,58.7,10,null,"Nein"]
["C/CH 42A",22.2,14,8.26,4.68,null,null,null,null,null,null,null,null,7.5,1700,7.1,2500,7.1,2500,2500,0.88700000000000001,3.7,18.3,108,10,null,"Nein"]
["C/CH 42B",22.8,27.6,8.4600000000000009,9.19,null,null,null,null,null,null,null,null,7.27,2500,5.0199999999999996,3000,5.0199999999999996,3000,2500,0.88700000000000001,0.96,5,56.1,10,null,"Nein"]
["C/CH 43A",14.2,30,8.1999999999999993,4.7300000000000004,null,null,null,null,null,null,null,null,10.3,1250,9.4,2250,9.18,2500,2500,1.1900000000000002,3.97,20.6,143,10,null,"Nein"]
["C/CH 43B",30.2,27.5,8.24,9.15,null,null,null,null,null,null,null,null,9.23,2500,9.23,2500,9.23,2500,2500,1.1900000000000002,1.06,5.5,74.5,10,null,"Nein"]
["C/CH 44A",38.1,15,14.1,5,null,null,null,null,null,null,null,null,13.2,1050,12.3,1850,11.8,2250,2500,1.49,4.08,22.1,173,10,null,"Nein"]
["C/CH 44B",38.799999999999997,29.3,14.4,9.74,null,null,null,null,null,null,null,null,12.1,2150,8,3000,6.8,3500,2500,1.49,1.08,6,90,10,null,"Nein"]
["C/CH 51A",30,12.8,11.7,4.75,null,null,null,null,null,null,null,null,11,1200,10.3,2100,10,2500,2500,2.7399999999999998,4.13,24,151,10,null,"Nein"]
["C/CH 51B",30.5,25.1,11.8,9.2899999999999991,null,null,null,null,null,null,null,null,10.199999999999999,2450,10.199999999999999,2450,10.199999999999999,2450,2500,2.7399999999999998,1.08,6.4,78,10,null,"Nein"]
["C/CH 52A",43.1,26.6,16.8,9.84,null,null,null,null,null,null,null,null,14.9,1850,14.1,2500,14.1,2500,2500,3.59,1.1399999999999999,7,105,10,null,"Nein"]
["C/CH 52B",42.4,34.200000000000003,16.5,13.5,null,null,null,null,null,null,null,null,13.8,2500,13.8,2500,13.8,2500,2500,3.59,0.61,3.7,75.400000000000006,10,null,"Nein"]
["C/CH 52C",43.1,15.4,16.899999999999999,5.7,null,null,null,null,null,null,null,null,17.399999999999999,1000,19.899999999999999,1750,19,2100,2500,3.59,3.43,21.3,183,10,null,"Nein"]
["C/CH 52D",43.1,28.01,16.899999999999999,11.1,null,null,null,null,null,null,null,null,11,3400,11,3400,9.1,4000,2500,3.59,1.02,5.6,94,10,null,"Nein"]
["C/CH 53A",53.7,24.9,20.9,9.2100000000000009,null,null,null,null,null,null,null,null,19,1350,16.899999999999999,2350,16.8,2500,2500,4.43,1.41,9.1,139,10,null,"Nein"]
["C/CH 53B",51.4,49.2,20,18.2,null,null,null,null,null,null,null,null,16.100000000000001,2500,16.100000000000001,2500,16.100000000000001,2500,2500,4.43,0.36,2.2000000000000002,67.400000000000006,10,null,"Nein"]
["C/CH 54A",63.5,26.4,24.8,9.7899999999999991,null,null,null,null,null,null,null,null,22.6,1200,20.3,2100,19.3,2500,2500,5.28,1.35,9,155.5,10,null,"Nein"]
["C/CH 54B",60.9,46.8,23.9,17.399999999999999,null,null,null,null,null,null,null,null,18.7,2350,18.7,2350,18.7,2350,2500,5.28,0.43,2.7,84.3,10,null,"Nein"]
["C/CH 54D",63.5,16,24.5,6.2,null,null,null,null,null,null,null,null,21,1000,21,1000,22.5,1200,2500,5.28,3.25,28.3,242,10,null,"Nein"]
["C/CH 61A",85.7,26.7,33.4,9.89,null,null,null,null,null,null,null,null,31.3,900,29.1,1600,27.9,1900,2500,9.41,1.36,18.100000000000001,206,10,null,"Nein"]
["C/CH 61B",83,52.7,32.299999999999997,19.5,null,null,null,null,null,null,null,null,27,1950,27,1950,27,1950,2500,9.41,0.35,4.3,101,10,null,"Nein"]
["C/CH 62A",121.5,39.299999999999997,47.3,14.6,null,null,null,null,null,null,null,null,43.7,950,39.700000000000003,1650,37.6,2000,2500,12.6,0.76,11.1,198,10,null,"Nein"]
["C/CH 62B",117.8,55.5,46,20.6,null,null,null,null,null,null,null,null,39.9,1450,39.9,1450,39.9,1450,2500,12.6,0.38,5.2,136,10,null,"Nein"]
["C/CH 62C",121.5,29.5,47.3,11.5,null,null,null,null,null,null,null,null,43.7,736,39.700000000000003,1250,37.6,1550,2500,12.6,1.19,17.8,250,10,null,"Nein"]
["C/CH 63A",154.4,37.5,60.2,13.9,null,null,null,null,null,null,null,null,56.3,700,52.5,1250,50.7,1500,2500,15.7,0.93,14.4,264,10,null,"Nein"]
["C/CH 63B",149,52.8,58,19.5,null,null,null,null,null,null,null,null,52.3,1150,45.8,1850,41.8,2200,2500,15.7,0.47,7.1,181,10,null,"Nein"]
["C/CH 63C",157,28.5,61.8,11.3,null,null,null,null,null,null,null,null,61.8,750,61.8,950,61.8,1150,2500,15.7,1.45,7,334,10,null,"Nein"]
["C/CH 91A",120,40,50.2,12.8,null,null,null,null,null,null,null,null,42.4,600,33.9,884,33.9,884,2500,28,0.91600000000000004,7.8,244,38,null,"Nein"]
["C/CH 91C",120,32.200000000000003,50.2,10.3,null,null,null,null,null,null,null,null,42.2,400,33.9,750,33.9,850,2500,28,9.6,12.2,303,38,null,"Nein"]
["C/CH 92A",227,40,101,15.3,null,null,null,null,null,null,null,null,89.6,400,69.599999999999994,700,68,721,2500,47,0.92100000000000004,11,411,38,null,"Nein"]
["C/CH 92C",228,48,101,18.399999999999999,null,null,null,null,null,null,null,null,84,500,69,700,69,700,2500,47,0.64,7.5,343,38,null,"Nein"]
["C/CH 93A",309,40,145,17.399999999999999,null,null,null,null,null,null,null,null,132,300,109,550,97,646,2500,66,0.86699999999999999,11,517,38,null,"Nein"]
["C/CH 93C",308,48.5,145,21.2,null,null,null,null,null,null,null,null,132,350,79,700,79,700,2500,66,0.59,7.5,426,38,null,"Nein"]
["C/CH 93D",308,66.7,145,29.1,null,null,null,null,null,null,null,null,98,600,65,700,65,700,2500,66,0.31,4,310,38,null,"Nein"]
["C/CH 131A",389,40,188,15.6,null,null,null,null,null,null,null,null,169,225,142,400,123,500,2500,123,0.93,13,738,46,null,"Nein"]
["C/CH 131B",396,75.400000000000006,190,29.2,null,null,null,null,null,null,null,null,133,450,123,500,123,500,2500,123,0.26100000000000001,3.6,398,46,null,"Nein"]
["C/CH 131C",320,39.299999999999997,188,18.7,null,null,null,null,null,null,null,null,118,510,100,575,123,400,2500,123,0.64600000000000002,8.9,617,46,null,"Nein"]
["C/CH 132A",836,40,361,13.9,null,null,null,null,null,null,null,null,339,110,316,200,298,250,2500,225,1.66,29,1584,46,null,"Nein"]
["C/CH 132B",742,75.400000000000006,361,29.6,null,null,null,null,null,null,null,null,307,225,230,395,230,395,2500,225,0.36899999999999999,6.5,746,46,null,"Nein"]
["C/CH 132C",645,37.200000000000003,361,16.8,null,null,null,null,null,null,null,null,336,125,300,250,271,310,2500,225,1.1399999999999999,20,1312,46,null,"Nein"]
["C/CH 132D",638,80,361,36.700000000000003,null,null,null,null,null,null,null,null,310,260,258,440,212,440,2500,225,0.24,4.3,604,46,null,"Nein"]
["C/CH 133A",1016,40,504,16.8,null,null,null,null,null,null,null,null,475,90,445,160,426,200,2500,302,1.41,26,1837,46,null,"Nein"]
["C/CH 133B",1017,77.099999999999994,510,32.700000000000003,null,null,null,null,null,null,null,null,442,175,344,342,344,342,2500,302,0.37,7,954,46,null,"Nein"]
["C/CH 133C",1018,48,504,20.100000000000001,null,null,null,null,null,null,null,null,480,100,433,200,426,250,2500,302,0.94,18,1534,46,null,"Nein"]
["C/CH 133D",1018,98.2,504,42.2,null,null,null,null,null,null,null,null,400,250,270,400,400,250,2500,302,0.22,4.3,750,46,null,"Nein"]
["KBM-10H01-A",1.17,4.33,0.48699999999999999,1.73,null,null,null,null,null,null,null,null,0.414767427451606,9900,0.36804580590000802,14400,null,null,16000,4.9200000000000008E-3,13,19,17.382100000000001,6,null,"Nein"]
["KBM-10H01-B",1.19,8.6999999999999993,0.50900000000000001,3.37,null,null,null,null,null,null,null,null,0.30970691628693148,18500,null,null,null,null,20000,4.9200000000000008E-3,3.42,5.2,9.3041110000000007,6,null,"Nein"]
["KBM-10H01-C",1.23,13.8,0.49199999999999999,5.21,null,null,null,null,null,null,null,null,0.29520674928335428,18600,null,null,null,null,20000,4.9200000000000008E-3,1.44,2.2000000000000002,5.8349039999999999,6,null,"Nein"]
["KBM-10H02-A",2.33,4.33,0.876,1.53,null,null,null,null,null,null,null,null,0.79409940026903569,4750,0.70832694452986378,9100,0.64240722484365043,11000,13564,1.03E-2,20,36,35.4,6,null,"Nein"]
["KBM-10H02-B",2.48,8.65,0.89900000000000002,2.99,null,null,null,null,null,null,null,null,0.70664794732801528,10000,0.49317090918607037,15200,null,null,16000,1.03E-2,5.22,9.6999999999999993,18.536100000000001,6,null,"Nein"]
["KBM-10H02-C",2.2400000000000002,15.5,0.86799999999999999,5.14,null,null,null,null,null,null,null,null,0.25034642399860291,18500,null,null,null,null,20000,1.03E-2,1.77,3.2,10.46,6,null,"Nein"]
["KBM-10H03-A",3.46,4.8600000000000003,1.1579999999999999,1.54,null,null,null,null,null,null,null,null,1.0203357995480415,3650,0.98952855922352334,6900,0.87628839255302382,8500,10354,1.55E-2,21.2,41,46.4,6,null,"Nein"]
["KBM-10H03-B",3.57,7.73,1.17,2.4,null,null,null,null,null,null,null,null,0.98185139021865797,6030,0.73391973757660023,11450,0.49415940372588485,14300,16000,1.55E-2,8.77,17,30,6,null,"Nein"]
["KBM-10H03-C",3.58,9.7200000000000006,1.19,3.05,null,null,null,null,null,null,null,null,0.94236479462306444,7600,0.47746482927568601,14500,null,null,16000,1.55E-2,5.44,11,24,6,null,"Nein"]
["KBM-10H03-D",15.5,17.2,1.18,4.66,null,null,null,null,null,null,null,null,0.62437708443743556,13000,null,null,null,null,15373,1.55E-2,2.34,4.7,15.7,6,null,"Nein"]
["KBM-10H04-A",4.66,5.46,1.44,1.6,null,null,null,null,null,null,null,null,1.2891550390443522,3000,1.1791305349069114,5750,1.1106983262583334,7050,8541,2.01E-2,20.399999999999999,44,56.2,6,null,"Nein"]
["KBM-10H04-B",4.75,8.6999999999999993,1.41,2.4,null,null,null,null,null,null,null,null,1.1888682496021099,4980,0.90467020283814192,9500,0.71412130987319988,11500,13200,2.01E-2,9.02,19,36.4,6,null,"Nein"]
["KBM-10H04-C",4.8,10.9,1.44,3.1,null,null,null,null,null,null,null,null,1.1519786357127662,6300,0.66845076098596046,12000,null,null,13833,2.01E-2,5.44,11.8,29,6,null,"Nein"]
["KBM-10H04-D",4.91,15.5,1.41,4.21,null,null,null,null,null,null,null,null,0.909696148409465,9500,null,null,null,null,11509,2.01E-2,2.94,6.2,20.9,6,null,"Nein"]
["KBM-14H01-A",3.28,4.32,1.2,1.53,null,null,null,null,null,null,null,null,1.083203791789616,3350,0.9698504344662372,6400,0.89449107256710791,7900,9741,2.41E-2,21.4,38,49.3,8,null,"Nein"]
["KBM-14H01-B",3.43,9.6300000000000008,1.25,3.25,null,null,null,null,null,null,null,null,0.93691211782398764,7950,0.56102117439893107,12000,null,null,12000,2.41E-2,4.74,9,23.7,8,null,"Nein"]
["KBM-14H01-C",3.59,19.399999999999999,1.21,6.25,null,null,null,null,null,null,null,null,0.64723010190704111,13500,null,null,null,null,12000,2.41E-2,1.29,2.4,12.1,8,null,"Nein"]
["KBM-14H02-A",6.67,5.39,2.08,1.59,null,null,null,null,null,null,null,null,1.8621128341751756,2000,1.7384616860807027,3900,1.6370222718023522,4900,5915,4.8800000000000003E-2,23.8,47,80.8,8,null,"Nein"]
["KBM-14H02-B",6.83,8.57,2.08,2.42,null,null,null,null,null,null,null,null,1.7941102675813656,3300,1.382510102678852,6700,1.2401683877290546,7700,9016,4.8800000000000003E-2,10.3,20,53.4,8,null,"Nein"]
["KBM-14H02-C",6.98,10.9,2.11,3.1,null,null,null,null,null,null,null,null,1.7301078519636623,4250,1.2055986939211072,8000,0.5496668278490825,10250,11390,4.8800000000000003E-2,6.3,12.8,42.3,8,null,"Nein"]
["KBM-14H02-D",7.31,21.8,2.1749999999999998,5.97,null,null,null,null,null,null,null,null,1.1051433127055206,8900,null,null,null,null,10660,4.8800000000000003E-2,1.69,3.6,22.6,8,null,"Nein"]
["KBM-14H03-A",10.4,5.9,2.82,1.64,null,null,null,null,null,null,null,null,2.5464790894703255,1500,2.4124538742350454,2850,2.3210095867568072,3600,4458,7.3099999999999998E-2,26.6,54,108,8,null,"Nein"]
["KBM-14H03-B",10.4,10.3,2.87,2.81,null,null,null,null,null,null,null,null,2.4794664818526857,2850,1.961016263096568,5600,1.7923295129733443,6500,7549,7.3099999999999998E-2,9.01,19,63.7,8,null,"Nein"]
["KBM-14H03-C",10.4,22.5,2.92,6.04,null,null,null,null,null,null,null,null,1.7796416363911933,6600,null,null,null,null,7980,7.3099999999999998E-2,1.96,4.0999999999999996,30,8,null,"Nein"]
["KBM-17H01-A",5.95,5.45,2.08,1.65,null,null,null,null,null,null,null,null,1.8853739412424524,1950,1.7590809499630535,3800,1.6634258568314222,4650,6166,5.1199999999999996E-2,21.3,66,77.900000000000006,10,null,"Nein"]
["KBM-17H01-B",6.14,10.9,2.0699999999999998,3.11,null,null,null,null,null,null,null,null,1.7052315331274501,4200,1.0653261508694498,8650,0.71619724391352901,9600,9600,5.1199999999999996E-2,6.02,18,41.2,10,null,"Nein"]
["KBM-17H01-C",6.35,21.8,2.0699999999999998,6.1,null,null,null,null,null,null,null,null,0.90187801085407349,9000,null,null,null,null,9600,5.1199999999999996E-2,1.56,5,21.5,10,null,"Nein"]
["KBM-17H02-A",12.2,6.08,3.58,1.59,null,null,null,null,null,null,null,null,3.2293984816464585,1100,3.1376260209545084,2100,3.0667933265015219,2600,3438,9.5399999999999999E-2,27.5,97,140,10,null,"Nein"]
["KBM-17H02-B",12.3,12.2,3.52,2.99,null,null,null,null,null,null,null,null,3.0516230392837325,2300,2.6043536142310146,4400,2.2252489291013626,5450,6602,9.5399999999999999E-2,7.78,27,72.8,10,null,"Nein"]
["KBM-17H02-C",12.7,21.9,3.64,5.27,null,null,null,null,null,null,null,null,2.6891697281044387,4350,0.99787623049680418,7560,null,null,9375,9.5399999999999999E-2,2.5099999999999998,9.1999999999999993,43,10,null,"Nein"]
["KBM-17H02-D",12.8,24.5,3.58,6.5,null,null,null,null,null,null,null,null,2.1997486777344109,5600,null,null,null,null,7054,9.5399999999999999E-2,1.65,3.1,34.200000000000003,10,null,"Nein"]
["KBM-17H02-E",12.9,39,3.75,9.33,null,null,null,null,null,null,null,null,1.1013522061959158,7500,null,null,null,null,9600,9.5399999999999999E-2,0.8,3.1,24.8,10,null,"Nein"]
["KBM-17H03-A",18.5,13.8,4.88,3,null,null,null,null,null,null,null,null,4.2971834634811747,1700,3.5950293027816365,3400,3.4812625526936092,3950,4803,0.14200000000000002,8.61,33,100,10,null,"Nein"]
["KBM-17H03-B",18.8,24.4,4.8899999999999997,5.32,null,null,null,null,null,null,null,null,3.8500338614610872,3150,1.8011681364546206,6150,null,null,7006,0.14200000000000002,2.81,11,57,10,null,"Nein"]
["KBM-17H03-C",18.8,27.2,5.05,6.14,null,null,null,null,null,null,null,null,3.8063629746453294,3575,1.429447174066097,6480,null,null,7200,0.14200000000000002,2.1,8.8000000000000007,51.34,10,null,"Nein"]
["KBM-17H03-D",19,48,5,10.38,null,null,null,null,null,null,null,null,1.4103576495527956,6500,null,null,null,null,8030,0.14200000000000002,0.74,2.9,30,10,null,"Nein"]
["KBM-17H04-A",23.7,14.5,5.98,3.15,null,null,null,null,null,null,null,null,5.2862177526950962,1400,4.703912762493796,2700,4.332815167158464,3350,4058,0.20300000000000001,8.64,34,118,10,null,"Nein"]
["KBM-17H04-B",23.7,25,6.12,5.53,null,null,null,null,null,null,null,null,4.8647359963937822,2650,2.902986161996171,5000,1.8009638297240791,5700,6987,0.20300000000000001,2.8,12,69.3,10,null,"Nein"]
["KBM-17H04-C",23.7,28.1,6.1,6.2,null,null,null,null,null,null,null,null,4.6473243382833438,3000,1.6122189040477708,5775,null,null,6548,0.20300000000000001,2.23,9.1,61.4,10,null,"Nein"]
["KBM-17H04-D",24,44,6.07,9.56,null,null,null,null,null,null,null,null,3.9629580829881941,5000,null,null,null,null,6037,0.20300000000000001,0.94,3.8,40,10,null,"Nein"]
["KBM-25H01-A",14.37,10.86,4.9000000000000004,3.1,null,null,null,null,null,null,null,null,4.1090912580089336,1650,3.304359770860303,3150,2.7893997920842706,3800,4779,0.26600000000000001,8.98,37,100.3,10,null,"Nein"]
["KBM-25H01-B",14.64,19.3,4.96,5.34,null,null,null,null,null,null,null,null,3.3346749981159021,3150,1.4226503076377583,4900,null,null,6970,0.26600000000000001,2.87,12,57.5,10,null,"Nein"]
["KBM-25H01-C",15.1,27.6,4.8499999999999996,6.45,null,null,null,null,null,null,null,null,2.3166932544737429,4225,null,null,null,null,5178,0.26600000000000001,1.97,7.9,46.3,10,null,"Nein"]
["KBM-25H01-D",15.2,34.299999999999997,4.75,7.95,null,null,null,null,null,null,null,null,1.3252085057447611,4900,null,null,null,null,6489,0.26600000000000001,1.3,5.2,37.1,10,null,"Nein"]
["KBM-25H01-E",15.32,39,5.09,10.44,null,null,null,null,null,null,null,null,1.4421386680163577,4900,null,null,null,null,6918,0.26600000000000001,0.75,3.4,30,10,null,"Nein"]
["KBM-25H01-F",15.73,43.7,4.63,12,null,null,null,null,null,null,2.4658943081579734,3950,null,null,null,null,null,null,4765,0.26600000000000001,0.56000000000000005,2.1,23.7,10,null,"Nein"]
["KBM-25H02-A",29.4,15,8.6999999999999993,3.33,null,null,null,null,null,null,null,null,8.0691556147590937,1000,7.5170103891095179,1950,7.4404935895461071,2400,2982,0.51500000000000001,8.9600000000000009,45,162,10,null,"Nein"]
["KBM-25H02-B",29.7,23.6,8.75,5.18,null,null,null,null,null,null,null,null,7.6956096012669404,1700,6.7906109052542005,3150,6.0876765732649973,4000,4614,0.51500000000000001,3.7,19,104,10,null,"Nein"]
["KBM-25H02-C",29.7,29.5,8.75,6.5,null,null,null,null,null,null,null,null,7.4617759365874656,2150,6.0399300903374282,4000,4.8414933688554562,5000,5791,0.51500000000000001,2.35,12,83.4,10,null,"Nein"]
["KBM-25H02-D",29.8,37,8.6199999999999992,8,null,null,null,null,null,null,null,null,6.9736147541916713,2725,4.4612543893712751,5180,2.8488734813449264,6000,7193,0.51500000000000001,1.57,7.8,67,10,null,"Nein"]
["KBM-25H02-E",29.8,46.5,8.85,10.199999999999999,null,null,null,null,null,null,null,null,6.5120897548433847,3600,2.9443664472000637,6000,null,null,7430,0.51500000000000001,0.96,5,54,10,null,"Nein"]
["KBM-25H02-F",30.1,58,8.93,12.74,null,null,null,null,null,null,null,null,5.6022539968347154,4500,null,null,null,null,5564,0.51500000000000001,0.61,3.2,43.3,10,null,"Nein"]
["KBM-25H02-G",30,65.5,8.74,14.37,null,null,null,null,null,null,null,null,4.3692536263907114,5300,null,null,null,null,6316,0.51500000000000001,0.49,2.5,38.200000000000003,10,null,"Nein"]
["KBM-25H03-A",42.2,23.9,11.86,5.3,null,null,null,null,null,null,null,null,11.018419137131216,1300,9.9869726790164322,2400,9.3846535409358971,2900,3479,0.76600000000000001,3.97,21,139,10,null,"Nein"]
["KBM-25H03-B",42.3,33,11.84,7.27,null,null,null,null,null,null,null,null,10.02022080068974,1825,5.2661562052465376,3400,6.6499920800324466,4150,4800,0.76600000000000001,2.1,11.4,100,10,null,"Nein"]
["KBM-25H03-C",42.4,37,11.9,8.1999999999999993,null,null,null,null,null,null,null,null,9.8753701274580923,2050,7.4635291734146705,3800,5.2243241637149138,4725,5351,0.76600000000000001,1.66,9.1,90,10,null,"Nein"]
["KBM-25H03-D",42.6,47,11.9,10.24,null,null,null,null,null,null,null,null,9.1956189341983965,2700,5.0010749128257421,4850,null,null,5560,0.76600000000000001,1.06,5.7,72.099999999999994,10,null,"Nein"]
["KBM-25H03-E",42.6,59,11.8,12.7,null,null,null,null,null,null,null,null,8.0747728480446916,3400,null,null,null,null,4193,0.76600000000000001,0.69,3.6,57.4,10,null,"Nein"]
["KBM-25H03-F",42,67,11.75,14.79,null,null,null,null,null,null,null,null,6.7427350280639562,4100,null,null,null,null,4902,0.76600000000000001,0.51,2.7,49.4,10,null,"Nein"]
["KBM-25H03-G",42,96,11.2,20,null,null,null,null,null,null,null,null,3.5388569699256727,5100,null,null,null,null,6937,0.76600000000000001,0.28000000000000003,1.3,34.6,10,null,"Nein"]
["KBM-25H03-H",42.6,105,11,21.1,null,null,null,null,null,null,null,null,3.0300652627110845,5200,null,null,null,null,7600,0.76600000000000001,0.25,1.1000000000000001,31.8,10,null,"Nein"]
["KBM-25H04-A",54.4,25,14.82,5.5,null,null,null,null,null,null,null,null,13.187123856185615,1050,12.032113697747288,2000,11.399472798957003,2400,2888,1.02,4.08,23,167,10,null,"Nein"]
["KBM-25H04-B",53.8,27.5,14.9,6.2,null,null,null,null,null,null,null,null,13.130282805081366,1200,11.735024470642415,2250,10.92863942564348,2700,3245,1.02,3.2,18,148,10,null,"Nein"]
["KBM-25H04-C",54.4,38.5,15.1,8.6300000000000008,null,null,null,null,null,null,null,null,12.638774892591691,1700,10.064655448858906,3150,8.0858978879934362,3850,4450,1.02,1.66,9.6,108,10,null,"Nein"]
["KBM-25H04-D",54.8,48.5,15,10.7,null,null,null,null,null,null,null,null,11.777465788800255,2250,6.9376214952587638,4150,4.0432128096111288,4700,5551,1.02,1.08,6.2,87,10,null,"Nein"]
["KBM-25H04-E",53.8,62.5,14.6,13.8,null,null,null,null,null,null,null,null,9.9719703688069501,3050,4.5670548887239537,4600,null,null,6135,1.02,0.65,3.5,65.5,10,null,"Nein"]
["KBM-25H04-F",54.1,89,14.5,19.399999999999999,null,null,null,null,null,null,null,null,4.8481044203377346,4550,null,null,null,null,5206,1.02,0.33,1.8,46.3,10,null,"Nein"]
["KBM-25H04-G",54.5,98,14,20.3,null,null,null,null,null,null,null,null,4.8473059841683774,4600,null,null,null,null,5637,1.02,0.3,1.5,42.8,10,null,"Nein"]
["KBM-35H01-A",40.799999999999997,21.9,12.6,5.41,null,null,null,null,null,null,null,null,11.459155902616464,1200,10.926171907145932,2150,10.504226244065093,2700,3353,1.52,4.13,32,144,10,null,"Nein"]
["KBM-35H01-B",41.4,24.5,12.45,6.1,null,null,null,null,null,null,null,null,11.275515583664278,1300,10.646449810232319,2350,10.207868763825012,2900,3783,1.52,3.3,25,127,10,null,"Nein"]
["KBM-35H01-C",40.799999999999997,34.700000000000003,12.45,8.32,null,null,null,null,null,null,null,null,10.976501238239955,1840,9.6876921882023268,3450,8.8330993416001924,4200,5201,1.52,1.75,13.4,93,10,null,"Nein"]
["KBM-35H01-D",41.2,43.5,12.65,10.57,null,null,null,null,null,null,null,null,10.757574928986886,2450,8.4999233343583658,4550,6.1741141716683536,5800,6505,1.52,1.08,8.5,74,10,null,"Nein"]
["KBM-35H01-E",41.1,55.4,12.2,12.8,null,null,null,null,null,null,null,null,9.5955028593145926,3100,5.1268764455012183,6100,null,null,6943,1.52,0.74,5.4,57.8,10,null,"Nein"]
["KBM-35H01-F",41.1,62.1,12.4,14.58,null,null,null,null,null,null,null,null,9.4962449378164226,3600,3.7039695846841094,6600,null,null,7200,1.52,0.56999999999999995,4.4000000000000004,52.6,10,null,"Nein"]
["KBM-35H01-G",41.2,87.4,12.4,20.100000000000001,null,null,null,null,null,null,null,null,7.1259373576805212,5300,null,null,null,null,6316,1.52,0.3,2.2000000000000002,38.1,10,null,"Nein"]
["KBM-35H01-H",41.4,98,12.2,21.2,null,null,null,null,null,null,null,null,6.3605136185653901,5600,null,null,null,null,6756,1.52,0.27,1.6,35.700000000000003,10,null,"Nein"]
["KBM-35H02-A",58.8,22.5,17.3,4.97,null,null,null,null,null,null,null,null,15.875705573416559,800,15.311803145737517,1450,15.006037491521562,1750,2235,2.2799999999999998,5.5,44,215,10,null,"Nein"]
["KBM-35H02-B",58.8,28,17.600000000000001,6.3,null,null,null,null,null,null,null,null,16.083025828233634,950,15.305400360670603,1800,14.823112654331526,2200,2776,2.2799999999999998,3.43,28,174,10,null,"Nein"]
["KBM-35H02-C",59.2,39.200000000000003,17.5,8.6999999999999993,null,null,null,null,null,null,null,null,15.48350232079725,1400,14.155427879702691,2550,13.100441253251635,3200,3869,2.2799999999999998,1.8,14.6,124,10,null,"Nein"]
["KBM-35H02-D",59.4,49.5,17.45,10.92,null,null,null,null,null,null,null,null,15.020785439916175,1850,12.441369265697876,3500,10.548641577020971,4300,4873,2.2799999999999998,1.1399999999999999,9.3000000000000007,99,10,null,"Nein"]
["KBM-35H02-E",59.4,55.4,17.100000000000001,12,null,null,null,null,null,null,null,null,14.533563583806249,2050,11.496360954248335,3850,9.1226258870120436,4700,5457,2.2799999999999998,0.94,7.4,88.4,10,null,"Nein"]
["KBM-35H02-F",59.4,69,17.3,14.92,null,null,null,null,null,null,null,null,13.873506360085971,2650,7.6956096012669395,5100,6.2689363695640994,5400,6711,2.2799999999999998,0.61,4.9000000000000004,72.099999999999994,10,null,"Nein"]
["KBM-35H02-G",59.4,86.5,17.100000000000001,18.64,null,null,null,null,null,null,null,null,12.44217172759582,3400,3.6056826762543186,5800,null,null,7068,2.2799999999999998,0.39,3.1,57,10,null,"Nein"]
["KBM-35H03-A",76.099999999999994,46.1,21.8,10.199999999999999,null,null,null,null,null,null,null,null,19.644267261628229,1400,17.188733853924695,2550,15.586916362161105,3100,3635,3.04,1.41,12,132,10,null,"Nein"]
["KBM-35H03-B",76.599999999999994,64,21.7,14,null,null,null,null,null,null,null,null,17.910753839658661,2050,13.105153077224749,3800,10.26549382942725,4800,5007,3.04,0.75,6.2,96.2,10,null,"Nein"]
["KBM-35H03-C",75.2,93,20.7,20.2,null,null,null,null,null,null,null,null,14.724399251211478,3100,5.7009300615516914,5000,null,null,6305,3.04,0.36,2.8,63.6,10,null,"Nein"]
["KBM-35H03-D",75.7,104,20,21.5,null,null,null,null,null,null,null,null,13.298799803649256,3400,null,null,null,null,4166,3.04,0.32,2.2999999999999998,57.8,10,null,"Nein"]
["KBM-35H04-A",92.3,49,25.6,10.86,null,null,null,null,null,null,null,null,22.612734314496489,1250,20.136560191191975,2300,18.416500557776462,2800,3266,3.81,1.35,11,147,10,null,"Nein"]
["KBM-35H04-B",93,61,25.9,13.3,null,null,null,null,null,null,null,null,22.117403059351133,1550,18.327948183424581,2850,16.149545696089383,3400,3968,3.81,0.9,7.6,122,10,null,"Nein"]
["KBM-35H04-C",93,68,25.3,14.7,null,null,null,null,null,null,null,null,21.088029959676135,1800,16.14699240823229,3300,11.206042017217307,4150,4520,3.81,0.73,6.1,107,10,null,"Nein"]
["KBM-35H04-D",91.5,89,24.7,19.2,null,null,null,null,null,null,null,null,18.65932552809381,2500,10.111019914073351,4250,null,null,5025,3.81,0.43,3.4,80,10,null,"Nein"]
["KBM-35H04-E",92.1,98.8,24.7,20.7,null,null,null,null,null,null,null,null,18.657856405542191,2600,6.8402026628842849,4600,null,null,5347,3.81,0.37,2.8,75,10,null,"Nein"]
["KBM-43H01-A",18,18,6.12,5.12,null,null,null,null,null,null,null,null,4.9618894022767375,2550,4.82490774847009,4750,null,null,5478,2.85,2.9,6.8,72.8,16,null,"Nein"]
["KBM-43H02-A",34.5,18,11.6,5.12,null,null,null,null,null,null,null,null,10.136945606160719,1300,9.9780405138429078,2450,6.8754935415698784,3000,3439,2.85,3.55,12,139,16,null,"Nein"]
["KBM-43H03-A",64.5,18,21,4.78,null,null,null,null,null,null,null,null,18.813539541609121,670,18.636530433018713,1240,16.182532804310163,1490,1790,4.75,4.83,19,268,16,null,"Nein"]
["KBM-45H01-A",118,46.5,30.7,10.24,null,null,null,null,null,null,null,null,27.341143907997175,950,24.99187334951591,1750,23.64587725936731,2100,2586,6.1000000000000005,1.36,21,187,10,null,"Nein"]
["KBM-45H01-B",118,57.5,30.2,12.5,null,null,null,null,null,null,null,null,26.101410667070837,1200,23.09597313705644,2150,20.720171836492035,2650,3192,6.1000000000000005,0.92,14,150,10,null,"Nein"]
["KBM-45H01-C",119,65,31.3,14.3,null,null,null,null,null,null,null,null,26.601611916788226,1400,22.23076245107594,2500,18.621128341751753,3100,3567,6.1000000000000005,0.69,11,135,10,null,"Nein"]
["KBM-45H01-D",118,93.5,29.7,20.2,null,null,null,null,null,null,null,null,22.804629703024432,2100,12.723792477454767,3700,null,null,4392,6.1000000000000005,0.35,5,91.2,10,null,"Nein"]
["KBM-45H01-E",118,105,31.2,23.4,null,null,null,null,null,null,null,null,23.167423890072417,2300,null,null,null,null,2909,6.1000000000000005,0.26,3.2,82.7,10,null,"Nein"]
["KBM-45H02-A",171,60.5,43.7,13.3,null,null,null,null,null,null,null,null,38.46847317687061,880,34.85493253712508,1600,32.565549894187811,1950,2376,9.2200000000000006,0.95,16,202,10,null,"Nein"]
["KBM-45H02-B",171,68,43.5,14.9,null,null,null,null,null,null,null,null,37.515093728803905,1050,32.769165125026028,1900,29.257419325829272,2350,2667,9.2200000000000006,0.76,12,180,10,null,"Nein"]
["KBM-45H02-C",168,97.2,41.8,21.1,null,null,null,null,null,null,null,null,33.243488738319641,1600,22.654882933908411,2900,12.34587629984274,3500,3929,9.2200000000000006,0.38,5.9,123,10,null,"Nein"]
["KBM-45H03-A",218,64.5,54.6,14.1,null,null,null,null,null,null,null,null,47.7464829275686,800,43.688031878725276,1400,40.837285986285153,1700,2011,12.200000000000001,0.93,16,240,10,null,"Nein"]
["KBM-45H03-B",216,92.5,53,19.899999999999999,null,null,null,null,null,null,null,null,45.50447416401321,1150,33.533576381687716,2150,24.699622899069141,2600,2918,12.200000000000001,0.47,7.7,165,10,null,"Nein"]
["KBM-57H01-A",46.1,18,18.8,5.67,null,null,null,null,null,null,null,null,16.00592325412811,880,13.222102964557459,1625,10.713844949600761,2050,2370,6.56,3.39,13,203,24,null,"Nein"]
["KBM-57H02-A",115,23.4,33.5,5.22,null,null,null,null,null,null,null,null,29.506253494564866,445,26.795904964199107,825,24.931661036070302,1015,1228,11.799999999999999,4.4000000000000004,22,390,24,null,"Nein"]
["KBM-57H03-A",218,26.1,59.9,5.47,null,null,null,null,null,null,null,null,53.858032742297389,250,51.264644827494706,475,49.392913373346836,580,717,22.1,5.92,35,669,24,null,"Nein"]
["KBM-60H01-A",127,40,54,13.7,null,null,null,null,null,null,null,null,38.505228167394037,310,35.571129781038607,600,24.858012674165401,1600,1895,16.299999999999997,0.91600000000000004,7.8,245,38,null,"Nein"]
["KBM-60H02-A",255,50.4,108,16.399999999999999,null,null,null,null,null,null,null,null,71.354466152866408,180,67.254331666546648,350,84.001439455620698,885,1169,31.7,0.92100000000000004,11,411,38,null,"Nein"]
["KBM-60H03-A",393,63.3,154,18.7,null,null,null,null,null,null,null,null,128.72451797272495,125,122.74824985962429,240,110.74531456811052,720,930,47.5,0.86699999999999999,11,515,38,null,"Nein"]
["KBM-79H01-A",152,20.8,43.4,4.95,null,null,null,null,null,null,null,null,38.505228167394037,310,35.571129781038607,600,33.814974895278034,730,894,32.5,6.26,23,534,32,null,"Nein"]
["KBM-79H02-A",319,26.1,79.31,5.39,null,null,null,null,null,null,null,null,71.354466152866408,180,67.254331666546648,350,64.846386115581552,430,532,59.7,6.4,32,901,32,null,"Nein"]
["KBM-79H03-A",637,36.700000000000003,143,6.76,null,null,null,null,null,null,null,null,128.72451797272495,125,122.74824985962429,240,119.2070523758296,300,369,114,5.75,34,1300,32,null,"Nein"]
["KBM-88H01-A",414,40,205,17,null,null,null,null,null,null,null,null,null,null,162.33804195373327,425,151.31962281660205,520,651,98.4,0.93,13,738,46,null,"Nein"]
["KBM-88H01-B",414,75.400000000000006,205,32,null,null,null,null,null,null,null,null,null,null,66.998273370021394,935,67.048252621692072,940,1068,98.4,0.26100000000000001,3.7,397,46,null,"Nein"]
["KBM-88H02-A",789,40,385,15,null,null,null,null,null,null,null,null,null,null,331.71240770731868,190,323.05067172269821,235,309,198,1.66,29,1560,46,null,"Nein"]
["KBM-88H02-B",789,75.400000000000006,385,31.7,null,null,null,null,null,null,null,null,null,null,273.02307055855135,440,233.08964847367582,550,654,198,0.36899999999999999,6.4,733,46,null,"Nein"]
["KBM-88H03-A",1200,53.1,538,18.100000000000001,null,null,null,null,null,null,null,null,null,null,462.41745283790686,165,443.08736156783664,225,265,298,1.41,26,1812,46,null,"Nein"]
["KBM-88H03-B",1200,106,545,35.5,null,null,null,null,null,null,null,null,null,null,400.51687418082179,345,359.5029302781636,425,511,298,0.37,7,940,46,null,"Nein"]
["KBM-118H02-A",1451,171,445,46.5,null,null,null,null,null,null,null,null,null,null,331.71240770731868,190,139.13728616498514,710,822,396,0.29199999999999998,2.7,585,38,null,"Nein"]
["KBM-118H03-A",1932,171,560,44,null,null,null,null,null,null,null,null,null,null,462.41745283790686,165,443.08736156783664,225,619,542,0.373,4.3,775,38,null,"Nein"]
["KBM-118H04-A",2400,171,672,42.8,null,null,null,null,null,null,null,null,null,null,462.41745283790686,165,450.74953525668928,420,495,648,0.45500000000000002,4.5,970,38,null,"Nein"]
["KBM-163H01-A",1966,140,776,43.2,null,null,null,null,null,null,null,null,null,null,534.60145384567647,300,440.54088247836631,375,438,1060,0.37,4.2,1100,56,null,"Nein"]
["KBM-163H02-A",2915,140,1090,40.6,null,null,null,null,null,null,null,null,null,null,843.68035333013711,200,781.87301838940914,245,291,1570,0.50900000000000001,6.3,1645,56,null,"Nein"]
["KBM-163H03-A",3930,140,1375,38.6,null,null,null,null,null,null,null,null,null,null,1115.3578411880026,150,1063.9507945693204,180,220,1680,0.64,8.4,2190,56,null,"Nein"]
["KBM-260H01-A",6494,147,1932,33.1,null,null,null,null,null,null,null,null,null,null,1710.4475354640751,85,1680.6761990504149,105,134,4880,1.06,16,3584,58,null,"Nein"]
["KBM-260H02-A",9741,147,2706,31,null,null,null,null,null,null,null,null,null,null,2428.9938042061262,55,2406.2823087173174,68,89,7190,1.48,24,5380,58,null,"Nein"]
["KBM-260H03-A",12812,147,3444,29.5,null,null,null,null,null,null,null,null,null,null,3366.1270463935866,40,3288.7777440509253,50,67,9560,1.9,32,7180,58,null,"Nein"]
["AKMH21C",1.57,7.9,0.317,1.33,null,null,null,null,null,null,null,null,0.255,8000,0.255,8000,0.255,8000,8000,0.107,13,19,19.5,6,null,"Ja"]
["AKMH22C",3.03,7,0.63300000000000001,1.18,null,null,null,null,null,null,null,null,0.58299999999999996,3500,0.4,8000,0.4,8000,8000,0.161,20,35.5,39,6,null,"Ja"]
["AKMH22E",3.07,13.7,0.65400000000000003,2.31,null,null,null,null,null,null,null,null,0.41,8000,0.41,8000,0.41,8000,8000,0.161,5.24,9.6999999999999993,20.399999999999999,6,null,"Ja"]
["AKMH23D",4.3499999999999996,11,0.89700000000000002,1.89,null,null,null,null,null,null,null,null,0.76500000000000001,5000,0.57999999999999996,8000,0.57999999999999996,8000,8000,0.216,8.7899999999999991,17.3,33.799999999999997,6,null,"Ja"]
["AKMH23E",4.37,13.9,0.90400000000000003,2.36,null,null,null,null,null,null,null,null,0.68799999999999994,6500,0.57999999999999996,8000,0.57999999999999996,8000,8000,0.216,5.46,11.1,27,6,null,"Ja"]
["AKMH23F",4.41,21.6,0.91700000000000004,3.71,null,null,null,null,null,null,null,null,0.59299999999999997,8000,0.59,8000,0.57999999999999996,8000,8000,0.216,2.36,4.68,17.600000000000001,6,null,"Ja"]
["AKMH24D",5.5,11.1,1.1200000000000001,2.41,null,null,null,null,null,null,null,null,1.04,4000,0.83,8000,0.83,8000,8000,0.27,9.0399999999999991,18.7,40.799999999999997,6,null,"Ja"]
["AKMH24E",5.51,14,1.1200000000000001,2.41,null,null,null,null,null,null,null,null,0.98099999999999998,5500,0.83,8000,0.83,8000,8000,0.27,5.46,11.8,32.4,6,null,"Ja"]
["AKMH24F",5.53,19.5,1.1299999999999999,3.38,null,null,null,null,null,null,null,null,0.83899999999999997,8000,0.84,8000,0.83,8000,8000,0.27,2.96,6.16,23.4,6,null,"Ja"]
["AKMH31C",4.41,6.9,1,1.29,null,null,null,null,null,null,null,null,0.95,2500,0.82,6000,0.82,6000,8000,0.33,21.4,37.5,54.5,8,null,"Ja"]
["AKMH31E",4.5199999999999996,15,1.04,2.76,null,null,null,null,null,null,null,null,0.86,6000,0.74,8000,0.74,8000,8000,0.33,4.76,8.6,26.1,8,null,"Ja"]
["AKMH31H",4.59,29.3,1.08,5.59,null,null,null,null,null,null,null,null,0.76,8000,0.76,8000,0.76,8000,8000,0.33,1.31,2.4,13.7,8,null,"Ja"]
["AKMH32C",8.1,7.2,1.72,1.3,null,null,null,null,null,null,null,null,1.66,1500,1.57,3000,1.52,3500,8000,0.59,23.8,46.5,89.8,8,null,"Ja"]
["AKMH32E",8.24,14.1,1.77,2.56,null,null,null,null,null,null,null,null,1.57,3500,1.1000000000000001,7000,0.92,8000,8000,0.59,6.32,12.8,47.1,8,null,"Ja"]
["AKMH32H",8.39,27.5,1.82,4.92,null,null,null,null,null,null,null,null,1.1299999999999999,7000,0.95,8000,0.95,8000,8000,0.59,1.71,3.53,24.8,8,null,"Ja"]
["AKMH33C",11.5,7.4,2.25,1.27,null,null,null,null,null,null,null,null,2.2200000000000002,1000,2.14,2000,2.09,2500,8000,0.85,26.6,53.6,120,8,null,"Ja"]
["AKMH33E",11.7,12.9,2.3199999999999998,2.2000000000000002,null,null,null,null,null,null,null,null,2.2000000000000002,2000,1.82,4500,1.72,5000,8000,0.85,9.0299999999999994,18.5,70.599999999999994,8,null,"Ja"]
["AKMH33H",11.9,28.1,2.38,4.78,null,null,null,null,null,null,null,null,1.64,5500,0.88,8000,0.88,8000,8000,0.85,1.98,4.0999999999999996,33.4,8,null,"Ja"]
["AKMH41C",6.82,7.3,1.85,1.39,null,null,null,null,null,null,null,null,1.78,1200,1.68,3000,1.65,3500,6000,0.81,21.3,66.099999999999994,86.3,10,null,"Ja"]
["AKMH41E",6.95,14.3,1.92,2.71,null,null,null,null,null,null,null,null,1.74,3000,1.44,6000,1.44,6000,6000,0.81,6.04,18.399999999999999,45.6,10,null,"Ja"]
["AKMH41H",7,28,1.96,5.32,null,null,null,null,null,null,null,null,1.47,6000,1.47,6000,1.47,6000,6000,0.81,1.58,5,23.7,10,null,"Ja"]
["AKMH42C",12.6,7,3.22,1.35,null,null,null,null,null,null,null,null,null,null,2.98,1500,2.91,2000,6000,1.45,27.5,97.4,154,10,null,"Ja"]
["AKMH42E",12.8,13.7,3.28,2.63,null,null,null,null,null,null,null,null,2.99,1800,2.72,3500,2.61,4000,6000,1.45,7.8,26.8,80.900000000000006,10,null,"Ja"]
["AKMH42H",13.1,30,3.4,5.76,null,null,null,null,null,null,null,null,2.63,4500,2.21,6000,2.21,6000,6000,1.45,1.67,6,38.299999999999997,10,null,"Ja"]
["AKMH42J",13.1,42,3.42,8.06,null,null,null,null,null,null,null,null,2.23,6000,2.23,6000,2.23,6000,6000,1.45,0.82,3.1,27.5,10,null,"Ja"]
["AKMH43E",18.3,13.7,4.5599999999999996,2.68,null,null,null,null,null,null,null,null,4.1500000000000004,1500,3.83,2500,3.68,3000,6000,2.09,8.6300000000000008,32.6,111,10,null,"Ja"]
["AKMH43H",18.7,27.2,4.68,5.24,null,null,null,null,null,null,null,null,3.77,3000,2.44,6000,2.44,6000,6000,2.09,2.12,8.8000000000000007,57.4,10,null,"Ja"]
["AKMH43L",18.399999999999999,55.8,4.59,10.9,null,null,null,null,null,null,null,null,2.39,6000,2.39,6000,2.39,6000,6000,2.09,0.56999999999999995,2,27.5,10,null,"Ja"]
["AKMH44E",23.5,14.5,5.64,2.79,null,null,null,null,null,null,null,null,5.13,1200,4.76,2000,4.5199999999999996,2500,6000,2.73,8.66,33.9,132,10,null,"Ja"]
["AKMH44H",23.5,28.1,5.77,5.49,null,null,null,null,null,null,null,null,4.59,2500,3.31,5000,2.58,6000,6000,2.73,2.25,9.1,68,10,null,"Ja"]
["AKMH44K",23.5,50.5,5.76,9.9,null,null,null,null,null,null,null,null,3.1,5000,2.5499999999999998,6000,2.5499999999999998,6000,6000,2.73,0.7,2.8,37.799999999999997,10,null,"Ja"]
["AKMH51E",15,13.8,3.47,2.38,null,null,null,null,null,null,null,null,3.28,1200,2.98,2500,2.82,3000,6000,3.42,9,36.6,110,10,null,"Ja"]
["AKMH51H",15,30,3.39,5.0199999999999996,null,null,null,null,null,null,null,null,2.75,3000,1.41,5500,1.41,5500,6000,3.42,2,7.9,51.3,10,null,"Ja"]
["AKMH51L",15.2,59.5,3.47,10,null,null,null,null,null,null,null,null,1.45,5500,1.45,5500,1.45,5500,6000,3.42,0.57999999999999996,2.1,26.6,10,null,"Ja"]
["AKMH52E",28.9,15,6.15,2.4300000000000002,null,null,null,null,null,null,null,null,null,null,5.39,1500,5.08,2000,6000,6.22,8.98,44.7,179,10,null,"Ja"]
["AKMH52H",29.1,29.5,6.29,4.8099999999999996,null,null,null,null,null,null,null,null,5.32,1800,3.44,3500,2.44,4000,6000,6.22,2.37,11.9,92.7,10,null,"Ja"]
["AKMH52L",29.5,58,6.45,9.5,null,null,null,null,null,null,null,null,3.53,3500,1.19,4500,1.19,4500,6000,6.22,0.63,3.24,48.3,10,null,"Ja"]
["AKMH52M",29.4,65.5,6.39,10.7,null,null,null,null,null,null,null,null,1.18,4500,1.18,4500,1.18,4500,6000,6.22,0.51,2.5,42.4,10,null,"Ja"]
["AKMH53H",41.8,33,8.6,5.29,null,null,null,null,null,null,null,null,null,null,4.0599999999999996,3000,2.12,3500,6000,9.1199999999999992,2.12,11.4,112,10,null,"Ja"]
["AKMH53L",42,59,8.68,9.43,null,null,null,null,null,null,null,null,4.09,3000,2.14,3500,2.14,3500,6000,9.1199999999999992,0.71,3.64,63.9,10,null,"Ja"]
["AKMH53P",41.7,95.5,8.49,15.2,null,null,null,null,null,null,null,null,2.09,3500,2.09,3500,2.09,3500,6000,9.1199999999999992,0.3,1.3,38.4,10,null,"Ja"]
["AKMH54H",53.3,27.5,10.5,4.12,null,null,null,null,null,null,null,null,9.31,1000,7.62,1800,7.09,2000,6000,11.92,3.22,18.3,166,10,null,"Ja"]
["AKMH54L",53.3,62.5,10.4,9.2899999999999991,null,null,null,null,null,null,null,null,5.13,2500,2.4700000000000002,3000,2.4700000000000002,3000,6000,11.92,0.67,3.5,72.900000000000006,10,null,"Ja"]
["AKMH54P",55.1,98,10.6,14.5,null,null,null,null,null,null,null,null,2.52,3000,2.52,3000,2.52,3000,6000,11.92,0.32,1.5,47.3,10,null,"Ja"]
["AKMH62H",39.799999999999997,27.1,10.6,5.3,null,null,null,null,null,null,null,null,10.5,1000,9.93,1800,9.86,2000,6000,16.899999999999999,3.32,25.4,142.1,10,null,"Ja"]
["AKMH62L",40.1,60,10.8,11.9,null,null,null,null,null,null,null,null,9.6,2500,4.95,5000,3.31,5500,6000,16.899999999999999,0.75700000000000001,5.4,65.5,10,null,"Ja"]
["AKMH62M",40.200000000000003,67,10.9,13.1,null,null,null,null,null,null,null,null,9.1,3000,3.33,5500,3.33,5500,6000,16.899999999999999,0.58699999999999997,4.4000000000000004,58.8,10,null,"Ja"]
["AKMH63H",57.9,28,14.6,5.2,null,null,null,null,null,null,null,null,null,null,13.6,1500,13.2,1800,6000,24.2,3.45,28.1,194.5,10,null,"Ja"]
["AKMH63L",58.4,55.4,14.8,10.6,null,null,null,null,null,null,null,null,13.4,1800,11.1,3000,9.6,3500,6000,24.2,0.95699999999999996,7.4,98.2,10,null,"Ja"]
["AKMH63M",58.8,69,15,13,null,null,null,null,null,null,null,null,13.3,2000,7.9,4000,5.7,4500,6000,24.2,0.627,4.9000000000000004,79.900000000000006,10,null,"Ja"]
["AKMH64K",75.099999999999994,46,18.7,8.6999999999999993,null,null,null,null,null,null,null,null,17.100000000000001,1200,15.6,2000,14.2,2500,6000,31.6,1.43,11.8,147,10,null,"Ja"]
["AKMH64L",75.599999999999994,64,19,12.1,null,null,null,null,null,null,null,null,16.8,1500,12.5,3000,10,3500,6000,31.6,0.76700000000000002,6.2,107,10,null,"Ja"]
["AKMH65K",91.4,49,21.9,9.1,null,null,null,null,null,null,null,null,20.100000000000001,1000,17.7,2000,17.100000000000001,2200,6000,40,1.35,11.4,164,10,null,"Ja"]
["AKMH65L",92,61,22.2,11.1,null,null,null,null,null,null,null,null,19.7,1300,16,2500,14.5,2800,6000,40,1.07,7.6,133,10,null,"Ja"]
["AKMH65M",92,68,22.2,12.6,null,null,null,null,null,null,null,null,19.399999999999999,1500,16.100000000000001,2500,13.5,3000,6000,40,0.747,6.1,119,10,null,"Ja"]
["VLM21C",1.66,6,0.48,1.49,null,null,null,null,null,null,0.44,3500,0.41,6000,null,null,null,null,6000,0.42899999999999999,10.4,12.1,20.8,6,null,"Ja"]
["VLM21E",1.65,12,0.47,2.99,null,null,null,null,0.44,3000,0.41,6000,null,null,null,null,null,null,6000,0.42899999999999999,2.6,3,10.4,6,null,"Ja"]
["VLM22C",2.91,6.8,0.81,1.69,null,null,null,null,null,null,0.69,2500,0.51,6000,null,null,null,null,6000,0.63300000000000001,8.8000000000000007,12.1,31.2,6,null,"Ja"]
["VLM22E",2.94,13.3,0.83,3.34,null,null,null,null,0.73,2000,0.52,6000,null,null,null,null,null,null,6000,0.63300000000000001,2.2999999999999998,3.2,16.100000000000001,6,null,"Ja"]
["VLM23D",4.2,9.8000000000000007,1.18,2.4500000000000002,null,null,null,null,null,null,0.94,3000,0.6,6000,null,null,null,null,6000,0.81899999999999995,4.7,7.7,31.2,6,null,"Ja"]
["VLM23G",4.2,19.600000000000001,1.18,4.91,null,null,null,null,1,2500,0.6,6000,null,null,null,null,null,null,6000,0.81899999999999995,1.2,1.9,15.6,6,null,"Ja"]
["VLM31E",6.4,11.3,1.96,2.84,null,null,null,null,null,null,1.8,2000,1.63,4000,null,null,null,null,6000,1.79,4.3,11.7,45.9,6,null,"Ja"]
["VLM31H",6.4,22.9,1.95,5.72,null,null,null,null,1.82,1750,1.62,4000,null,null,null,null,null,null,6000,1.79,1.1000000000000001,2.8,22.6,6,null,"Ja"]
["VLM32H",12,21.1,3.55,5.26,null,null,null,null,null,null,3.26,2000,2.86,4500,null,null,null,null,6000,3.37,1.6,5,45.2,6,null,"Ja"]
["VLM32J",11.9,33.700000000000003,3.51,8.43,null,null,null,null,3.32,1500,3,3500,null,null,null,null,null,null,6000,3.37,0.7,1.9,27.9,6,null,"Ja"]
["VLM33J",15.9,28.9,4.53,7.23,null,null,null,null,null,null,3.93,2250,2.37,5000,null,null,null,null,6000,4.84,0.85,2.7,41.9,6,null,"Ja"]
["tbd",null,null,null,null,null,null,null,null,null,null,null,null,null,null,null,null,null,null,null,null,null,null,null,null,null,"Nein"]
["tbd",null,null,null,null,null,null,null,null,null,null,null,null,null,null,null,null,null,null,null,null,null,null,null,null,null,"Nein"]
["tbd",null,null,null,null,null,null,null,null,null,null,null,null,null,null,null,null,null,null,null,null,null,null,null,null,null,"Nein"]
["tbd",null,null,null,null,null,null,null,null,null,null,null,null,null,null,null,null,null,null,null,null,null,null,null,null,null,"Nein"]
["tbd",null,null,null,null,null,null,null,null,null,null,null,null,null,null,null,null,null,null,null,null,null,null,null,null,null,"Nein"]
["tbd",null,null,null,null,null,null,null,null,null,null,null,null,null,null,null,null,null,null,null,null,null,null,null,null,null,"Nein"]
["tbd",null,null,null,null,null,null,null,null,null,null,null,null,null,null,null,null,null,null,null,null,null,null,null,null,null,"Nein"]
["tbd",null,null,null,null,null,null,null,null,null,null,null,null,null,null,null,null,null,null,null,null,null,null,null,null,null,"Nein"]
["tbd",null,null,null,null,null,null,null,null,null,null,null,null,null,null,null,null,null,null,null,null,null,null,null,null,null,"Nein"]
["tbd",null,null,null,null,null,null,null,null,null,null,null,null,null,null,null,null,null,null,null,null,null,null,null,null,null,"Nein"]
["tbd",null,null,null,null,null,null,null,null,null,null,null,null,null,null,null,null,null,null,null,null,null,null,null,null,null,"Nein"]
["tbd",null,null,null,null,null,null,null,null,null,null,null,null,null,null,null,null,null,null,null,null,null,null,null,null,null,"Nein"]
["tbd",null,null,null,null,null,null,null,null,null,null,null,null,null,null,null,null,null,null,null,null,null,null,null,null,null,"Nein"]
["tbd",null,null,null,null,null,null,null,null,null,null,null,null,null,null,null,null,null,null,null,null,null,null,null,null,null,"Nein"]
["tbd",null,null,null,null,null,null,null,null,null,null,null,null,null,null,null,null,null,null,null,null,null,null,null,null,null,"Nein"]
["tbd",null,null,null,null,null,null,null,null,null,null,null,null,null,null,null,null,null,null,null,null,null,null,null,null,null,"Nein"]
["tbd",null,null,null,null,null,null,null,null,null,null,null,null,null,null,null,null,null,null,null,null,null,null,null,null,null,"Nein"]
["tbd",null,null,null,null,null,null,null,null,null,null,null,null,null,null,null,null,null,null,null,null,null,null,null,null,null,"Nein"]
["tbd",null,null,null,null,null,null,null,null,null,null,null,null,null,null,null,null,null,null,null,null,null,null,null,null,null,"Nein"]
["tbd",null,null,null,null,null,null,null,null,null,null,null,null,null,null,null,null,null,null,null,null,null,null,null,null,null,"Nein"]
["tbd",null,null,null,null,null,null,null,null,null,null,null,null,null,null,null,null,null,null,null,null,null,null,null,null,null,"Nein"]
["tbd",null,null,null,null,null,null,null,null,null,null,null,null,null,null,null,null,null,null,null,null,null,null,null,null,null,"Nein"]
["tbd",null,null,null,null,null,null,null,null,null,null,null,null,null,null,null,null,null,null,null,null,null,null,null,null,null,"Nein"]
["tbd",null,null,null,null,null,null,null,null,null,null,null,null,null,null,null,null,null,null,null,null,null,null,null,null,null,"Nein"]
["tbd",null,null,null,null,null,null,null,null,null,null,null,null,null,null,null,null,null,null,null,null,null,null,null,null,null,"Nein"]
["tbd",null,null,null,null,null,null,null,null,null,null,null,null,null,null,null,null,null,null,null,null,null,null,null,null,null,"Nein"]
["tbd",null,null,null,null,null,null,null,null,null,null,null,null,null,null,null,null,null,null,null,null,null,null,null,null,null,"Nein"]
["tbd",null,null,null,null,null,null,null,null,null,null,null,null,null,null,null,null,null,null,null,null,null,null,null,null,null,"Nein"]
["tbd",null,null,null,null,null,null,null,null,null,null,null,null,null,null,null,null,null,null,null,null,null,null,null,null,null,"Nein"]
["tbd",null,null,null,null,null,null,null,null,null,null,null,null,null,null,null,null,null,null,null,null,null,null,null,null,null,"Nein"]
["tbd",null,null,null,null,null,null,null,null,null,null,null,null,null,null,null,null,null,null,null,null,null,null,null,null,null,"Nein"]
["tbd",null,null,null,null,null,null,null,null,null,null,null,null,null,null,null,null,null,null,null,null,null,null,null,null,null,"Nein"]
["tbd",null,null,null,null,null,null,null,null,null,null,null,null,null,null,null,null,null,null,null,null,null,null,null,null,null,"Nein"]
["tbd",null,null,null,null,null,null,null,null,null,null,null,null,null,null,null,null,null,null,null,null,null,null,null,null,null,"Nein"]
["tbd",null,null,null,null,null,null,null,null,null,null,null,null,null,null,null,null,null,null,null,null,null,null,null,null,null,"Nein"]
["tbd",null,null,null,null,null,null,null,null,null,null,null,null,null,null,null,null,null,null,null,null,null,null,null,null,null,"Nein"]
["tbd",null,null,null,null,null,null,null,null,null,null,null,null,null,null,null,null,null,null,null,null,null,null,null,null,null,"Nein"]
["tbd",null,null,null,null,null,null,null,null,null,null,null,null,null,null,null,null,null,null,null,null,null,null,null,null,null,"Nein"]
["tbd",null,null,null,null,null,null,null,null,null,null,null,null,null,null,null,null,null,null,null,null,null,null,null,null,null,"Nein"]
["tbd",null,null,null,null,null,null,null,null,null,null,null,null,null,null,null,null,null,null,null,null,null,null,null,null,null,"Nein"]
["tbd",null,null,null,null,null,null,null,null,null,null,null,null,null,null,null,null,null,null,null,null,null,null,null,null,null,"Nein"]
["tbd",null,null,null,null,null,null,null,null,null,null,null,null,null,null,null,null,null,null,null,null,null,null,null,null,null,"Nein"]
["tbd",null,null,null,null,null,null,null,null,null,null,null,null,null,null,null,null,null,null,null,null,null,null,null,null,null,"Nein"]
["tbd",null,null,null,null,null,null,null,null,null,null,null,null,null,null,null,null,null,null,null,null,null,null,null,null,null,"Nein"]
["tbd",null,null,null,null,null,null,null,null,null,null,null,null,null,null,null,null,null,null,null,null,null,null,null,null,null,"Nein"]
["tbd",null,null,null,null,null,null,null,null,null,null,null,null,null,null,null,null,null,null,null,null,null,null,null,null,null,"Nein"]
["tbd",null,null,null,null,null,null,null,null,null,null,null,null,null,null,null,null,null,null,null,null,null,null,null,null,null,"Nein"]
["tbd",null,null,null,null,null,null,null,null,null,null,null,null,null,null,null,null,null,null,null,null,null,null,null,null,null,"Nein"]
["tbd",null,null,null,null,null,null,null,null,null,null,null,null,null,null,null,null,null,null,null,null,null,null,null,null,null,"Nein"]
["tbd",null,null,null,null,null,null,null,null,null,null,null,null,null,null,null,null,null,null,null,null,null,null,null,null,null,"Nein"]
["tbd",null,null,null,null,null,null,null,null,null,null,null,null,null,null,null,null,null,null,null,null,null,null,null,null,null,"Nein"]
["tbd",null,null,null,null,null,null,null,null,null,null,null,null,null,null,null,null,null,null,null,null,null,null,null,null,null,"Nein"]
["tbd",null,null,null,null,null,null,null,null,null,null,null,null,null,null,null,null,null,null,null,null,null,null,null,null,null,"Nein"]
["tbd",null,null,null,null,null,null,null,null,null,null,null,null,null,null,null,null,null,null,null,null,null,null,null,null,null,"Nein"]
["tbd",null,null,null,null,null,null,null,null,null,null,null,null,null,null,null,null,null,null,null,null,null,null,null,null,null,"Nein"]
["tbd",null,null,null,null,null,null,null,null,null,null,null,null,null,null,null,null,null,null,null,null,null,null,null,null,null,"Nein"]
["tbd",null,null,null,null,null,null,null,null,null,null,null,null,null,null,null,null,null,null,null,null,null,null,null,null,null,"Nein"]
["tbd",null,null,null,null,null,null,null,null,null,null,null,null,null,null,null,null,null,null,null,null,null,null,null,null,null,"Nein"]
["tbd",null,null,null,null,null,null,null,null,null,null,null,null,null,null,null,null,null,null,null,null,null,null,null,null,null,"Nein"]
["tbd",null,null,null,null,null,null,null,null,null,null,null,null,null,null,null,null,null,null,null,null,null,null,null,null,null,"Nein"]
["tbd",null,null,null,null,null,null,null,null,null,null,null,null,null,null,null,null,null,null,null,null,null,null,null,null,null,"Nein"]
["tbd",null,null,null,null,null,null,null,null,null,null,null,null,null,null,null,null,null,null,null,null,null,null,null,null,null,"Nein"]
["tbd",null,null,null,null,null,null,null,null,null,null,null,null,null,null,null,null,null,null,null,null,null,null,null,null,null,"Nein"]
["tbd",null,null,null,null,null,null,null,null,null,null,null,null,null,null,null,null,null,null,null,null,null,null,null,null,null,"Nein"]
["tbd",null,null,null,null,null,null,null,null,null,null,null,null,null,null,null,null,null,null,null,null,null,null,null,null,null,"Nein"]
["tbd",null,null,null,null,null,null,null,null,null,null,null,null,null,null,null,null,null,null,null,null,null,null,null,null,null,"Nein"]
["tbd",null,null,null,null,null,null,null,null,null,null,null,null,null,null,null,null,null,null,null,null,null,null,null,null,null,"Nein"]
["tbd",null,null,null,null,null,null,null,null,null,null,null,null,null,null,null,null,null,null,null,null,null,null,null,null,null,"Nein"]
["tbd",null,null,null,null,null,null,null,null,null,null,null,null,null,null,null,null,null,null,null,null,null,null,null,null,null,"Nein"]
["tbd",null,null,null,null,null,null,null,null,null,null,null,null,null,null,null,null,null,null,null,null,null,null,null,null,null,"Nein"]
["tbd",null,null,null,null,null,null,null,null,null,null,null,null,null,null,null,null,null,null,null,null,null,null,null,null,null,"Nein"]
["tbd",null,null,null,null,null,null,null,null,null,null,null,null,null,null,null,null,null,null,null,null,null,null,null,null,null,"Nein"]
["tbd",null,null,null,null,null,null,null,null,null,null,null,null,null,null,null,null,null,null,null,null,null,null,null,null,null,"Nein"]
["tbd",null,null,null,null,null,null,null,null,null,null,null,null,null,null,null,null,null,null,null,null,null,null,null,null,null,"Nein"]
["tbd",null,null,null,null,null,null,null,null,null,null,null,null,null,null,null,null,null,null,null,null,null,null,null,null,null,"Nein"]
["tbd",null,null,null,null,null,null,null,null,null,null,null,null,null,null,null,null,null,null,null,null,null,null,null,null,null,"Nein"]
["tbd",null,null,null,null,null,null,null,null,null,null,null,null,null,null,null,null,null,null,null,null,null,null,null,null,null,"Nein"]
["tbd",null,null,null,null,null,null,null,null,null,null,null,null,null,null,null,null,null,null,null,null,null,null,null,null,null,"Nein"]
["tbd",null,null,null,null,null,null,null,null,null,null,null,null,null,null,null,null,null,null,null,null,null,null,null,null,null,"Nein"]
["tbd",null,null,null,null,null,null,null,null,null,null,null,null,null,null,null,null,null,null,null,null,null,null,null,null,null,"Nein"]
["tbd",null,null,null,null,null,null,null,null,null,null,null,null,null,null,null,null,null,null,null,null,null,null,null,null,null,"Nein"]
["tbd",null,null,null,null,null,null,null,null,null,null,null,null,null,null,null,null,null,null,null,null,null,null,null,null,null,"Nein"]
["tbd",null,null,null,null,null,null,null,null,null,null,null,null,null,null,null,null,null,null,null,null,null,null,null,null,null,"Nein"]
["tbd",null,null,null,null,null,null,null,null,null,null,null,null,null,null,null,null,null,null,null,null,null,null,null,null,null,"Nein"]
["tbd",null,null,null,null,null,null,null,null,null,null,null,null,null,null,null,null,null,null,null,null,null,null,null,null,null,"Nein"]
["tbd",null,null,null,null,null,null,null,null,null,null,null,null,null,null,null,null,null,null,null,null,null,null,null,null,null,"Nein"]
["tbd",null,null,null,null,null,null,null,null,null,null,null,null,null,null,null,null,null,null,null,null,null,null,null,null,null,"Nein"]
["tbd",null,null,null,null,null,null,null,null,null,null,null,null,null,null,null,null,null,null,null,null,null,null,null,null,null,"Nein"]
["tbd",null,null,null,null,null,null,null,null,null,null,null,null,null,null,null,null,null,null,null,null,null,null,null,null,null,"Nein"]
["tbd",null,null,null,null,null,null,null,null,null,null,null,null,null,null,null,null,null,null,null,null,null,null,null,null,null,"Nein"]
["tbd",null,null,null,null,null,null,null,null,null,null,null,null,null,null,null,null,null,null,null,null,null,null,null,null,null,"Nein"]
["tbd",null,null,null,null,null,null,null,null,null,null,null,null,null,null,null,null,null,null,null,null,null,null,null,null,null,"Nein"]
["tbd",null,null,null,null,null,null,null,null,null,null,null,null,null,null,null,null,null,null,null,null,null,null,null,null,null,"Nein"]
["tbd",null,null,null,null,null,null,null,null,null,null,null,null,null,null,null,null,null,null,null,null,null,null,null,null,null,"Nein"]
["tbd",null,null,null,null,null,null,null,null,null,null,null,null,null,null,null,null,null,null,null,null,null,null,null,null,null,"Nein"]
["tbd",null,null,null,null,null,null,null,null,null,null,null,null,null,null,null,null,null,null,null,null,null,null,null,null,null,"Nein"]
["tbd",null,null,null,null,null,null,null,null,null,null,null,null,null,null,null,null,null,null,null,null,null,null,null,null,null,"Nein"]
["tbd",null,null,null,null,null,null,null,null,null,null,null,null,null,null,null,null,null,null,null,null,null,null,null,null,null,"Nein"]
["tbd",null,null,null,null,null,null,null,null,null,null,null,null,null,null,null,null,null,null,null,null,null,null,null,null,null,"Nein"]
["tbd",null,null,null,null,null,null,null,null,null,null,null,null,null,null,null,null,null,null,null,null,null,null,null,null,null,"Nein"]
["tbd",null,null,null,null,null,null,null,null,null,null,null,null,null,null,null,null,null,null,null,null,null,null,null,null,null,"Nein"]
["tbd",null,null,null,null,null,null,null,null,null,null,null,null,null,null,null,null,null,null,null,null,null,null,null,null,null,"Nein"]
["tbd",null,null,null,null,null,null,null,null,null,null,null,null,null,null,null,null,null,null,null,null,null,null,null,null,null,"Nein"]
["tbd",null,null,null,null,null,null,null,null,null,null,null,null,null,null,null,null,null,null,null,null,null,null,null,null,null,"Nein"]
["tbd",null,null,null,null,null,null,null,null,null,null,null,null,null,null,null,null,null,null,null,null,null,null,null,null,null,"Nein"]
["tbd",null,null,null,null,null,null,null,null,null,null,null,null,null,null,null,null,null,null,null,null,null,null,null,null,null,"Nein"]
["tbd",null,null,null,null,null,null,null,null,null,null,null,null,null,null,null,null,null,null,null,null,null,null,null,null,null,"Nein"]
["tbd",null,null,null,null,null,null,null,null,null,null,null,null,null,null,null,null,null,null,null,null,null,null,null,null,null,"Nein"]
["tbd",null,null,null,null,null,null,null,null,null,null,null,null,null,null,null,null,null,null,null,null,null,null,null,null,null,"Nein"]
["tbd",null,null,null,null,null,null,null,null,null,null,null,null,null,null,null,null,null,null,null,null,null,null,null,null,null,"Nein"]
["tbd",null,null,null,null,null,null,null,null,null,null,null,null,null,null,null,null,null,null,null,null,null,null,null,null,null,"Nein"]
["tbd",null,null,null,null,null,null,null,null,null,null,null,null,null,null,null,null,null,null,null,null,null,null,null,null,null,"Nein"]
["tbd",null,null,null,null,null,null,null,null,null,null,null,null,null,null,null,null,null,null,null,null,null,null,null,null,null,"Nein"]
["tbd",null,null,null,null,null,null,null,null,null,null,null,null,null,null,null,null,null,null,null,null,null,null,null,null,null,"Nein"]
["tbd",null,null,null,null,null,null,null,null,null,null,null,null,null,null,null,null,null,null,null,null,null,null,null,null,null,"Nein"]
["tbd",null,null,null,null,null,null,null,null,null,null,null,null,null,null,null,null,null,null,null,null,null,null,null,null,null,"Nein"]
["tbd",null,null,null,null,null,null,null,null,null,null,null,null,null,null,null,null,null,null,null,null,null,null,null,null,null,"Nein"]
["tbd",null,null,null,null,null,null,null,null,null,null,null,null,null,null,null,null,null,null,null,null,null,null,null,null,null,"Nein"]
["tbd",null,null,null,null,null,null,null,null,null,null,null,null,null,null,null,null,null,null,null,null,null,null,null,null,null,"Nein"]
["tbd",null,null,null,null,null,null,null,null,null,null,null,null,null,null,null,null,null,null,null,null,null,null,null,null,null,"Nein"]
["tbd",null,null,null,null,null,null,null,null,null,null,null,null,null,null,null,null,null,null,null,null,null,null,null,null,null,"Nein"]
["tbd",null,null,null,null,null,null,null,null,null,null,null,null,null,null,null,null,null,null,null,null,null,null,null,null,null,"Nein"]
["tbd",null,null,null,null,null,null,null,null,null,null,null,null,null,null,null,null,null,null,null,null,null,null,null,null,null,"Nein"]
["tbd",null,null,null,null,null,null,null,null,null,null,null,null,null,null,null,null,null,null,null,null,null,null,null,null,null,"Nein"]
["tbd",null,null,null,null,null,null,null,null,null,null,null,null,null,null,null,null,null,null,null,null,null,null,null,null,null,"Nein"]
["tbd",null,null,null,null,null,null,null,null,null,null,null,null,null,null,null,null,null,null,null,null,null,null,null,null,null,"Nein"]
["tbd",null,null,null,null,null,null,null,null,null,null,null,null,null,null,null,null,null,null,null,null,null,null,null,null,null,"Nein"]
["tbd",null,null,null,null,null,null,null,null,null,null,null,null,null,null,null,null,null,null,null,null,null,null,null,null,null,"Nein"]
["tbd",null,null,null,null,null,null,null,null,null,null,null,null,null,null,null,null,null,null,null,null,null,null,null,null,null,"Nein"]
["tbd",null,null,null,null,null,null,null,null,null,null,null,null,null,null,null,null,null,null,null,null,null,null,null,null,null,"Nein"]
["tbd",null,null,null,null,null,null,null,null,null,null,null,null,null,null,null,null,null,null,null,null,null,null,null,null,null,"Nein"]
["tbd",null,null,null,null,null,null,null,null,null,null,null,null,null,null,null,null,null,null,null,null,null,null,null,null,null,"Nein"]
["tbd",null,null,null,null,null,null,null,null,null,null,null,null,null,null,null,null,null,null,null,null,null,null,null,null,null,"Nein"]
["tbd",null,null,null,null,null,null,null,null,null,null,null,null,null,null,null,null,null,null,null,null,null,null,null,null,null,"Nein"]
["tbd",null,null,null,null,null,null,null,null,null,null,null,null,null,null,null,null,null,null,null,null,null,null,null,null,null,"Nein"]
["tbd",null,null,null,null,null,null,null,null,null,null,null,null,null,null,null,null,null,null,null,null,null,null,null,null,null,"Nein"]
["tbd",null,null,null,null,null,null,null,null,null,null,null,null,null,null,null,null,null,null,null,null,null,null,null,null,null,"Nein"]
["tbd",null,null,null,null,null,null,null,null,null,null,null,null,null,null,null,null,null,null,null,null,null,null,null,null,null,"Nein"]
["tbd",null,null,null,null,null,null,null,null,null,null,null,null,null,null,null,null,null,null,null,null,null,null,null,null,null,"Nein"]
["tbd",null,null,null,null,null,null,null,null,null,null,null,null,null,null,null,null,null,null,null,null,null,null,null,null,null,"Nein"]
["tbd",null,null,null,null,null,null,null,null,null,null,null,null,null,null,null,null,null,null,null,null,null,null,null,null,null,"Nein"]
["tbd",null,null,null,null,null,null,null,null,null,null,null,null,null,null,null,null,null,null,null,null,null,null,null,null,null,"Nein"]
["tbd",null,null,null,null,null,null,null,null,null,null,null,null,null,null,null,null,null,null,null,null,null,null,null,null,null,"Nein"]
["tbd",null,null,null,null,null,null,null,null,null,null,null,null,null,null,null,null,null,null,null,null,null,null,null,null,null,"Nein"]
["tbd",null,null,null,null,null,null,null,null,null,null,null,null,null,null,null,null,null,null,null,null,null,null,null,null,null,"Nein"]
["tbd",null,null,null,null,null,null,null,null,null,null,null,null,null,null,null,null,null,null,null,null,null,null,null,null,null,"Nein"]
["tbd",null,null,null,null,null,null,null,null,null,null,null,null,null,null,null,null,null,null,null,null,null,null,null,null,null,"Nein"]
["tbd",null,null,null,null,null,null,null,null,null,null,null,null,null,null,null,null,null,null,null,null,null,null,null,null,null,"Nein"]
["tbd",null,null,null,null,null,null,null,null,null,null,null,null,null,null,null,null,null,null,null,null,null,null,null,null,null,"Nein"]
["tbd",null,null,null,null,null,null,null,null,null,null,null,null,null,null,null,null,null,null,null,null,null,null,null,null,null,"Nein"]
["tbd",null,null,null,null,null,null,null,null,null,null,null,null,null,null,null,null,null,null,null,null,null,null,null,null,null,"Nein"]
["tbd",null,null,null,null,null,null,null,null,null,null,null,null,null,null,null,null,null,null,null,null,null,null,null,null,null,"Nein"]
["tbd",null,null,null,null,null,null,null,null,null,null,null,null,null,null,null,null,null,null,null,null,null,null,null,null,null,"Nein"]
["tbd",null,null,null,null,null,null,null,null,null,null,null,null,null,null,null,null,null,null,null,null,null,null,null,null,null,"Nein"]
["tbd",null,null,null,null,null,null,null,null,null,null,null,null,null,null,null,null,null,null,null,null,null,null,null,null,null,"Nein"]
["tbd",null,null,null,null,null,null,null,null,null,null,null,null,null,null,null,null,null,null,null,null,null,null,null,null,null,"Nein"]
["tbd",null,null,null,null,null,null,null,null,null,null,null,null,null,null,null,null,null,null,null,null,null,null,null,null,null,"Nein"]
["tbd",null,null,null,null,null,null,null,null,null,null,null,null,null,null,null,null,null,null,null,null,null,null,null,null,null,"Nein"]
["tbd",null,null,null,null,null,null,null,null,null,null,null,null,null,null,null,null,null,null,null,null,null,null,null,null,null,"Nein"]
["tbd",null,null,null,null,null,null,null,null,null,null,null,null,null,null,null,null,null,null,null,null,null,null,null,null,null,"Nein"]
["tbd",null,null,null,null,null,null,null,null,null,null,null,null,null,null,null,null,null,null,null,null,null,null,null,null,null,"Nein"]
["tbd",null,null,null,null,null,null,null,null,null,null,null,null,null,null,null,null,null,null,null,null,null,null,null,null,null,"Nein"]
["tbd",null,null,null,null,null,null,null,null,null,null,null,null,null,null,null,null,null,null,null,null,null,null,null,null,null,"Nein"]
["tbd",null,null,null,null,null,null,null,null,null,null,null,null,null,null,null,null,null,null,null,null,null,null,null,null,null,"Nein"]
["tbd",null,null,null,null,null,null,null,null,null,null,null,null,null,null,null,null,null,null,null,null,null,null,null,null,null,"Nein"]
["tbd",null,null,null,null,null,null,null,null,null,null,null,null,null,null,null,null,null,null,null,null,null,null,null,null,null,"Nein"]
["tbd",null,null,null,null,null,null,null,null,null,null,null,null,null,null,null,null,null,null,null,null,null,null,null,null,null,"Nein"]
["tbd",null,null,null,null,null,null,null,null,null,null,null,null,null,null,null,null,null,null,null,null,null,null,null,null,null,"Nein"]
["tbd",null,null,null,null,null,null,null,null,null,null,null,null,null,null,null,null,null,null,null,null,null,null,null,null,null,"Nein"]
["tbd",null,null,null,null,null,null,null,null,null,null,null,null,null,null,null,null,null,null,null,null,null,null,null,null,null,"Nein"]
["tbd",null,null,null,null,null,null,null,null,null,null,null,null,null,null,null,null,null,null,null,null,null,null,null,null,null,"Nein"]
["tbd",null,null,null,null,null,null,null,null,null,null,null,null,null,null,null,null,null,null,null,null,null,null,null,null,null,"Nein"]
["tbd",null,null,null,null,null,null,null,null,null,null,null,null,null,null,null,null,null,null,null,null,null,null,null,null,null,"Nein"]
["tbd",null,null,null,null,null,null,null,null,null,null,null,null,null,null,null,null,null,null,null,null,null,null,null,null,null,"Nein"]
["tbd",null,null,null,null,null,null,null,null,null,null,null,null,null,null,null,null,null,null,null,null,null,null,null,null,null,"Nein"]
["tbd",null,null,null,null,null,null,null,null,null,null,null,null,null,null,null,null,null,null,null,null,null,null,null,null,null,"Nein"]
["tbd",null,null,null,null,null,null,null,null,null,null,null,null,null,null,null,null,null,null,null,null,null,null,null,null,null,"Nein"]
["tbd",null,null,null,null,null,null,null,null,null,null,null,null,null,null,null,null,null,null,null,null,null,null,null,null,null,"Nein"]
["tbd",null,null,null,null,null,null,null,null,null,null,null,null,null,null,null,null,null,null,null,null,null,null,null,null,null,"Nein"]
["tbd",null,null,null,null,null,null,null,null,null,null,null,null,null,null,null,null,null,null,null,null,null,null,null,null,null,"Nein"]
["tbd",null,null,null,null,null,null,null,null,null,null,null,null,null,null,null,null,null,null,null,null,null,null,null,null,null,"Nein"]
["tbd",null,null,null,null,null,null,null,null,null,null,null,null,null,null,null,null,null,null,null,null,null,null,null,null,null,"Nein"]
["tbd",null,null,null,null,null,null,null,null,null,null,null,null,null,null,null,null,null,null,null,null,null,null,null,null,null,"Nein"]
["tbd",null,null,null,null,null,null,null,null,null,null,null,null,null,null,null,null,null,null,null,null,null,null,null,null,null,"Nein"]
["tbd",null,null,null,null,null,null,null,null,null,null,null,null,null,null,null,null,null,null,null,null,null,null,null,null,null,"Nein"]
["tbd",null,null,null,null,null,null,null,null,null,null,null,null,null,null,null,null,null,null,null,null,null,null,null,null,null,"Nein"]
["tbd",null,null,null,null,null,null,null,null,null,null,null,null,null,null,null,null,null,null,null,null,null,null,null,null,null,"Nein"]
["tbd",null,null,null,null,null,null,null,null,null,null,null,null,null,null,null,null,null,null,null,null,null,null,null,null,null,"Nein"]
["tbd",null,null,null,null,null,null,null,null,null,null,null,null,null,null,null,null,null,null,null,null,null,null,null,null,null,"Nein"]
["tbd",null,null,null,null,null,null,null,null,null,null,null,null,null,null,null,null,null,null,null,null,null,null,null,null,null,"Nein"]
["tbd",null,null,null,null,null,null,null,null,null,null,null,null,null,null,null,null,null,null,null,null,null,null,null,null,null,"Nein"]
["tbd",null,null,null,null,null,null,null,null,null,null,null,null,null,null,null,null,null,null,null,null,null,null,null,null,null,"Nein"]
["tbd",null,null,null,null,null,null,null,null,null,null,null,null,null,null,null,null,null,null,null,null,null,null,null,null,null,"Nein"]
["tbd",null,null,null,null,null,null,null,null,null,null,null,null,null,null,null,null,null,null,null,null,null,null,null,null,null,"Nein"]
["tbd",null,null,null,null,null,null,null,null,null,null,null,null,null,null,null,null,null,null,null,null,null,null,null,null,null,"Nein"]
["tbd",null,null,null,null,null,null,null,null,null,null,null,null,null,null,null,null,null,null,null,null,null,null,null,null,null,"Nein"]
["tbd",null,null,null,null,null,null,null,null,null,null,null,null,null,null,null,null,null,null,null,null,null,null,null,null,null,"Nein"]
["tbd",null,null,null,null,null,null,null,null,null,null,null,null,null,null,null,null,null,null,null,null,null,null,null,null,null,"Nein"]
["tbd",null,null,null,null,null,null,null,null,null,null,null,null,null,null,null,null,null,null,null,null,null,null,null,null,null,"Nein"]
["tbd",null,null,null,null,null,null,null,null,null,null,null,null,null,null,null,null,null,null,null,null,null,null,null,null,null,"Nein"]
["tbd",null,null,null,null,null,null,null,null,null,null,null,null,null,null,null,null,null,null,null,null,null,null,null,null,null,"Nein"]
["tbd",null,null,null,null,null,null,null,null,null,null,null,null,null,null,null,null,null,null,null,null,null,null,null,null,null,"Nein"]
["tbd",null,null,null,null,null,null,null,null,null,null,null,null,null,null,null,null,null,null,null,null,null,null,null,null,null,"Nein"]
["tbd",null,null,null,null,null,null,null,null,null,null,null,null,null,null,null,null,null,null,null,null,null,null,null,null,null,"Nein"]
["tbd",null,null,null,null,null,null,null,null,null,null,null,null,null,null,null,null,null,null,null,null,null,null,null,null,null,"Nein"]
["tbd",null,null,null,null,null,null,null,null,null,null,null,null,null,null,null,null,null,null,null,null,null,null,null,null,null,"Nein"]
["tbd",null,null,null,null,null,null,null,null,null,null,null,null,null,null,null,null,null,null,null,null,null,null,null,null,null,"Nein"]
["tbd",null,null,null,null,null,null,null,null,null,null,null,null,null,null,null,null,null,null,null,null,null,null,null,null,null,"Nein"]
["tbd",null,null,null,null,null,null,null,null,null,null,null,null,null,null,null,null,null,null,null,null,null,null,null,null,null,"Nein"]
["tbd",null,null,null,null,null,null,null,null,null,null,null,null,null,null,null,null,null,null,null,null,null,null,null,null,null,"Nein"]
["tbd",null,null,null,null,null,null,null,null,null,null,null,null,null,null,null,null,null,null,null,null,null,null,null,null,null,"Nein"]
["tbd",null,null,null,null,null,null,null,null,null,null,null,null,null,null,null,null,null,null,null,null,null,null,null,null,null,"Nein"]
["tbd",null,null,null,null,null,null,null,null,null,null,null,null,null,null,null,null,null,null,null,null,null,null,null,null,null,"Nein"]
["tbd",null,null,null,null,null,null,null,null,null,null,null,null,null,null,null,null,null,null,null,null,null,null,null,null,null,"Nein"]
["tbd",null,null,null,null,null,null,null,null,null,null,null,null,null,null,null,null,null,null,null,null,null,null,null,null,null,"Nein"]
["tbd",null,null,null,null,null,null,null,null,null,null,null,null,null,null,null,null,null,null,null,null,null,null,null,null,null,"Nein"]
["tbd",null,null,null,null,null,null,null,null,null,null,null,null,null,null,null,null,null,null,null,null,null,null,null,null,null,"Nein"]
["tbd",null,null,null,null,null,null,null,null,null,null,null,null,null,null,null,null,null,null,null,null,null,null,null,null,null,"Nein"]
["tbd",null,null,null,null,null,null,null,null,null,null,null,null,null,null,null,null,null,null,null,null,null,null,null,null,null,"Nein"]
["tbd",null,null,null,null,null,null,null,null,null,null,null,null,null,null,null,null,null,null,null,null,null,null,null,null,null,"Nein"]
["tbd",null,null,null,null,null,null,null,null,null,null,null,null,null,null,null,null,null,null,null,null,null,null,null,null,null,"Nein"]
["tbd",null,null,null,null,null,null,null,null,null,null,null,null,null,null,null,null,null,null,null,null,null,null,null,null,null,"Nein"]
["tbd",null,null,null,null,null,null,null,null,null,null,null,null,null,null,null,null,null,null,null,null,null,null,null,null,null,"Nein"]
["tbd",null,null,null,null,null,null,null,null,null,null,null,null,null,null,null,null,null,null,null,null,null,null,null,null,null,"Nein"]
["tbd",null,null,null,null,null,null,null,null,null,null,null,null,null,null,null,null,null,null,null,null,null,null,null,null,null,"Nein"]
["tbd",null,null,null,null,null,null,null,null,null,null,null,null,null,null,null,null,null,null,null,null,null,null,null,null,null,"Nein"]
["tbd",null,null,null,null,null,null,null,null,null,null,null,null,null,null,null,null,null,null,null,null,null,null,null,null,null,"Nein"]
["tbd",null,null,null,null,null,null,null,null,null,null,null,null,null,null,null,null,null,null,null,null,null,null,null,null,null,"Nein"]
["tbd",null,null,null,null,null,null,null,null,null,null,null,null,null,null,null,null,null,null,null,null,null,null,null,null,null,"Nein"]
["tbd",null,null,null,null,null,null,null,null,null,null,null,null,null,null,null,null,null,null,null,null,null,null,null,null,null,"Nein"]
["tbd",null,null,null,null,null,null,null,null,null,null,null,null,null,null,null,null,null,null,null,null,null,null,null,null,null,"Nein"]
["tbd",null,null,null,null,null,null,null,null,null,null,null,null,null,null,null,null,null,null,null,null,null,null,null,null,null,"Nein"]
["tbd",null,null,null,null,null,null,null,null,null,null,null,null,null,null,null,null,null,null,null,null,null,null,null,null,null,"Nein"]
["tbd",null,null,null,null,null,null,null,null,null,null,null,null,null,null,null,null,null,null,null,null,null,null,null,null,null,"Nein"]
["tbd",null,null,null,null,null,null,null,null,null,null,null,null,null,null,null,null,null,null,null,null,null,null,null,null,null,"Nein"]
["tbd",null,null,null,null,null,null,null,null,null,null,null,null,null,null,null,null,null,null,null,null,null,null,null,null,null,"Nein"]
["tbd",null,null,null,null,null,null,null,null,null,null,null,null,null,null,null,null,null,null,null,null,null,null,null,null,null,"Nein"]
["tbd",null,null,null,null,null,null,null,null,null,null,null,null,null,null,null,null,null,null,null,null,null,null,null,null,null,"Nein"]
["tbd",null,null,null,null,null,null,null,null,null,null,null,null,null,null,null,null,null,null,null,null,null,null,null,null,null,"Nein"]
["tbd",null,null,null,null,null,null,null,null,null,null,null,null,null,null,null,null,null,null,null,null,null,null,null,null,null,"Nein"]
["tbd",null,null,null,null,null,null,null,null,null,null,null,null,null,null,null,null,null,null,null,null,null,null,null,null,null,"Nein"]
["tbd",null,null,null,null,null,null,null,null,null,null,null,null,null,null,null,null,null,null,null,null,null,null,null,null,null,"Nein"]
["tbd",null,null,null,null,null,null,null,null,null,null,null,null,null,null,null,null,null,null,null,null,null,null,null,null,null,"Nein"]
["tbd",null,null,null,null,null,null,null,null,null,null,null,null,null,null,null,null,null,null,null,null,null,null,null,null,null,"Nein"]
["tbd",null,null,null,null,null,null,null,null,null,null,null,null,null,null,null,null,null,null,null,null,null,null,null,null,null,"Nein"]
["tbd",null,null,null,null,null,null,null,null,null,null,null,null,null,null,null,null,null,null,null,null,null,null,null,null,null,"Nein"]
["tbd",null,null,null,null,null,null,null,null,null,null,null,null,null,null,null,null,null,null,null,null,null,null,null,null,null,"Nein"]
["tbd",null,null,null,null,null,null,null,null,null,null,null,null,null,null,null,null,null,null,null,null,null,null,null,null,null,"Nein"]
["tbd",null,null,null,null,null,null,null,null,null,null,null,null,null,null,null,null,null,null,null,null,null,null,null,null,null,"Nein"]
["tbd",null,null,null,null,null,null,null,null,null,null,null,null,null,null,null,null,null,null,null,null,null,null,null,null,null,"Nein"]
["tbd",null,null,null,null,null,null,null,null,null,null,null,null,null,null,null,null,null,null,null,null,null,null,null,null,null,"Nein"]
["tbd",null,null,null,null,null,null,null,null,null,null,null,null,null,null,null,null,null,null,null,null,null,null,null,null,null,"Nein"]
["tbd",null,null,null,null,null,null,null,null,null,null,null,null,null,null,null,null,null,null,null,null,null,null,null,null,null,"Nein"]
["tbd",null,null,null,null,null,null,null,null,null,null,null,null,null,null,null,null,null,null,null,null,null,null,null,null,null,"Nein"]
["tbd",null,null,null,null,null,null,null,null,null,null,null,null,null,null,null,null,null,null,null,null,null,null,null,null,null,"Nein"]
["tbd",null,null,null,null,null,null,null,null,null,null,null,null,null,null,null,null,null,null,null,null,null,null,null,null,null,"Nein"]
["tbd",null,null,null,null,null,null,null,null,null,null,null,null,null,null,null,null,null,null,null,null,null,null,null,null,null,"Nein"]
["tbd",null,null,null,null,null,null,null,null,null,null,null,null,null,null,null,null,null,null,null,null,null,null,null,null,null,"Nein"]
["tbd",null,null,null,null,null,null,null,null,null,null,null,null,null,null,null,null,null,null,null,null,null,null,null,null,null,"Nein"]
["tbd",null,null,null,null,null,null,null,null,null,null,null,null,null,null,null,null,null,null,null,null,null,null,null,null,null,"Nein"]
["tbd",null,null,null,null,null,null,null,null,null,null,null,null,null,null,null,null,null,null,null,null,null,null,null,null,null,"Nein"]
["tbd",null,null,null,null,null,null,null,null,null,null,null,null,null,null,null,null,null,null,null,null,null,null,null,null,null,"Nein"]
["tbd",null,null,null,null,null,null,null,null,null,null,null,null,null,null,null,null,null,null,null,null,null,null,null,null,null,"Nein"]
["tbd",null,null,null,null,null,null,null,null,null,null,null,null,null,null,null,null,null,null,null,null,null,null,null,null,null,"Nein"]
["tbd",null,null,null,null,null,null,null,null,null,null,null,null,null,null,null,null,null,null,null,null,null,null,null,null,null,"Nein"]
["tbd",null,null,null,null,null,null,null,null,null,null,null,null,null,null,null,null,null,null,null,null,null,null,null,null,null,"Nein"]
["tbd",null,null,null,null,null,null,null,null,null,null,null,null,null,null,null,null,null,null,null,null,null,null,null,null,null,"Nein"]
["tbd",null,null,null,null,null,null,null,null,null,null,null,null,null,null,null,null,null,null,null,null,null,null,null,null,null,"Nein"]
["tbd",null,null,null,null,null,null,null,null,null,null,null,null,null,null,null,null,null,null,null,null,null,null,null,null,null,"Nein"]
["tbd",null,null,null,null,null,null,null,null,null,null,null,null,null,null,null,null,null,null,null,null,null,null,null,null,null,"Nein"]
["tbd",null,null,null,null,null,null,null,null,null,null,null,null,null,null,null,null,null,null,null,null,null,null,null,null,null,"Nein"]
["tbd",null,null,null,null,null,null,null,null,null,null,null,null,null,null,null,null,null,null,null,null,null,null,null,null,null,"Nein"]
["tbd",null,null,null,null,null,null,null,null,null,null,null,null,null,null,null,null,null,null,null,null,null,null,null,null,null,"Nein"]
["tbd",null,null,null,null,null,null,null,null,null,null,null,null,null,null,null,null,null,null,null,null,null,null,null,null,null,"Nein"]
["tbd",null,null,null,null,null,null,null,null,null,null,null,null,null,null,null,null,null,null,null,null,null,null,null,null,null,"Nein"]
["tbd",null,null,null,null,null,null,null,null,null,null,null,null,null,null,null,null,null,null,null,null,null,null,null,null,null,"Nein"]
["tbd",null,null,null,null,null,null,null,null,null,null,null,null,null,null,null,null,null,null,null,null,null,null,null,null,null,"Nein"]
["tbd",null,null,null,null,null,null,null,null,null,null,null,null,null,null,null,null,null,null,null,null,null,null,null,null,null,"Nein"]
["tbd",null,null,null,null,null,null,null,null,null,null,null,null,null,null,null,null,null,null,null,null,null,null,null,null,null,"Nein"]
["tbd",null,null,null,null,null,null,null,null,null,null,null,null,null,null,null,null,null,null,null,null,null,null,null,null,null,"Nein"]
["tbd",null,null,null,null,null,null,null,null,null,null,null,null,null,null,null,null,null,null,null,null,null,null,null,null,null,"Nein"]
["tbd",null,null,null,null,null,null,null,null,null,null,null,null,null,null,null,null,null,null,null,null,null,null,null,null,null,"Nein"]
["tbd",null,null,null,null,null,null,null,null,null,null,null,null,null,null,null,null,null,null,null,null,null,null,null,null,null,"Nein"]
["tbd",null,null,null,null,null,null,null,null,null,null,null,null,null,null,null,null,null,null,null,null,null,null,null,null,null,"Nein"]
["tbd",null,null,null,null,null,null,null,null,null,null,null,null,null,null,null,null,null,null,null,null,null,null,null,null,null,"Nein"]
["tbd",null,null,null,null,null,null,null,null,null,null,null,null,null,null,null,null,null,null,null,null,null,null,null,null,null,"Nein"]
["tbd",null,null,null,null,null,null,null,null,null,null,null,null,null,null,null,null,null,null,null,null,null,null,null,null,null,"Nein"]
["tbd",null,null,null,null,null,null,null,null,null,null,null,null,null,null,null,null,null,null,null,null,null,null,null,null,null,"Nein"]
["tbd",null,null,null,null,null,null,null,null,null,null,null,null,null,null,null,null,null,null,null,null,null,null,null,null,null,"Nein"]
["tbd",null,null,null,null,null,null,null,null,null,null,null,null,null,null,null,null,null,null,null,null,null,null,null,null,null,"Nein"]
["tbd",null,null,null,null,null,null,null,null,null,null,null,null,null,null,null,null,null,null,null,null,null,null,null,null,null,"Nein"]
["tbd",null,null,null,null,null,null,null,null,null,null,null,null,null,null,null,null,null,null,null,null,null,null,null,null,null,"Nein"]
["tbd",null,null,null,null,null,null,null,null,null,null,null,null,null,null,null,null,null,null,null,null,null,null,null,null,null,"Nein"]
["tbd",null,null,null,null,null,null,null,null,null,null,null,null,null,null,null,null,null,null,null,null,null,null,null,null,null,"Nein"]
["tbd",null,null,null,null,null,null,null,null,null,null,null,null,null,null,null,null,null,null,null,null,null,null,null,null,null,"Nein"]
["tbd",null,null,null,null,null,null,null,null,null,null,null,null,null,null,null,null,null,null,null,null,null,null,null,null,null,"Nein"]
["tbd",null,null,null,null,null,null,null,null,null,null,null,null,null,null,null,null,null,null,null,null,null,null,null,null,null,"Nein"]
["tbd",null,null,null,null,null,null,null,null,null,null,null,null,null,null,null,null,null,null,null,null,null,null,null,null,null,"Nein"]
["tbd",null,null,null,null,null,null,null,null,null,null,null,null,null,null,null,null,null,null,null,null,null,null,null,null,null,"Nein"]
["tbd",null,null,null,null,null,null,null,null,null,null,null,null,null,null,null,null,null,null,null,null,null,null,null,null,null,"Nein"]
["tbd",null,null,null,null,null,null,null,null,null,null,null,null,null,null,null,null,null,null,null,null,null,null,null,null,null,"Nein"]
["tbd",null,null,null,null,null,null,null,null,null,null,null,null,null,null,null,null,null,null,null,null,null,null,null,null,null,"Nein"]
["tbd",null,null,null,null,null,null,null,null,null,null,null,null,null,null,null,null,null,null,null,null,null,null,null,null,null,"Nein"]
["tbd",null,null,null,null,null,null,null,null,null,null,null,null,null,null,null,null,null,null,null,null,null,null,null,null,null,"Nein"]
["tbd",null,null,null,null,null,null,null,null,null,null,null,null,null,null,null,null,null,null,null,null,null,null,null,null,null,"Nein"]
["tbd",null,null,null,null,null,null,null,null,null,null,null,null,null,null,null,null,null,null,null,null,null,null,null,null,null,"Nein"]
["tbd",null,null,null,null,null,null,null,null,null,null,null,null,null,null,null,null,null,null,null,null,null,null,null,null,null,"Nein"]
["tbd",null,null,null,null,null,null,null,null,null,null,null,null,null,null,null,null,null,null,null,null,null,null,null,null,null,"Nein"]
["tbd",null,null,null,null,null,null,null,null,null,null,null,null,null,null,null,null,null,null,null,null,null,null,null,null,null,"Nein"]
["tbd",null,null,null,null,null,null,null,null,null,null,null,null,null,null,null,null,null,null,null,null,null,null,null,null,null,"Nein"]
["tbd",null,null,null,null,null,null,null,null,null,null,null,null,null,null,null,null,null,null,null,null,null,null,null,null,null,"Nein"]
["tbd",null,null,null,null,null,null,null,null,null,null,null,null,null,null,null,null,null,null,null,null,null,null,null,null,null,"Nein"]
["tbd",null,null,null,null,null,null,null,null,null,null,null,null,null,null,null,null,null,null,null,null,null,null,null,null,null,"Nein"]
["tbd",null,null,null,null,null,null,null,null,null,null,null,null,null,null,null,null,null,null,null,null,null,null,null,null,null,"Nein"]
["tbd",null,null,null,null,null,null,null,null,null,null,null,null,null,null,null,null,null,null,null,null,null,null,null,null,null,"Nein"]
["tbd",null,null,null,null,null,null,null,null,null,null,null,null,null,null,null,null,null,null,null,null,null,null,null,null,null,"Nein"]
["tbd",null,null,null,null,null,null,null,null,null,null,null,null,null,null,null,null,null,null,null,null,null,null,null,null,null,"Nein"]
["tbd",null,null,null,null,null,null,null,null,null,null,null,null,null,null,null,null,null,null,null,null,null,null,null,null,null,"Nein"]
["tbd",null,null,null,null,null,null,null,null,null,null,null,null,null,null,null,null,null,null,null,null,null,null,null,null,null,"Nein"]
["tbd",null,null,null,null,null,null,null,null,null,null,null,null,null,null,null,null,null,null,null,null,null,null,null,null,null,"Nein"]
["tbd",null,null,null,null,null,null,null,null,null,null,null,null,null,null,null,null,null,null,null,null,null,null,null,null,null,"Nein"]
["tbd",null,null,null,null,null,null,null,null,null,null,null,null,null,null,null,null,null,null,null,null,null,null,null,null,null,"Nein"]
["tbd",null,null,null,null,null,null,null,null,null,null,null,null,null,null,null,null,null,null,null,null,null,null,null,null,null,"Nein"]
["tbd",null,null,null,null,null,null,null,null,null,null,null,null,null,null,null,null,null,null,null,null,null,null,null,null,null,"Nein"]
["tbd",null,null,null,null,null,null,null,null,null,null,null,null,null,null,null,null,null,null,null,null,null,null,null,null,null,"Nein"]
["tbd",null,null,null,null,null,null,null,null,null,null,null,null,null,null,null,null,null,null,null,null,null,null,null,null,null,"Nein"]
["tbd",null,null,null,null,null,null,null,null,null,null,null,null,null,null,null,null,null,null,null,null,null,null,null,null,null,"Nein"]
["tbd",null,null,null,null,null,null,null,null,null,null,null,null,null,null,null,null,null,null,null,null,null,null,null,null,null,"Nein"]
["tbd",null,null,null,null,null,null,null,null,null,null,null,null,null,null,null,null,null,null,null,null,null,null,null,null,null,"Nein"]
["tbd",null,null,null,null,null,null,null,null,null,null,null,null,null,null,null,null,null,null,null,null,null,null,null,null,null,"Nein"]
["tbd",null,null,null,null,null,null,null,null,null,null,null,null,null,null,null,null,null,null,null,null,null,null,null,null,null,"Nein"]
["tbd",null,null,null,null,null,null,null,null,null,null,null,null,null,null,null,null,null,null,null,null,null,null,null,null,null,"Nein"]
["tbd",null,null,null,null,null,null,null,null,null,null,null,null,null,null,null,null,null,null,null,null,null,null,null,null,null,"Nein"]
["tbd",null,null,null,null,null,null,null,null,null,null,null,null,null,null,null,null,null,null,null,null,null,null,null,null,null,"Nein"]
["tbd",null,null,null,null,null,null,null,null,null,null,null,null,null,null,null,null,null,null,null,null,null,null,null,null,null,"Nein"]
["tbd",null,null,null,null,null,null,null,null,null,null,null,null,null,null,null,null,null,null,null,null,null,null,null,null,null,"Nein"]
["tbd",null,null,null,null,null,null,null,null,null,null,null,null,null,null,null,null,null,null,null,null,null,null,null,null,null,"Nein"]
["tbd",null,null,null,null,null,null,null,null,null,null,null,null,null,null,null,null,null,null,null,null,null,null,null,null,null,"Nein"]
["tbd",null,null,null,null,null,null,null,null,null,null,null,null,null,null,null,null,null,null,null,null,null,null,null,null,null,"Nein"]
["tbd",null,null,null,null,null,null,null,null,null,null,null,null,null,null,null,null,null,null,null,null,null,null,null,null,null,"Nein"]
["tbd",null,null,null,null,null,null,null,null,null,null,null,null,null,null,null,null,null,null,null,null,null,null,null,null,null,"Nein"]
["tbd",null,null,null,null,null,null,null,null,null,null,null,null,null,null,null,null,null,null,null,null,null,null,null,null,null,"Nein"]
["tbd",null,null,null,null,null,null,null,null,null,null,null,null,null,null,null,null,null,null,null,null,null,null,null,null,null,"Nein"]
["tbd",null,null,null,null,null,null,null,null,null,null,null,null,null,null,null,null,null,null,null,null,null,null,null,null,null,"Nein"]
["tbd",null,null,null,null,null,null,null,null,null,null,null,null,null,null,null,null,null,null,null,null,null,null,null,null,null,"Nein"]
["tbd",null,null,null,null,null,null,null,null,null,null,null,null,null,null,null,null,null,null,null,null,null,null,null,null,null,"Nein"]
["tbd",null,null,null,null,null,null,null,null,null,null,null,null,null,null,null,null,null,null,null,null,null,null,null,null,null,"Nein"]
["tbd",null,null,null,null,null,null,null,null,null,null,null,null,null,null,null,null,null,null,null,null,null,null,null,null,null,"Nein"]
["tbd",null,null,null,null,null,null,null,null,null,null,null,null,null,null,null,null,null,null,null,null,null,null,null,null,null,"Nein"]
["tbd",null,null,null,null,null,null,null,null,null,null,null,null,null,null,null,null,null,null,null,null,null,null,null,null,null,"Nein"]
["tbd",null,null,null,null,null,null,null,null,null,null,null,null,null,null,null,null,null,null,null,null,null,null,null,null,null,"Nein"]
["tbd",null,null,null,null,null,null,null,null,null,null,null,null,null,null,null,null,null,null,null,null,null,null,null,null,null,"Nein"]
["tbd",null,null,null,null,null,null,null,null,null,null,null,null,null,null,null,null,null,null,null,null,null,null,null,null,null,"Nein"]
["tbd",null,null,null,null,null,null,null,null,null,null,null,null,null,null,null,null,null,null,null,null,null,null,null,null,null,"Nein"]
["tbd",null,null,null,null,null,null,null,null,null,null,null,null,null,null,null,null,null,null,null,null,null,null,null,null,null,"Nein"]
["tbd",null,null,null,null,null,null,null,null,null,null,null,null,null,null,null,null,null,null,null,null,null,null,null,null,null,"Nein"]
["tbd",null,null,null,null,null,null,null,null,null,null,null,null,null,null,null,null,null,null,null,null,null,null,null,null,null,"Nein"]
["tbd",null,null,null,null,null,null,null,null,null,null,null,null,null,null,null,null,null,null,null,null,null,null,null,null,null,"Nein"]
["tbd",null,null,null,null,null,null,null,null,null,null,null,null,null,null,null,null,null,null,null,null,null,null,null,null,null,"Nein"]
["tbd",null,null,null,null,null,null,null,null,null,null,null,null,null,null,null,null,null,null,null,null,null,null,null,null,null,"Nein"]
["tbd",null,null,null,null,null,null,null,null,null,null,null,null,null,null,null,null,null,null,null,null,null,null,null,null,null,"Nein"]
["tbd",null,null,null,null,null,null,null,null,null,null,null,null,null,null,null,null,null,null,null,null,null,null,null,null,null,"Nein"]
["tbd",null,null,null,null,null,null,null,null,null,null,null,null,null,null,null,null,null,null,null,null,null,null,null,null,null,"Nein"]
["tbd",null,null,null,null,null,null,null,null,null,null,null,null,null,null,null,null,null,null,null,null,null,null,null,null,null,"Nein"]
["tbd",null,null,null,null,null,null,null,null,null,null,null,null,null,null,null,null,null,null,null,null,null,null,null,null,null,"Nein"]
["tbd",null,null,null,null,null,null,null,null,null,null,null,null,null,null,null,null,null,null,null,null,null,null,null,null,null,"Nein"]
["tbd",null,null,null,null,null,null,null,null,null,null,null,null,null,null,null,null,null,null,null,null,null,null,null,null,null,"Nein"]
["tbd",null,null,null,null,null,null,null,null,null,null,null,null,null,null,null,null,null,null,null,null,null,null,null,null,null,"Nein"]
["tbd",null,null,null,null,null,null,null,null,null,null,null,null,null,null,null,null,null,null,null,null,null,null,null,null,null,"Nein"]
["tbd",null,null,null,null,null,null,null,null,null,null,null,null,null,null,null,null,null,null,null,null,null,null,null,null,null,"Nein"]
["tbd",null,null,null,null,null,null,null,null,null,null,null,null,null,null,null,null,null,null,null,null,null,null,null,null,null,"Nein"]
["tbd",null,null,null,null,null,null,null,null,null,null,null,null,null,null,null,null,null,null,null,null,null,null,null,null,null,"Nein"]
["tbd",null,null,null,null,null,null,null,null,null,null,null,null,null,null,null,null,null,null,null,null,null,null,null,null,null,"Nein"]
["tbd",null,null,null,null,null,null,null,null,null,null,null,null,null,null,null,null,null,null,null,null,null,null,null,null,null,"Nein"]
["tbd",null,null,null,null,null,null,null,null,null,null,null,null,null,null,null,null,null,null,null,null,null,null,null,null,null,"Nein"]
["tbd",null,null,null,null,null,null,null,null,null,null,null,null,null,null,null,null,null,null,null,null,null,null,null,null,null,"Nein"]
["tbd",null,null,null,null,null,null,null,null,null,null,null,null,null,null,null,null,null,null,null,null,null,null,null,null,null,"Nein"]
["tbd",null,null,null,null,null,null,null,null,null,null,null,null,null,null,null,null,null,null,null,null,null,null,null,null,null,"Nein"]
["tbd",null,null,null,null,null,null,null,null,null,null,null,null,null,null,null,null,null,null,null,null,null,null,null,null,null,"Nein"]
["tbd",null,null,null,null,null,null,null,null,null,null,null,null,null,null,null,null,null,null,null,null,null,null,null,null,null,"Nein"]
["tbd",null,null,null,null,null,null,null,null,null,null,null,null,null,null,null,null,null,null,null,null,null,null,null,null,null,"Nein"]
["tbd",null,null,null,null,null,null,null,null,null,null,null,null,null,null,null,null,null,null,null,null,null,null,null,null,null,"Nein"]
["tbd",null,null,null,null,null,null,null,null,null,null,null,null,null,null,null,null,null,null,null,null,null,null,null,null,null,"Nein"]
["tbd",null,null,null,null,null,null,null,null,null,null,null,null,null,null,null,null,null,null,null,null,null,null,null,null,null,"Nein"]
["tbd",null,null,null,null,null,null,null,null,null,null,null,null,null,null,null,null,null,null,null,null,null,null,null,null,null,"Nein"]
["tbd",null,null,null,null,null,null,null,null,null,null,null,null,null,null,null,null,null,null,null,null,null,null,null,null,null,"Nein"]
["tbd",null,null,null,null,null,null,null,null,null,null,null,null,null,null,null,null,null,null,null,null,null,null,null,null,null,"Nein"]
["tbd",null,null,null,null,null,null,null,null,null,null,null,null,null,null,null,null,null,null,null,null,null,null,null,null,null,"Nein"]
["tbd",null,null,null,null,null,null,null,null,null,null,null,null,null,null,null,null,null,null,null,null,null,null,null,null,null,"Nein"]
["tbd",null,null,null,null,null,null,null,null,null,null,null,null,null,null,null,null,null,null,null,null,null,null,null,null,null,"Nein"]
["tbd",null,null,null,null,null,null,null,null,null,null,null,null,null,null,null,null,null,null,null,null,null,null,null,null,null,"Nein"]
["tbd",null,null,null,null,null,null,null,null,null,null,null,null,null,null,null,null,null,null,null,null,null,null,null,null,null,"Nein"]
["tbd",null,null,null,null,null,null,null,null,null,null,null,null,null,null,null,null,null,null,null,null,null,null,null,null,null,"Nein"]
["tbd",null,null,null,null,null,null,null,null,null,null,null,null,null,null,null,null,null,null,null,null,null,null,null,null,null,"Nein"]
["tbd",null,null,null,null,null,null,null,null,null,null,null,null,null,null,null,null,null,null,null,null,null,null,null,null,null,"Nein"]
["tbd",null,null,null,null,null,null,null,null,null,null,null,null,null,null,null,null,null,null,null,null,null,null,null,null,null,"Nein"]
["tbd",null,null,null,null,null,null,null,null,null,null,null,null,null,null,null,null,null,null,null,null,null,null,null,null,null,"Nein"]
["tbd",null,null,null,null,null,null,null,null,null,null,null,null,null,null,null,null,null,null,null,null,null,null,null,null,null,"Nein"]
["tbd",null,null,null,null,null,null,null,null,null,null,null,null,null,null,null,null,null,null,null,null,null,null,null,null,null,"Nein"]
["tbd",null,null,null,null,null,null,null,null,null,null,null,null,null,null,null,null,null,null,null,null,null,null,null,null,null,"Nein"]
["tbd",null,null,null,null,null,null,null,null,null,null,null,null,null,null,null,null,null,null,null,null,null,null,null,null,null,"Nein"]
["tbd",null,null,null,null,null,null,null,null,null,null,null,null,null,null,null,null,null,null,null,null,null,null,null,null,null,"Nein"]
["tbd",null,null,null,null,null,null,null,null,null,null,null,null,null,null,null,null,null,null,null,null,null,null,null,null,null,"Nein"]
["tbd",null,null,null,null,null,null,null,null,null,null,null,null,null,null,null,null,null,null,null,null,null,null,null,null,null,"Nein"]
["tbd",null,null,null,null,null,null,null,null,null,null,null,null,null,null,null,null,null,null,null,null,null,null,null,null,null,"Nein"]
["tbd",null,null,null,null,null,null,null,null,null,null,null,null,null,null,null,null,null,null,null,null,null,null,null,null,null,"Nein"]
["tbd",null,null,null,null,null,null,null,null,null,null,null,null,null,null,null,null,null,null,null,null,null,null,null,null,null,"Nein"]
["tbd",null,null,null,null,null,null,null,null,null,null,null,null,null,null,null,null,null,null,null,null,null,null,null,null,null,"Nein"]
["tbd",null,null,null,null,null,null,null,null,null,null,null,null,null,null,null,null,null,null,null,null,null,null,null,null,null,"Nein"]
["tbd",null,null,null,null,null,null,null,null,null,null,null,null,null,null,null,null,null,null,null,null,null,null,null,null,null,"Nein"]
["tbd",null,null,null,null,null,null,null,null,null,null,null,null,null,null,null,null,null,null,null,null,null,null,null,null,null,"Nein"]
["tbd",null,null,null,null,null,null,null,null,null,null,null,null,null,null,null,null,null,null,null,null,null,null,null,null,null,"Nein"]
["tbd",null,null,null,null,null,null,null,null,null,null,null,null,null,null,null,null,null,null,null,null,null,null,null,null,null,"Nein"]
["tbd",null,null,null,null,null,null,null,null,null,null,null,null,null,null,null,null,null,null,null,null,null,null,null,null,null,"Nein"]
["tbd",null,null,null,null,null,null,null,null,null,null,null,null,null,null,null,null,null,null,null,null,null,null,null,null,null,"Nein"]
["tbd",null,null,null,null,null,null,null,null,null,null,null,null,null,null,null,null,null,null,null,null,null,null,null,null,null,"Nein"]
["tbd",null,null,null,null,null,null,null,null,null,null,null,null,null,null,null,null,null,null,null,null,null,null,null,null,null,"Nein"]
["tbd",null,null,null,null,null,null,null,null,null,null,null,null,null,null,null,null,null,null,null,null,null,null,null,null,null,"Nein"]
["tbd",null,null,null,null,null,null,null,null,null,null,null,null,null,null,null,null,null,null,null,null,null,null,null,null,null,"Nein"]
["tbd",null,null,null,null,null,null,null,null,null,null,null,null,null,null,null,null,null,null,null,null,null,null,null,null,null,"Nein"]
["tbd",null,null,null,null,null,null,null,null,null,null,null,null,null,null,null,null,null,null,null,null,null,null,null,null,null,"Nein"]
["tbd",null,null,null,null,null,null,null,null,null,null,null,null,null,null,null,null,null,null,null,null,null,null,null,null,null,"Nein"]
["tbd",null,null,null,null,null,null,null,null,null,null,null,null,null,null,null,null,null,null,null,null,null,null,null,null,null,"Nein"]
["tbd",null,null,null,null,null,null,null,null,null,null,null,null,null,null,null,null,null,null,null,null,null,null,null,null,null,"Nein"]
["tbd",null,null,null,null,null,null,null,null,null,null,null,null,null,null,null,null,null,null,null,null,null,null,null,null,null,"Nein"]
["tbd",null,null,null,null,null,null,null,null,null,null,null,null,null,null,null,null,null,null,null,null,null,null,null,null,null,"Nein"]
["tbd",null,null,null,null,null,null,null,null,null,null,null,null,null,null,null,null,null,null,null,null,null,null,null,null,null,"Nein"]
["tbd",null,null,null,null,null,null,null,null,null,null,null,null,null,null,null,null,null,null,null,null,null,null,null,null,null,"Nein"]
["tbd",null,null,null,null,null,null,null,null,null,null,null,null,null,null,null,null,null,null,null,null,null,null,null,null,null,"Nein"]
["tbd",null,null,null,null,null,null,null,null,null,null,null,null,null,null,null,null,null,null,null,null,null,null,null,null,null,"Nein"]
["tbd",null,null,null,null,null,null,null,null,null,null,null,null,null,null,null,null,null,null,null,null,null,null,null,null,null,"Nein"]
["tbd",null,null,null,null,null,null,null,null,null,null,null,null,null,null,null,null,null,null,null,null,null,null,null,null,null,"Nein"]
["tbd",null,null,null,null,null,null,null,null,null,null,null,null,null,null,null,null,null,null,null,null,null,null,null,null,null,"Nein"]
["tbd",null,null,null,null,null,null,null,null,null,null,null,null,null,null,null,null,null,null,null,null,null,null,null,null,null,"Nein"]
["tbd",null,null,null,null,null,null,null,null,null,null,null,null,null,null,null,null,null,null,null,null,null,null,null,null,null,"Nein"]
["tbd",null,null,null,null,null,null,null,null,null,null,null,null,null,null,null,null,null,null,null,null,null,null,null,null,null,"Nein"]
["tbd",null,null,null,null,null,null,null,null,null,null,null,null,null,null,null,null,null,null,null,null,null,null,null,null,null,"Nein"]
["tbd",null,null,null,null,null,null,null,null,null,null,null,null,null,null,null,null,null,null,null,null,null,null,null,null,null,"Nein"]
["tbd",null,null,null,null,null,null,null,null,null,null,null,null,null,null,null,null,null,null,null,null,null,null,null,null,null,"Nein"]
["tbd",null,null,null,null,null,null,null,null,null,null,null,null,null,null,null,null,null,null,null,null,null,null,null,null,null,"Nein"]
["tbd",null,null,null,null,null,null,null,null,null,null,null,null,null,null,null,null,null,null,null,null,null,null,null,null,null,"Nein"]
["tbd",null,null,null,null,null,null,null,null,null,null,null,null,null,null,null,null,null,null,null,null,null,null,null,null,null,"Nein"]
["tbd",null,null,null,null,null,null,null,null,null,null,null,null,null,null,null,null,null,null,null,null,null,null,null,null,null,"Nein"]
["tbd",null,null,null,null,null,null,null,null,null,null,null,null,null,null,null,null,null,null,null,null,null,null,null,null,null,"Nein"]
["tbd",null,null,null,null,null,null,null,null,null,null,null,null,null,null,null,null,null,null,null,null,null,null,null,null,null,"Nein"]
["tbd",null,null,null,null,null,null,null,null,null,null,null,null,null,null,null,null,null,null,null,null,null,null,null,null,null,"Nein"]
["tbd",null,null,null,null,null,null,null,null,null,null,null,null,null,null,null,null,null,null,null,null,null,null,null,null,null,"Nein"]
["tbd",null,null,null,null,null,null,null,null,null,null,null,null,null,null,null,null,null,null,null,null,null,null,null,null,null,"Nein"]
["tbd",null,null,null,null,null,null,null,null,null,null,null,null,null,null,null,null,null,null,null,null,null,null,null,null,null,"Nein"]
["tbd",null,null,null,null,null,null,null,null,null,null,null,null,null,null,null,null,null,null,null,null,null,null,null,null,null,"Nein"]
["tbd",null,null,null,null,null,null,null,null,null,null,null,null,null,null,null,null,null,null,null,null,null,null,null,null,null,"Nein"]
["tbd",null,null,null,null,null,null,null,null,null,null,null,null,null,null,null,null,null,null,null,null,null,null,null,null,null,"Nein"]
["tbd",null,null,null,null,null,null,null,null,null,null,null,null,null,null,null,null,null,null,null,null,null,null,null,null,null,"Nein"]
["tbd",null,null,null,null,null,null,null,null,null,null,null,null,null,null,null,null,null,null,null,null,null,null,null,null,null,"Nein"]
["tbd",null,null,null,null,null,null,null,null,null,null,null,null,null,null,null,null,null,null,null,null,null,null,null,null,null,"Nein"]
["tbd",null,null,null,null,null,null,null,null,null,null,null,null,null,null,null,null,null,null,null,null,null,null,null,null,null,"Nein"]
["tbd",null,null,null,null,null,null,null,null,null,null,null,null,null,null,null,null,null,null,null,null,null,null,null,null,null,"Nein"]
["tbd",null,null,null,null,null,null,null,null,null,null,null,null,null,null,null,null,null,null,null,null,null,null,null,null,null,"Nein"]
["tbd",null,null,null,null,null,null,null,null,null,null,null,null,null,null,null,null,null,null,null,null,null,null,null,null,null,"Nein"]
["tbd",null,null,null,null,null,null,null,null,null,null,null,null,null,null,null,null,null,null,null,null,null,null,null,null,null,"Nein"]
["tbd",null,null,null,null,null,null,null,null,null,null,null,null,null,null,null,null,null,null,null,null,null,null,null,null,null,"Nein"]
["tbd",null,null,null,null,null,null,null,null,null,null,null,null,null,null,null,null,null,null,null,null,null,null,null,null,null,"Nein"]
["tbd",null,null,null,null,null,null,null,null,null,null,null,null,null,null,null,null,null,null,null,null,null,null,null,null,null,"Nein"]
["tbd",null,null,null,null,null,null,null,null,null,null,null,null,null,null,null,null,null,null,null,null,null,null,null,null,null,"Nein"]
["tbd",null,null,null,null,null,null,null,null,null,null,null,null,null,null,null,null,null,null,null,null,null,null,null,null,null,"Nein"]
["tbd",null,null,null,null,null,null,null,null,null,null,null,null,null,null,null,null,null,null,null,null,null,null,null,null,null,"Nein"]
["tbd",null,null,null,null,null,null,null,null,null,null,null,null,null,null,null,null,null,null,null,null,null,null,null,null,null,"Nein"]
["tbd",null,null,null,null,null,null,null,null,null,null,null,null,null,null,null,null,null,null,null,null,null,null,null,null,null,"Nein"]
["tbd",null,null,null,null,null,null,null,null,null,null,null,null,null,null,null,null,null,null,null,null,null,null,null,null,null,"Nein"]
["tbd",null,null,null,null,null,null,null,null,null,null,null,null,null,null,null,null,null,null,null,null,null,null,null,null,null,"Nein"]
["tbd",null,null,null,null,null,null,null,null,null,null,null,null,null,null,null,null,null,null,null,null,null,null,null,null,null,"Nein"]
["tbd",null,null,null,null,null,null,null,null,null,null,null,null,null,null,null,null,null,null,null,null,null,null,null,null,null,"Nein"]
["tbd",null,null,null,null,null,null,null,null,null,null,null,null,null,null,null,null,null,null,null,null,null,null,null,null,null,"Nein"]
["tbd",null,null,null,null,null,null,null,null,null,null,null,null,null,null,null,null,null,null,null,null,null,null,null,null,null,"Nein"]
["tbd",null,null,null,null,null,null,null,null,null,null,null,null,null,null,null,null,null,null,null,null,null,null,null,null,null,"Nein"]
["tbd",null,null,null,null,null,null,null,null,null,null,null,null,null,null,null,null,null,null,null,null,null,null,null,null,null,"Nein"]
["tbd",null,null,null,null,null,null,null,null,null,null,null,null,null,null,null,null,null,null,null,null,null,null,null,null,null,"Nein"]
["tbd",null,null,null,null,null,null,null,null,null,null,null,null,null,null,null,null,null,null,null,null,null,null,null,null,null,"Nein"]
["tbd",null,null,null,null,null,null,null,null,null,null,null,null,null,null,null,null,null,null,null,null,null,null,null,null,null,"Nein"]
["tbd",null,null,null,null,null,null,null,null,null,null,null,null,null,null,null,null,null,null,null,null,null,null,null,null,null,"Nein"]
["tbd",null,null,null,null,null,null,null,null,null,null,null,null,null,null,null,null,null,null,null,null,null,null,null,null,null,"Nein"]
["tbd",null,null,null,null,null,null,null,null,null,null,null,null,null,null,null,null,null,null,null,null,null,null,null,null,null,"Nein"]
["tbd",null,null,null,null,null,null,null,null,null,null,null,null,null,null,null,null,null,null,null,null,null,null,null,null,null,"Nein"]
["tbd",null,null,null,null,null,null,null,null,null,null,null,null,null,null,null,null,null,null,null,null,null,null,null,null,null,"Nein"]
["tbd",null,null,null,null,null,null,null,null,null,null,null,null,null,null,null,null,null,null,null,null,null,null,null,null,null,"Nein"]
["tbd",null,null,null,null,null,null,null,null,null,null,null,null,null,null,null,null,null,null,null,null,null,null,null,null,null,"Nein"]
["tbd",null,null,null,null,null,null,null,null,null,null,null,null,null,null,null,null,null,null,null,null,null,null,null,null,null,"Nein"]
["tbd",null,null,null,null,null,null,null,null,null,null,null,null,null,null,null,null,null,null,null,null,null,null,null,null,null,"Nein"]
["tbd",null,null,null,null,null,null,null,null,null,null,null,null,null,null,null,null,null,null,null,null,null,null,null,null,null,"Nein"]
["tbd",null,null,null,null,null,null,null,null,null,null,null,null,null,null,null,null,null,null,null,null,null,null,null,null,null,"Nein"]
["tbd",null,null,null,null,null,null,null,null,null,null,null,null,null,null,null,null,null,null,null,null,null,null,null,null,null,"Nein"]
["tbd",null,null,null,null,null,null,null,null,null,null,null,null,null,null,null,null,null,null,null,null,null,null,null,null,null,"Nein"]
["tbd",null,null,null,null,null,null,null,null,null,null,null,null,null,null,null,null,null,null,null,null,null,null,null,null,null,"Nein"]
["tbd",null,null,null,null,null,null,null,null,null,null,null,null,null,null,null,null,null,null,null,null,null,null,null,null,null,"Nein"]
["tbd",null,null,null,null,null,null,null,null,null,null,null,null,null,null,null,null,null,null,null,null,null,null,null,null,null,"Nein"]
["tbd",null,null,null,null,null,null,null,null,null,null,null,null,null,null,null,null,null,null,null,null,null,null,null,null,null,"Nein"]
["tbd",null,null,null,null,null,null,null,null,null,null,null,null,null,null,null,null,null,null,null,null,null,null,null,null,null,"Nein"]
["tbd",null,null,null,null,null,null,null,null,null,null,null,null,null,null,null,null,null,null,null,null,null,null,null,null,null,"Nein"]
["tbd",null,null,null,null,null,null,null,null,null,null,null,null,null,null,null,null,null,null,null,null,null,null,null,null,null,"Nein"]
["tbd",null,null,null,null,null,null,null,null,null,null,null,null,null,null,null,null,null,null,null,null,null,null,null,null,null,"Nein"]
["tbd",null,null,null,null,null,null,null,null,null,null,null,null,null,null,null,null,null,null,null,null,null,null,null,null,null,"Nein"]
["tbd",null,null,null,null,null,null,null,null,null,null,null,null,null,null,null,null,null,null,null,null,null,null,null,null,null,"Nein"]
["tbd",null,null,null,null,null,null,null,null,null,null,null,null,null,null,null,null,null,null,null,null,null,null,null,null,null,"Nein"]
["tbd",null,null,null,null,null,null,null,null,null,null,null,null,null,null,null,null,null,null,null,null,null,null,null,null,null,"Nein"]
["tbd",null,null,null,null,null,null,null,null,null,null,null,null,null,null,null,null,null,null,null,null,null,null,null,null,null,"Nein"]
["tbd",null,null,null,null,null,null,null,null,null,null,null,null,null,null,null,null,null,null,null,null,null,null,null,null,null,"Nein"]
["tbd",null,null,null,null,null,null,null,null,null,null,null,null,null,null,null,null,null,null,null,null,null,null,null,null,null,"Nein"]
["tbd",null,null,null,null,null,null,null,null,null,null,null,null,null,null,null,null,null,null,null,null,null,null,null,null,null,"Nein"]
["tbd",null,null,null,null,null,null,null,null,null,null,null,null,null,null,null,null,null,null,null,null,null,null,null,null,null,"Nein"]
["tbd",null,null,null,null,null,null,null,null,null,null,null,null,null,null,null,null,null,null,null,null,null,null,null,null,null,"Nein"]
["tbd",null,null,null,null,null,null,null,null,null,null,null,null,null,null,null,null,null,null,null,null,null,null,null,null,null,"Nein"]
["tbd",null,null,null,null,null,null,null,null,null,null,null,null,null,null,null,null,null,null,null,null,null,null,null,null,null,"Nein"]
["tbd",null,null,null,null,null,null,null,null,null,null,null,null,null,null,null,null,null,null,null,null,null,null,null,null,null,"Nein"]
["tbd",null,null,null,null,null,null,null,null,null,null,null,null,null,null,null,null,null,null,null,null,null,null,null,null,null,"Nein"]
["tbd",null,null,null,null,null,null,null,null,null,null,null,null,null,null,null,null,null,null,null,null,null,null,null,null,null,"Nein"]
["tbd",null,null,null,null,null,null,null,null,null,null,null,null,null,null,null,null,null,null,null,null,null,null,null,null,null,"Nein"]
["tbd",null,null,null,null,null,null,null,null,null,null,null,null,null,null,null,null,null,null,null,null,null,null,null,null,null,"Nein"]
["tbd",null,null,null,null,null,null,null,null,null,null,null,null,null,null,null,null,null,null,null,null,null,null,null,null,null,"Nein"]
["tbd",null,null,null,null,null,null,null,null,null,null,null,null,null,null,null,null,null,null,null,null,null,null,null,null,null,"Nein"]
["tbd",null,null,null,null,null,null,null,null,null,null,null,null,null,null,null,null,null,null,null,null,null,null,null,null,null,"Nein"]
["tbd",null,null,null,null,null,null,null,null,null,null,null,null,null,null,null,null,null,null,null,null,null,null,null,null,null,"Nein"]
["tbd",null,null,null,null,null,null,null,null,null,null,null,null,null,null,null,null,null,null,null,null,null,null,null,null,null,"Nein"]
["tbd",null,null,null,null,null,null,null,null,null,null,null,null,null,null,null,null,null,null,null,null,null,null,null,null,null,"Nein"]
["tbd",null,null,null,null,null,null,null,null,null,null,null,null,null,null,null,null,null,null,null,null,null,null,null,null,null,"Nein"]
["tbd",null,null,null,null,null,null,null,null,null,null,null,null,null,null,null,null,null,null,null,null,null,null,null,null,null,"Nein"]
["tbd",null,null,null,null,null,null,null,null,null,null,null,null,null,null,null,null,null,null,null,null,null,null,null,null,null,"Nein"]
["tbd",null,null,null,null,null,null,null,null,null,null,null,null,null,null,null,null,null,null,null,null,null,null,null,null,null,"Nein"]
["tbd",null,null,null,null,null,null,null,null,null,null,null,null,null,null,null,null,null,null,null,null,null,null,null,null,null,"Nein"]
["tbd",null,null,null,null,null,null,null,null,null,null,null,null,null,null,null,null,null,null,null,null,null,null,null,null,null,"Nein"]
["tbd",null,null,null,null,null,null,null,null,null,null,null,null,null,null,null,null,null,null,null,null,null,null,null,null,null,"Nein"]
["tbd",null,null,null,null,null,null,null,null,null,null,null,null,null,null,null,null,null,null,null,null,null,null,null,null,null,"Nein"]
["tbd",null,null,null,null,null,null,null,null,null,null,null,null,null,null,null,null,null,null,null,null,null,null,null,null,null,"Nein"]
["tbd",null,null,null,null,null,null,null,null,null,null,null,null,null,null,null,null,null,null,null,null,null,null,null,null,null,"Nein"]
["tbd",null,null,null,null,null,null,null,null,null,null,null,null,null,null,null,null,null,null,null,null,null,null,null,null,null,"Nein"]
["tbd",null,null,null,null,null,null,null,null,null,null,null,null,null,null,null,null,null,null,null,null,null,null,null,null,null,"Nein"]
["tbd",null,null,null,null,null,null,null,null,null,null,null,null,null,null,null,null,null,null,null,null,null,null,null,null,null,"Nein"]
["tbd",null,null,null,null,null,null,null,null,null,null,null,null,null,null,null,null,null,null,null,null,null,null,null,null,null,"Nein"]
["tbd",null,null,null,null,null,null,null,null,null,null,null,null,null,null,null,null,null,null,null,null,null,null,null,null,null,"Nein"]
["tbd",null,null,null,null,null,null,null,null,null,null,null,null,null,null,null,null,null,null,null,null,null,null,null,null,null,"Nein"]
["tbd",null,null,null,null,null,null,null,null,null,null,null,null,null,null,null,null,null,null,null,null,null,null,null,null,null,"Nein"]
["tbd",null,null,null,null,null,null,null,null,null,null,null,null,null,null,null,null,null,null,null,null,null,null,null,null,null,"Nein"]
["tbd",null,null,null,null,null,null,null,null,null,null,null,null,null,null,null,null,null,null,null,null,null,null,null,null,null,"Nein"]
["tbd",null,null,null,null,null,null,null,null,null,null,null,null,null,null,null,null,null,null,null,null,null,null,null,null,null,"Nein"]
["tbd",null,null,null,null,null,null,null,null,null,null,null,null,null,null,null,null,null,null,null,null,null,null,null,null,null,"Nein"]
["tbd",null,null,null,null,null,null,null,null,null,null,null,null,null,null,null,null,null,null,null,null,null,null,null,null,null,"Nein"]
["tbd",null,null,null,null,null,null,null,null,null,null,null,null,null,null,null,null,null,null,null,null,null,null,null,null,null,"Nein"]
["tbd",null,null,null,null,null,null,null,null,null,null,null,null,null,null,null,null,null,null,null,null,null,null,null,null,null,"Nein"]
["tbd",null,null,null,null,null,null,null,null,null,null,null,null,null,null,null,null,null,null,null,null,null,null,null,null,null,"Nein"]
["tbd",null,null,null,null,null,null,null,null,null,null,null,null,null,null,null,null,null,null,null,null,null,null,null,null,null,"Nein"]
["tbd",null,null,null,null,null,null,null,null,null,null,null,null,null,null,null,null,null,null,null,null,null,null,null,null,null,"Nein"]
["tbd",null,null,null,null,null,null,null,null,null,null,null,null,null,null,null,null,null,null,null,null,null,null,null,null,null,"Nein"]
["tbd",null,null,null,null,null,null,null,null,null,null,null,null,null,null,null,null,null,null,null,null,null,null,null,null,null,"Nein"]
["tbd",null,null,null,null,null,null,null,null,null,null,null,null,null,null,null,null,null,null,null,null,null,null,null,null,null,"Nein"]
["tbd",null,null,null,null,null,null,null,null,null,null,null,null,null,null,null,null,null,null,null,null,null,null,null,null,null,"Nein"]
["tbd",null,null,null,null,null,null,null,null,null,null,null,null,null,null,null,null,null,null,null,null,null,null,null,null,null,"Nein"]
["tbd",null,null,null,null,null,null,null,null,null,null,null,null,null,null,null,null,null,null,null,null,null,null,null,null,null,"Nein"]
["tbd",null,null,null,null,null,null,null,null,null,null,null,null,null,null,null,null,null,null,null,null,null,null,null,null,null,"Nein"]
["tbd",null,null,null,null,null,null,null,null,null,null,null,null,null,null,null,null,null,null,null,null,null,null,null,null,null,"Nein"]
["tbd",null,null,null,null,null,null,null,null,null,null,null,null,null,null,null,null,null,null,null,null,null,null,null,null,null,"Nein"]
["tbd",null,null,null,null,null,null,null,null,null,null,null,null,null,null,null,null,null,null,null,null,null,null,null,null,null,"Nein"]
["tbd",null,null,null,null,null,null,null,null,null,null,null,null,null,null,null,null,null,null,null,null,null,null,null,null,null,"Nein"]
["tbd",null,null,null,null,null,null,null,null,null,null,null,null,null,null,null,null,null,null,null,null,null,null,null,null,null,"Nein"]
["tbd",null,null,null,null,null,null,null,null,null,null,null,null,null,null,null,null,null,null,null,null,null,null,null,null,null,"Nein"]
["tbd",null,null,null,null,null,null,null,null,null,null,null,null,null,null,null,null,null,null,null,null,null,null,null,null,null,"Nein"]
["tbd",null,null,null,null,null,null,null,null,null,null,null,null,null,null,null,null,null,null,null,null,null,null,null,null,null,"Nein"]
["tbd",null,null,null,null,null,null,null,null,null,null,null,null,null,null,null,null,null,null,null,null,null,null,null,null,null,"Nein"]
["tbd",null,null,null,null,null,null,null,null,null,null,null,null,null,null,null,null,null,null,null,null,null,null,null,null,null,"Nein"]
["tbd",null,null,null,null,null,null,null,null,null,null,null,null,null,null,null,null,null,null,null,null,null,null,null,null,null,"Nein"]
["tbd",null,null,null,null,null,null,null,null,null,null,null,null,null,null,null,null,null,null,null,null,null,null,null,null,null,"Nein"]
["tbd",null,null,null,null,null,null,null,null,null,null,null,null,null,null,null,null,null,null,null,null,null,null,null,null,null,"Nein"]
["tbd",null,null,null,null,null,null,null,null,null,null,null,null,null,null,null,null,null,null,null,null,null,null,null,null,null,"Nein"]
["tbd",null,null,null,null,null,null,null,null,null,null,null,null,null,null,null,null,null,null,null,null,null,null,null,null,null,"Nein"]
["tbd",null,null,null,null,null,null,null,null,null,null,null,null,null,null,null,null,null,null,null,null,null,null,null,null,null,"Nein"]
["tbd",null,null,null,null,null,null,null,null,null,null,null,null,null,null,null,null,null,null,null,null,null,null,null,null,null,"Nein"]
["tbd",null,null,null,null,null,null,null,null,null,null,null,null,null,null,null,null,null,null,null,null,null,null,null,null,null,"Nein"]
["tbd",null,null,null,null,null,null,null,null,null,null,null,null,null,null,null,null,null,null,null,null,null,null,null,null,null,"Nein"]
["tbd",null,null,null,null,null,null,null,null,null,null,null,null,null,null,null,null,null,null,null,null,null,null,null,null,null,"Nein"]
["tbd",null,null,null,null,null,null,null,null,null,null,null,null,null,null,null,null,null,null,null,null,null,null,null,null,null,"Nein"]
["tbd",null,null,null,null,null,null,null,null,null,null,null,null,null,null,null,null,null,null,null,null,null,null,null,null,null,"Nein"]
["tbd",null,null,null,null,null,null,null,null,null,null,null,null,null,null,null,null,null,null,null,null,null,null,null,null,null,"Nein"]
["tbd",null,null,null,null,null,null,null,null,null,null,null,null,null,null,null,null,null,null,null,null,null,null,null,null,null,"Nein"]
["tbd",null,null,null,null,null,null,null,null,null,null,null,null,null,null,null,null,null,null,null,null,null,null,null,null,null,"Nein"]
["tbd",null,null,null,null,null,null,null,null,null,null,null,null,null,null,null,null,null,null,null,null,null,null,null,null,null,"Nein"]
["tbd",null,null,null,null,null,null,null,null,null,null,null,null,null,null,null,null,null,null,null,null,null,null,null,null,null,"Nein"]
["tbd",null,null,null,null,null,null,null,null,null,null,null,null,null,null,null,null,null,null,null,null,null,null,null,null,null,"Nein"]
["tbd",null,null,null,null,null,null,null,null,null,null,null,null,null,null,null,null,null,null,null,null,null,null,null,null,null,"Nein"]
["tbd",null,null,null,null,null,null,null,null,null,null,null,null,null,null,null,null,null,null,null,null,null,null,null,null,null,"Nein"]
["tbd",null,null,null,null,null,null,null,null,null,null,null,null,null,null,null,null,null,null,null,null,null,null,null,null,null,"Nein"]
["tbd",null,null,null,null,null,null,null,null,null,null,null,null,null,null,null,null,null,null,null,null,null,null,null,null,null,"Nein"]
["tbd",null,null,null,null,null,null,null,null,null,null,null,null,null,null,null,null,null,null,null,null,null,null,null,null,null,"Nein"]
["tbd",null,null,null,null,null,null,null,null,null,null,null,null,null,null,null,null,null,null,null,null,null,null,null,null,null,"Nein"]
["tbd",null,null,null,null,null,null,null,null,null,null,null,null,null,null,null,null,null,null,null,null,null,null,null,null,null,"Nein"]
["tbd",null,null,null,null,null,null,null,null,null,null,null,null,null,null,null,null,null,null,null,null,null,null,null,null,null,"Nein"]
["tbd",null,null,null,null,null,null,null,null,null,null,null,null,null,null,null,null,null,null,null,null,null,null,null,null,null,"Nein"]
["tbd",null,null,null,null,null,null,null,null,null,null,null,null,null,null,null,null,null,null,null,null,null,null,null,null,null,"Nein"]
["tbd",null,null,null,null,null,null,null,null,null,null,null,null,null,null,null,null,null,null,null,null,null,null,null,null,null,"Nein"]
["tbd",null,null,null,null,null,null,null,null,null,null,null,null,null,null,null,null,null,null,null,null,null,null,null,null,null,"Nein"]
["tbd",null,null,null,null,null,null,null,null,null,null,null,null,null,null,null,null,null,null,null,null,null,null,null,null,null,"Nein"]
["tbd",null,null,null,null,null,null,null,null,null,null,null,null,null,null,null,null,null,null,null,null,null,null,null,null,null,"Nein"]
["tbd",null,null,null,null,null,null,null,null,null,null,null,null,null,null,null,null,null,null,null,null,null,null,null,null,null,"Nein"]
["tbd",null,null,null,null,null,null,null,null,null,null,null,null,null,null,null,null,null,null,null,null,null,null,null,null,null,"Nein"]
["tbd",null,null,null,null,null,null,null,null,null,null,null,null,null,null,null,null,null,null,null,null,null,null,null,null,null,"Nein"]
["tbd",null,null,null,null,null,null,null,null,null,null,null,null,null,null,null,null,null,null,null,null,null,null,null,null,null,"Nein"]
["tbd",null,null,null,null,null,null,null,null,null,null,null,null,null,null,null,null,null,null,null,null,null,null,null,null,null,"Nein"]
["tbd",null,null,null,null,null,null,null,null,null,null,null,null,null,null,null,null,null,null,null,null,null,null,null,null,null,"Nein"]
["tbd",null,null,null,null,null,null,null,null,null,null,null,null,null,null,null,null,null,null,null,null,null,null,null,null,null,"Nein"]
["tbd",null,null,null,null,null,null,null,null,null,null,null,null,null,null,null,null,null,null,null,null,null,null,null,null,null,"Nein"]
["tbd",null,null,null,null,null,null,null,null,null,null,null,null,null,null,null,null,null,null,null,null,null,null,null,null,null,"Nein"]
["tbd",null,null,null,null,null,null,null,null,null,null,null,null,null,null,null,null,null,null,null,null,null,null,null,null,null,"Nein"]
["tbd",null,null,null,null,null,null,null,null,null,null,null,null,null,null,null,null,null,null,null,null,null,null,null,null,null,"Nein"]
["tbd",null,null,null,null,null,null,null,null,null,null,null,null,null,null,null,null,null,null,null,null,null,null,null,null,null,"Nein"]
["tbd",null,null,null,null,null,null,null,null,null,null,null,null,null,null,null,null,null,null,null,null,null,null,null,null,null,"Nein"]
["tbd",null,null,null,null,null,null,null,null,null,null,null,null,null,null,null,null,null,null,null,null,null,null,null,null,null,"Nein"]
["tbd",null,null,null,null,null,null,null,null,null,null,null,null,null,null,null,null,null,null,null,null,null,null,null,null,null,"Nein"]
["tbd",null,null,null,null,null,null,null,null,null,null,null,null,null,null,null,null,null,null,null,null,null,null,null,null,null,"Nein"]
["tbd",null,null,null,null,null,null,null,null,null,null,null,null,null,null,null,null,null,null,null,null,null,null,null,null,null,"Nein"]
["tbd",null,null,null,null,null,null,null,null,null,null,null,null,null,null,null,null,null,null,null,null,null,null,null,null,null,"Nein"]
["tbd",null,null,null,null,null,null,null,null,null,null,null,null,null,null,null,null,null,null,null,null,null,null,null,null,null,"Nein"]
["tbd",null,null,null,null,null,null,null,null,null,null,null,null,null,null,null,null,null,null,null,null,null,null,null,null,null,"Nein"]
["tbd",null,null,null,null,null,null,null,null,null,null,null,null,null,null,null,null,null,null,null,null,null,null,null,null,null,"Nein"]
["tbd",null,null,null,null,null,null,null,null,null,null,null,null,null,null,null,null,null,null,null,null,null,null,null,null,null,"Nein"]
["tbd",null,null,null,null,null,null,null,null,null,null,null,null,null,null,null,null,null,null,null,null,null,null,null,null,null,"Nein"]
["tbd",null,null,null,null,null,null,null,null,null,null,null,null,null,null,null,null,null,null,null,null,null,null,null,null,null,"Nein"]
["tbd",null,null,null,null,null,null,null,null,null,null,null,null,null,null,null,null,null,null,null,null,null,null,null,null,null,"Nein"]
["tbd",null,null,null,null,null,null,null,null,null,null,null,null,null,null,null,null,null,null,null,null,null,null,null,null,null,"Nein"]
["tbd",null,null,null,null,null,null,null,null,null,null,null,null,null,null,null,null,null,null,null,null,null,null,null,null,null,"Nein"]
["tbd",null,null,null,null,null,null,null,null,null,null,null,null,null,null,null,null,null,null,null,null,null,null,null,null,null,"Nein"]
["tbd",null,null,null,null,null,null,null,null,null,null,null,null,null,null,null,null,null,null,null,null,null,null,null,null,null,"Nein"]
["tbd",null,null,null,null,null,null,null,null,null,null,null,null,null,null,null,null,null,null,null,null,null,null,null,null,null,"Nein"]
["tbd",null,null,null,null,null,null,null,null,null,null,null,null,null,null,null,null,null,null,null,null,null,null,null,null,null,"Nein"]
["tbd",null,null,null,null,null,null,null,null,null,null,null,null,null,null,null,null,null,null,null,null,null,null,null,null,null,"Nein"]
["tbd",null,null,null,null,null,null,null,null,null,null,null,null,null,null,null,null,null,null,null,null,null,null,null,null,null,"Nein"]
["tbd",null,null,null,null,null,null,null,null,null,null,null,null,null,null,null,null,null,null,null,null,null,null,null,null,null,"Nein"]
["tbd",null,null,null,null,null,null,null,null,null,null,null,null,null,null,null,null,null,null,null,null,null,null,null,null,null,"Nein"]
["tbd",null,null,null,null,null,null,null,null,null,null,null,null,null,null,null,null,null,null,null,null,null,null,null,null,null,"Nein"]
["tbd",null,null,null,null,null,null,null,null,null,null,null,null,null,null,null,null,null,null,null,null,null,null,null,null,null,"Nein"]
["tbd",null,null,null,null,null,null,null,null,null,null,null,null,null,null,null,null,null,null,null,null,null,null,null,null,null,"Nein"]
["tbd",null,null,null,null,null,null,null,null,null,null,null,null,null,null,null,null,null,null,null,null,null,null,null,null,null,"Nein"]
["tbd",null,null,null,null,null,null,null,null,null,null,null,null,null,null,null,null,null,null,null,null,null,null,null,null,null,"Nein"]
["tbd",null,null,null,null,null,null,null,null,null,null,null,null,null,null,null,null,null,null,null,null,null,null,null,null,null,"Nein"]
["tbd",null,null,null,null,null,null,null,null,null,null,null,null,null,null,null,null,null,null,null,null,null,null,null,null,null,"Nein"]
["tbd",null,null,null,null,null,null,null,null,null,null,null,null,null,null,null,null,null,null,null,null,null,null,null,null,null,"Nein"]
["tbd",null,null,null,null,null,null,null,null,null,null,null,null,null,null,null,null,null,null,null,null,null,null,null,null,null,"Nein"]
["tbd",null,null,null,null,null,null,null,null,null,null,null,null,null,null,null,null,null,null,null,null,null,null,null,null,null,"Nein"]
["tbd",null,null,null,null,null,null,null,null,null,null,null,null,null,null,null,null,null,null,null,null,null,null,null,null,null,"Nein"]
["tbd",null,null,null,null,null,null,null,null,null,null,null,null,null,null,null,null,null,null,null,null,null,null,null,null,null,"Nein"]
["tbd",null,null,null,null,null,null,null,null,null,null,null,null,null,null,null,null,null,null,null,null,null,null,null,null,null,"Nein"]
["tbd",null,null,null,null,null,null,null,null,null,null,null,null,null,null,null,null,null,null,null,null,null,null,null,null,null,"Nein"]
["tbd",null,null,null,null,null,null,null,null,null,null,null,null,null,null,null,null,null,null,null,null,null,null,null,null,null,"Nein"]
["tbd",null,null,null,null,null,null,null,null,null,null,null,null,null,null,null,null,null,null,null,null,null,null,null,null,null,"Nein"]
["tbd",null,null,null,null,null,null,null,null,null,null,null,null,null,null,null,null,null,null,null,null,null,null,null,null,null,"Nein"]
["tbd",null,null,null,null,null,null,null,null,null,null,null,null,null,null,null,null,null,null,null,null,null,null,null,null,null,"Nein"]
["tbd",null,null,null,null,null,null,null,null,null,null,null,null,null,null,null,null,null,null,null,null,null,null,null,null,null,"Nein"]
["tbd",null,null,null,null,null,null,null,null,null,null,null,null,null,null,null,null,null,null,null,null,null,null,null,null,null,"Nein"]
["tbd",null,null,null,null,null,null,null,null,null,null,null,null,null,null,null,null,null,null,null,null,null,null,null,null,null,"Nein"]
["tbd",null,null,null,null,null,null,null,null,null,null,null,null,null,null,null,null,null,null,null,null,null,null,null,null,null,"Nein"]
["tbd",null,null,null,null,null,null,null,null,null,null,null,null,null,null,null,null,null,null,null,null,null,null,null,null,null,"Nein"]
["tbd",null,null,null,null,null,null,null,null,null,null,null,null,null,null,null,null,null,null,null,null,null,null,null,null,null,"Nein"]
["tbd",null,null,null,null,null,null,null,null,null,null,null,null,null,null,null,null,null,null,null,null,null,null,null,null,null,"Nein"]
["tbd",null,null,null,null,null,null,null,null,null,null,null,null,null,null,null,null,null,null,null,null,null,null,null,null,null,"Nein"]
["tbd",null,null,null,null,null,null,null,null,null,null,null,null,null,null,null,null,null,null,null,null,null,null,null,null,null,"Nein"]
["tbd",null,null,null,null,null,null,null,null,null,null,null,null,null,null,null,null,null,null,null,null,null,null,null,null,null,"Nein"]
["tbd",null,null,null,null,null,null,null,null,null,null,null,null,null,null,null,null,null,null,null,null,null,null,null,null,null,"Nein"]
["tbd",null,null,null,null,null,null,null,null,null,null,null,null,null,null,null,null,null,null,null,null,null,null,null,null,null,"Nein"]
["tbd",null,null,null,null,null,null,null,null,null,null,null,null,null,null,null,null,null,null,null,null,null,null,null,null,null,"Nein"]
["tbd",null,null,null,null,null,null,null,null,null,null,null,null,null,null,null,null,null,null,null,null,null,null,null,null,null,"Nein"]
["tbd",null,null,null,null,null,null,null,null,null,null,null,null,null,null,null,null,null,null,null,null,null,null,null,null,null,"Nein"]
["tbd",null,null,null,null,null,null,null,null,null,null,null,null,null,null,null,null,null,null,null,null,null,null,null,null,null,"Nein"]
["tbd",null,null,null,null,null,null,null,null,null,null,null,null,null,null,null,null,null,null,null,null,null,null,null,null,null,"Nein"]
["tbd",null,null,null,null,null,null,null,null,null,null,null,null,null,null,null,null,null,null,null,null,null,null,null,null,null,"Nein"]
["tbd",null,null,null,null,null,null,null,null,null,null,null,null,null,null,null,null,null,null,null,null,null,null,null,null,null,"Nein"]
["tbd",null,null,null,null,null,null,null,null,null,null,null,null,null,null,null,null,null,null,null,null,null,null,null,null,null,"Nein"]
["tbd",null,null,null,null,null,null,null,null,null,null,null,null,null,null,null,null,null,null,null,null,null,null,null,null,null,"Nein"]
["tbd",null,null,null,null,null,null,null,null,null,null,null,null,null,null,null,null,null,null,null,null,null,null,null,null,null,"Nein"]
["tbd",null,null,null,null,null,null,null,null,null,null,null,null,null,null,null,null,null,null,null,null,null,null,null,null,null,"Nein"]
["tbd",null,null,null,null,null,null,null,null,null,null,null,null,null,null,null,null,null,null,null,null,null,null,null,null,null,"Nein"]
["tbd",null,null,null,null,null,null,null,null,null,null,null,null,null,null,null,null,null,null,null,null,null,null,null,null,null,"Nein"]
["tbd",null,null,null,null,null,null,null,null,null,null,null,null,null,null,null,null,null,null,null,null,null,null,null,null,null,"Nein"]
["tbd",null,null,null,null,null,null,null,null,null,null,null,null,null,null,null,null,null,null,null,null,null,null,null,null,null,"Nein"]
["tbd",null,null,null,null,null,null,null,null,null,null,null,null,null,null,null,null,null,null,null,null,null,null,null,null,null,"Nein"]
["tbd",null,null,null,null,null,null,null,null,null,null,null,null,null,null,null,null,null,null,null,null,null,null,null,null,null,"Nein"]
["tbd",null,null,null,null,null,null,null,null,null,null,null,null,null,null,null,null,null,null,null,null,null,null,null,null,null,"Nein"]
["tbd",null,null,null,null,null,null,null,null,null,null,null,null,null,null,null,null,null,null,null,null,null,null,null,null,null,"Nein"]
["tbd",null,null,null,null,null,null,null,null,null,null,null,null,null,null,null,null,null,null,null,null,null,null,null,null,null,"Nein"]
["tbd",null,null,null,null,null,null,null,null,null,null,null,null,null,null,null,null,null,null,null,null,null,null,null,null,null,"Nein"]
["tbd",null,null,null,null,null,null,null,null,null,null,null,null,null,null,null,null,null,null,null,null,null,null,null,null,null,"Nein"]
["tbd",null,null,null,null,null,null,null,null,null,null,null,null,null,null,null,null,null,null,null,null,null,null,null,null,null,"Nein"]
["tbd",null,null,null,null,null,null,null,null,null,null,null,null,null,null,null,null,null,null,null,null,null,null,null,null,null,"Nein"]
["tbd",null,null,null,null,null,null,null,null,null,null,null,null,null,null,null,null,null,null,null,null,null,null,null,null,null,"Nein"]
["tbd",null,null,null,null,null,null,null,null,null,null,null,null,null,null,null,null,null,null,null,null,null,null,null,null,null,"Nein"]
["tbd",null,null,null,null,null,null,null,null,null,null,null,null,null,null,null,null,null,null,null,null,null,null,null,null,null,"Nein"]
["tbd",null,null,null,null,null,null,null,null,null,null,null,null,null,null,null,null,null,null,null,null,null,null,null,null,null,"Nein"]
["tbd",null,null,null,null,null,null,null,null,null,null,null,null,null,null,null,null,null,null,null,null,null,null,null,null,null,"Nein"]
["tbd",null,null,null,null,null,null,null,null,null,null,null,null,null,null,null,null,null,null,null,null,null,null,null,null,null,"Nein"]
["tbd",null,null,null,null,null,null,null,null,null,null,null,null,null,null,null,null,null,null,null,null,null,null,null,null,null,"Nein"]
["tbd",null,null,null,null,null,null,null,null,null,null,null,null,null,null,null,null,null,null,null,null,null,null,null,null,null,"Nein"]
["tbd",null,null,null,null,null,null,null,null,null,null,null,null,null,null,null,null,null,null,null,null,null,null,null,null,null,"Nein"]
["tbd",null,null,null,null,null,null,null,null,null,null,null,null,null,null,null,null,null,null,null,null,null,null,null,null,null,"Nein"]
["tbd",null,null,null,null,null,null,null,null,null,null,null,null,null,null,null,null,null,null,null,null,null,null,null,null,null,"Nein"]
["tbd",null,null,null,null,null,null,null,null,null,null,null,null,null,null,null,null,null,null,null,null,null,null,null,null,null,"Nein"]
["tbd",null,null,null,null,null,null,null,null,null,null,null,null,null,null,null,null,null,null,null,null,null,null,null,null,null,"Nein"]
["tbd",null,null,null,null,null,null,null,null,null,null,null,null,null,null,null,null,null,null,null,null,null,null,null,null,null,"Nein"]
["tbd",null,null,null,null,null,null,null,null,null,null,null,null,null,null,null,null,null,null,null,null,null,null,null,null,null,"Nein"]
["tbd",null,null,null,null,null,null,null,null,null,null,null,null,null,null,null,null,null,null,null,null,null,null,null,null,null,"Nein"]
["tbd",null,null,null,null,null,null,null,null,null,null,null,null,null,null,null,null,null,null,null,null,null,null,null,null,null,"Nein"]
["tbd",null,null,null,null,null,null,null,null,null,null,null,null,null,null,null,null,null,null,null,null,null,null,null,null,null,"Nein"]
["tbd",null,null,null,null,null,null,null,null,null,null,null,null,null,null,null,null,null,null,null,null,null,null,null,null,null,"Nein"]
["tbd",null,null,null,null,null,null,null,null,null,null,null,null,null,null,null,null,null,null,null,null,null,null,null,null,null,"Nein"]
["tbd",null,null,null,null,null,null,null,null,null,null,null,null,null,null,null,null,null,null,null,null,null,null,null,null,null,"Nein"]
["tbd",null,null,null,null,null,null,null,null,null,null,null,null,null,null,null,null,null,null,null,null,null,null,null,null,null,"Nein"]
["tbd",null,null,null,null,null,null,null,null,null,null,null,null,null,null,null,null,null,null,null,null,null,null,null,null,null,"Nein"]
["tbd",null,null,null,null,null,null,null,null,null,null,null,null,null,null,null,null,null,null,null,null,null,null,null,null,null,"Nein"]
["tbd",null,null,null,null,null,null,null,null,null,null,null,null,null,null,null,null,null,null,null,null,null,null,null,null,null,"Nein"]
["tbd",null,null,null,null,null,null,null,null,null,null,null,null,null,null,null,null,null,null,null,null,null,null,null,null,null,"Nein"]
["tbd",null,null,null,null,null,null,null,null,null,null,null,null,null,null,null,null,null,null,null,null,null,null,null,null,null,"Nein"]
["tbd",null,null,null,null,null,null,null,null,null,null,null,null,null,null,null,null,null,null,null,null,null,null,null,null,null,"Nein"]
["tbd",null,null,null,null,null,null,null,null,null,null,null,null,null,null,null,null,null,null,null,null,null,null,null,null,null,"Nein"]
["tbd",null,null,null,null,null,null,null,null,null,null,null,null,null,null,null,null,null,null,null,null,null,null,null,null,null,"Nein"]
["tbd",null,null,null,null,null,null,null,null,null,null,null,null,null,null,null,null,null,null,null,null,null,null,null,null,null,"Nein"]
["tbd",null,null,null,null,null,null,null,null,null,null,null,null,null,null,null,null,null,null,null,null,null,null,null,null,null,"Nein"]
["tbd",null,null,null,null,null,null,null,null,null,null,null,null,null,null,null,null,null,null,null,null,null,null,null,null,null,"Nein"]
["tbd",null,null,null,null,null,null,null,null,null,null,null,null,null,null,null,null,null,null,null,null,null,null,null,null,null,"Nein"]
["tbd",null,null,null,null,null,null,null,null,null,null,null,null,null,null,null,null,null,null,null,null,null,null,null,null,null,"Nein"]
["tbd",null,null,null,null,null,null,null,null,null,null,null,null,null,null,null,null,null,null,null,null,null,null,null,null,null,"Nein"]
["tbd",null,null,null,null,null,null,null,null,null,null,null,null,null,null,null,null,null,null,null,null,null,null,null,null,null,"Nein"]
["tbd",null,null,null,null,null,null,null,null,null,null,null,null,null,null,null,null,null,null,null,null,null,null,null,null,null,"Nein"]
["tbd",null,null,null,null,null,null,null,null,null,null,null,null,null,null,null,null,null,null,null,null,null,null,null,null,null,"Nein"]
["tbd",null,null,null,null,null,null,null,null,null,null,null,null,null,null,null,null,null,null,null,null,null,null,null,null,null,"Nein"]
["tbd",null,null,null,null,null,null,null,null,null,null,null,null,null,null,null,null,null,null,null,null,null,null,null,null,null,"Nein"]
["tbd",null,null,null,null,null,null,null,null,null,null,null,null,null,null,null,null,null,null,null,null,null,null,null,null,null,"Nein"]
["tbd",null,null,null,null,null,null,null,null,null,null,null,null,null,null,null,null,null,null,null,null,null,null,null,null,null,"Nein"]
["tbd",null,null,null,null,null,null,null,null,null,null,null,null,null,null,null,null,null,null,null,null,null,null,null,null,null,"Nein"]
["tbd",null,null,null,null,null,null,null,null,null,null,null,null,null,null,null,null,null,null,null,null,null,null,null,null,null,"Nein"]
["tbd",null,null,null,null,null,null,null,null,null,null,null,null,null,null,null,null,null,null,null,null,null,null,null,null,null,"Nein"]
["tbd",null,null,null,null,null,null,null,null,null,null,null,null,null,null,null,null,null,null,null,null,null,null,null,null,null,"Nein"]
["tbd",null,null,null,null,null,null,null,null,null,null,null,null,null,null,null,null,null,null,null,null,null,null,null,null,null,"Nein"]
["tbd",null,null,null,null,null,null,null,null,null,null,null,null,null,null,null,null,null,null,null,null,null,null,null,null,null,"Nein"]
["tbd",null,null,null,null,null,null,null,null,null,null,null,null,null,null,null,null,null,null,null,null,null,null,null,null,null,"Nein"]
["tbd",null,null,null,null,null,null,null,null,null,null,null,null,null,null,null,null,null,null,null,null,null,null,null,null,null,"Nein"]
["tbd",null,null,null,null,null,null,null,null,null,null,null,null,null,null,null,null,null,null,null,null,null,null,null,null,null,"Nein"]
["tbd",null,null,null,null,null,null,null,null,null,null,null,null,null,null,null,null,null,null,null,null,null,null,null,null,null,"Nein"]
["tbd",null,null,null,null,null,null,null,null,null,null,null,null,null,null,null,null,null,null,null,null,null,null,null,null,null,"Nein"]
["tbd",null,null,null,null,null,null,null,null,null,null,null,null,null,null,null,null,null,null,null,null,null,null,null,null,null,"Nein"]
["tbd",null,null,null,null,null,null,null,null,null,null,null,null,null,null,null,null,null,null,null,null,null,null,null,null,null,"Nein"]
["tbd",null,null,null,null,null,null,null,null,null,null,null,null,null,null,null,null,null,null,null,null,null,null,null,null,null,"Nein"]
["tbd",null,null,null,null,null,null,null,null,null,null,null,null,null,null,null,null,null,null,null,null,null,null,null,null,null,"Nein"]
["tbd",null,null,null,null,null,null,null,null,null,null,null,null,null,null,null,null,null,null,null,null,null,null,null,null,null,"Nein"]
["tbd",null,null,null,null,null,null,null,null,null,null,null,null,null,null,null,null,null,null,null,null,null,null,null,null,null,"Nein"]
["tbd",null,null,null,null,null,null,null,null,null,null,null,null,null,null,null,null,null,null,null,null,null,null,null,null,null,"Nein"]
["tbd",null,null,null,null,null,null,null,null,null,null,null,null,null,null,null,null,null,null,null,null,null,null,null,null,null,"Nein"]
["tbd",null,null,null,null,null,null,null,null,null,null,null,null,null,null,null,null,null,null,null,null,null,null,null,null,null,"Nein"]
["tbd",null,null,null,null,null,null,null,null,null,null,null,null,null,null,null,null,null,null,null,null,null,null,null,null,null,"Nein"]
["tbd",null,null,null,null,null,null,null,null,null,null,null,null,null,null,null,null,null,null,null,null,null,null,null,null,null,"Nein"]
["tbd",null,null,null,null,null,null,null,null,null,null,null,null,null,null,null,null,null,null,null,null,null,null,null,null,null,"Nein"]
["tbd",null,null,null,null,null,null,null,null,null,null,null,null,null,null,null,null,null,null,null,null,null,null,null,null,null,"Nein"]
["tbd",null,null,null,null,null,null,null,null,null,null,null,null,null,null,null,null,null,null,null,null,null,null,null,null,null,"Nein"]
["tbd",null,null,null,null,null,null,null,null,null,null,null,null,null,null,null,null,null,null,null,null,null,null,null,null,null,"Nein"]
["tbd",null,null,null,null,null,null,null,null,null,null,null,null,null,null,null,null,null,null,null,null,null,null,null,null,null,"Nein"]
["tbd",null,null,null,null,null,null,null,null,null,null,null,null,null,null,null,null,null,null,null,null,null,null,null,null,null,"Nein"]
["tbd",null,null,null,null,null,null,null,null,null,null,null,null,null,null,null,null,null,null,null,null,null,null,null,null,null,"Nein"]
["tbd",null,null,null,null,null,null,null,null,null,null,null,null,null,null,null,null,null,null,null,null,null,null,null,null,null,"Nein"]
["tbd",null,null,null,null,null,null,null,null,null,null,null,null,null,null,null,null,null,null,null,null,null,null,null,null,null,"Nein"]
["tbd",null,null,null,null,null,null,null,null,null,null,null,null,null,null,null,null,null,null,null,null,null,null,null,null,null,"Nein"]
["tbd",null,null,null,null,null,null,null,null,null,null,null,null,null,null,null,null,null,null,null,null,null,null,null,null,null,"Nein"]
["tbd",null,null,null,null,null,null,null,null,null,null,null,null,null,null,null,null,null,null,null,null,null,null,null,null,null,"Nein"]
["tbd",null,null,null,null,null,null,null,null,null,null,null,null,null,null,null,null,null,null,null,null,null,null,null,null,null,"Nein"]
["tbd",null,null,null,null,null,null,null,null,null,null,null,null,null,null,null,null,null,null,null,null,null,null,null,null,null,"Nein"]
["tbd",null,null,null,null,null,null,null,null,null,null,null,null,null,null,null,null,null,null,null,null,null,null,null,null,null,"Nein"]
["tbd",null,null,null,null,null,null,null,null,null,null,null,null,null,null,null,null,null,null,null,null,null,null,null,null,null,"Nein"]

{"sheet":"Calc","index":2,"n_rows":155,"n_cols":21,"rows_kept":155,"cut":false,"hidden":true,"merged":[]}
["Motor Nr","Drive Nr","DC-Voltage","2. Motor",null,"AC","DC",null,null,null,"Drives","AC-Voltage","Icont","Ipeak","SFD \nUnterstützung?"]
["AKM12E","Servostar 303","75",false,2,{"$f":"24/SQRT(2)","v":16.970562748477139},{"$f":"IF($C$13>F2,24,\"\")","v":24},null,null,null,"Servostar 303",230,3,9,"Nein"]
[null,"V < 75V",{"$f":"C2*1<G4*1","v":false},null,null,{"$f":"48/SQRT(2)","v":33.941125496954278},{"$f":"IF($C$13>F3,48,\"\")","v":48},null,null,null,"Servostar 306",230,6,15,"Nein"]
[null,null,null,null,null,{"$f":"75/SQRT(2)","v":53.033008588991059},{"$f":"IF($C$13>F4,75,\"\")","v":75},null,null,null,"Servostar 310",230,10,20,"Nein"]
[null,null,null,null,null,{"$f":"160/SQRT(2)","v":113.13708498984759},{"$f":"IF($C$13>F5,160,\"\")","v":160},null,null,null,"Servostar 341",480,1.5,4.5,"Nein"]
[null,null,null,null,null,{"$f":"320/SQRT(2)","v":226.27416997969519},{"$f":"IF($C$13>F6,320,\"\")","v":320},null,null,null,"Servostar 343",480,3,7.5,"Nein"]
[null,null,null,null,null,{"$f":"560/SQRT(2)","v":395.97979746446657},{"$f":"IF($C$13>F7,560,\"\")","v":""},null,null,null,"Servostar 346",480,6,12,"Nein"]
["Motor",null,null,null,null,{"$f":"640/SQRT(2)","v":452.54833995939038},{"$f":"IF($C$13>F8,640,\"\")","v":""},null,null,null,"Servostar 403M/A",230,3,9,"Nein"]
["r","l","ke","Ipeak ","poles","nmax","Mo","Io","Mpeak",null,"Servostar 406M/A",230,6,12,"Nein"]
[{"$f":"IF(C3=TRUE,VLOOKUP($A$2,Motor!$A$9:$Y$1285,22,FALSE)*1.4,VLOOKUP($A$2,Motor!$A$9:$Y$1285,22,FALSE))","v":3.9},{"$f":"VLOOKUP($A$2,Motor!$A$9:$Y$1285,23,FALSE)","v":2.7},{"$f":"VLOOKUP($A$2,Motor!$A$9:$Y$1285,24,FALSE)","v":7.2},{"$f":"VLOOKUP($A$2,Motor!$A$9:$Y$1285,3,FALSE)","v":10.9},{"$f":"VLOOKUP($A$2,Motor!$A$9:$Y$1285,25,FALSE)","v":6},{"$f":"VLOOKUP($A$2,Motor!$A$9:$Y$1285,20,FALSE)","v":8000},{"$f":"VLOOKUP($A$2,Motor!$A$9:$Y$1285,4,FALSE)","v":0.3},{"$f":"VLOOKUP($A$2,Motor!$A$9:$Y$1285,5,FALSE)","v":2.72},{"$f":"VLOOKUP($A$2,Motor!$A$9:$Y$1285,2,FALSE)","v":1.08},null,"Servostar 443M/403A",400,3,9,"Nein"]
["Drive",null,null,null,null,null,{"$f":"G10/H10","v":0.11029411764705881},null,{"$f":"I10/D10","v":9.9082568807339455E-2},null,"Servostar 446M/406A",400,6,12,"Nein"]
["I peak","I rms","AC-Voltage",null,null,null,null,null,null,null,"Servostar 601",480,1.5,3,"Nein"]
[{"$f":"VALUE(VLOOKUP($B$2,$K$2:$N$43,4,FALSE))","v":9},{"$f":"VALUE(VLOOKUP($B$2,$K$2:$N$43,3,FALSE))","v":3},{"$f":"VALUE(VLOOKUP($B$2,$K$2:$N$45,2,FALSE))","v":230},null,null,null,null,null,null,null,"Servostar 603",480,3,6,"Nein"]
[{"$f":"VALUE(VLOOKUP($B$2,$K$2:$N$43,4,FALSE))","v":9},null,null,null,null,null,null,null,null,null,"Servostar 606",480,6,12,"Nein"]
["A - U 18",19,20,3,21,16,4,5,2,null,"Servostar 610",480,10,20,"Nein"]
[null,null,null,null,null,null,null,null,null,null,"Servostar 610/30",480,10,30,"Nein"]
[null,null,null,null,null,null,null,null,null,null,"Servostar 614",480,14,28,"Nein"]
["Cyclic duty",null,null,null,null,null,null,null,null,null,"Servostar 620",480,20,40,"Nein"]
["M","n","a","b","c","speed","Ipeak","Kt","Error_1",null,"Servostar 640",480,40,80,"Nein",null,null,null,null,"Answer_1","Answer_2"]
[{"$f":"VLOOKUP(FALSE,I21:U71,12,0)","v":0.90933187937240378},{"$f":"IF(I21,VLOOKUP(FALSE,I21:U71,13,0),0)","v":0},null,null,null,null,null,null,null,null,"Servostar 670",480,70,140,"Nein"]
[{"$f":"IF(I21,$A$20,G21*($G$10/$H$10-($G$10/$H$10-$I$10/$D$10)/$D$10*G21))","v":0.90933187937240378},{"$f":"IF(I21,$B$20,MAX(MIN(F21,$F$10),0))","v":2592.6},{"$f":"($C$10^2)/1000000+(($B$10/1000)^2*G21^2*PI()*PI()*($E$10/2)^2)/1200","v":9.5549270270994417E-5},{"$f":"SQRT(3)*$C$10*$A$10*G21/1000","v":0.43772388008880664},{"$f":"0.75*$A$10^2*G21^2-($C$2/SQRT(2)*0.98)^2","v":-1777.1174999999992},{"$f":"ROUND((-D21/2/C21+SQRT((D21/2/C21)^2-E21/C21)),1)","v":2592.6},{"$f":"MIN($D$10,$A$13)*1","v":9},{"$f":"A21/G21","v":0.10103687548582264},{"$f":"OR(IF(ISERROR(F21),TRUE,FALSE),IFERROR(IF(F21<0,TRUE,FALSE),TRUE))","v":false},null,"Servostar S20260",230,1.5,4.5,"Ja",null,null,null,null,{"$f":"A21","v":0.90933187937240378},{"$f":"B21","v":2592.6}]
[{"$f":"IF(I22,$A$20,G22*($G$10/$H$10-($G$10/$H$10-$I$10/$D$10)/$D$10*G22))","v":0.89277821930219781},{"$f":"IF(I22,$B$20,MAX(MIN(F22,$F$10),0))","v":2669.5},{"$f":"($C$10^2)/1000000+(($B$10/1000)^2*G22^2*PI()*PI()*($E$10/2)^2)/1200","v":9.3818383168263044E-5},{"$f":"SQRT(3)*$C$10*$A$10*G22/1000","v":0.42896940248703053},{"$f":"0.75*$A$10^2*G22^2-($C$2/SQRT(2)*0.98)^2","v":-1813.708196999999},{"$f":"ROUND((-D22/2/C22+SQRT((D22/2/C22)^2-E22/C22)),1)","v":2669.5},{"$f":"MIN($D$10,$A$13)*0.98","v":8.82},{"$f":"A22/G22","v":0.10122202032904737},{"$f":"OR(IF(ISERROR(F22),TRUE,FALSE),IFERROR(IF(F22<0,TRUE,FALSE),TRUE))","v":false},null,"Servostar S20360",230,3,9,"Ja",null,null,null,null,{"$f":"A22","v":0.89277821930219781},{"$f":"B22","v":2669.5}]
[0.87615790708843089,2747.1,9.212246348174846E-5,0.42021492488525447,-1849.5596879999991,2747.1,{"$f":"MIN($D$10,$A$13)*0.96","v":8.64},0.10140716517227209,false,null,"Servostar S20330",50,3,9,"Ja",null,null,null,null,0.87615790708843089,2747.1]
[0.85947094273110303,2825.4,9.0461511211450667E-5,0.41146044728347825,-1884.6719729999993,2825.4,{"$f":"MIN($D$10,$A$13)*0.94","v":8.4599999999999991},0.10159231001549682,false,null,"Servostar S20630",50,6,18,"Ja",null,null,null,null,0.85947094273110303,2825.4]
[0.84271732623021445,2904.5,8.883552635736969E-5,0.40270596968170219,-1919.045051999999,2904.5,{"$f":"MIN($D$10,$A$13)*0.92","v":8.2800000000000011},0.10177745485872154,false,null,"S 701",480,1.5,4.5,"Nein",null,null,null,null,0.84271732623021445,2904.5]
[0.8258970575857647,2984.3,8.7244508919505489E-5,0.39395149207992597,-1952.6789249999993,2984.3,{"$f":"MIN($D$10,$A$13)*0.9","v":8.1},0.10196259970194627,false,null,"S 703",480,3,9,"Nein",null,null,null,null,0.8258970575857647,2984.3]
[0.80901013679775424,3065,8.5688458897858078E-5,0.38519701447814986,-1985.5735919999993,3065,{"$f":"MIN($D$10,$A$13)*0.88","v":7.92},0.10214774454517099,false,null,"S 706",480,6,18,"Nein",null,null,null,null,0.80901013679775424,3065]
[0.79205656386618284,3146.5,{"$f":"($C$10^2)/1000000+(($B$10/1000)^2*G28^2*PI()*PI()*($E$10/2)^2)/1200","v":8.4167376292427484E-5},{"$f":"SQRT(3)*$C$10*$A$10*G28/1000","v":0.37644253687637375},{"$f":"0.75*$A$10^2*G28^2-($C$2/SQRT(2)*0.98)^2","v":-2017.7290529999991},3146.5,{"$f":"MIN($D$10,$A$13)*0.86","v":7.74},{"$f":"A28/G28","v":0.10233288938839571},false,null,"S 712",480,12,24,"Nein",null,null,null,null,0.79205656386618284,3146.5]
[0.77503633879105038,3228.8,8.2681261103213666E-5,0.36768805927459758,-2049.1453079999992,3228.8,{"$f":"MIN($D$10,$A$13)*0.84","v":7.56},0.10251803423162043,false,null,"S 712P",480,12,30,"Nein",null,null,null,null,0.77503633879105038,3228.8]
[0.75794946157235721,3312,8.1230113330216651E-5,0.35893358167282147,-2079.8223569999991,3312,{"$f":"MIN($D$10,$A$13)*0.82","v":7.38},0.10270317907484515,false,null,"S 724",480,24,48,"Nein",null,null,null,null,0.75794946157235721,3312]
[0.74079593221010309,3396.1,7.9813932973436439E-5,0.35017910407104536,-2109.7601999999993,3396.1,{"$f":"MIN($D$10,$A$13)*0.8","v":7.2},0.10288832391806987,false,null,"S 724P",480,24,72,"Nein",null,null,null,null,0.74079593221010309,3396.1]
[0.72357575070428815,3481.1,7.8432720032873003E-5,0.34142462646926924,-2138.9588369999992,3481.1,{"$f":"MIN($D$10,$A$13)*0.78","v":7.0200000000000005},0.1030734687612946,false,null,"S 748",480,48,96,"Nein",null,null,null,null,0.72357575070428815,3481.1]
[0.70628891705491215,3567,7.7086474508526384E-5,0.33267014886749308,-2167.4182679999994,3567,{"$f":"MIN($D$10,$A$13)*0.76","v":6.84},0.10325861360451932,false,null,"S 772",480,72,140,"Nein",null,null,null,null,0.70628891705491215,3567]
[0.68893543126197532,3653.8,7.5775196400396555E-5,0.32391567126571691,-2195.138492999999,3653.8,{"$f":"MIN($D$10,$A$13)*0.74","v":6.66},0.10344375844774403,false,null,"AKD-x00306",230,3,9,"Ja",null,null,null,null,0.68893543126197532,3653.8]
[0.67151529332547755,3741.6,7.4498885708483502E-5,0.31516119366394074,-2222.1195119999993,3741.6,{"$f":"MIN($D$10,$A$13)*0.72","v":6.4799999999999995},0.10362890329096877,false,null,"AKD-x00606",230,6,18,"Ja",null,null,null,null,0.67151529332547755,3741.6]
[0.65402850324541906,3830.2,7.3257542432787266E-5,0.30640671606216469,-2248.3613249999989,3830.2,{"$f":"MIN($D$10,$A$13)*0.7","v":6.3},0.10381404813419351,false,null,"AKD-x01206",230,12,30,"Ja",null,null,null,null,0.65402850324541906,3830.2]
[0.63647506102179952,3919.9,7.2051166573307819E-5,0.29765223846038857,-2273.8639319999993,3919.9,{"$f":"MIN($D$10,$A$13)*0.68","v":6.12},0.10399919297741822,false,null,"AKD-x02406",230,24,48,"Ja",null,null,null,null,0.63647506102179952,3919.9]
[0.61885496665461914,4010.5,7.0879758130045175E-5,0.28889776085861241,-2298.627332999999,4010.5,{"$f":"MIN($D$10,$A$13)*0.66","v":5.94},0.10418433782064294,false,null,"AKD-x00307",480,3,9,"Ja",null,null,null,null,0.61885496665461914,4010.5]
[0.60116822014387772,4102,6.9743317102999322E-5,0.28014328325683624,-2322.651527999999,4102,{"$f":"MIN($D$10,$A$13)*0.64","v":5.76},0.10436948266386767,false,null,"AKD-x00607",480,6,18,"Ja",null,null,null,null,0.60116822014387772,4102]
[0.58341482148957546,4194.3999999999996,6.8641843492170257E-5,0.27138880565506013,-2345.9365169999992,4194.3999999999996,{"$f":"MIN($D$10,$A$13)*0.62","v":5.58},0.10455462750709238,false,null,"AKD-x01207",480,12,30,"Ja",null,null,null,null,0.58341482148957546,4194.3999999999996]
[0.56559477069171238,4287.8,6.7575337297557997E-5,0.26263432805328396,-2368.4822999999992,4287.8,{"$f":"MIN($D$10,$A$13)*0.6","v":5.3999999999999995},0.10473977235031712,false,null,"AKD-x02407",480,24,48,"Ja",null,null,null,null,0.56559477069171238,4287.8]
[0.54770806775028835,4382,6.6543798519162525E-5,0.25387985045150785,-2390.288876999999,4382,{"$f":"MIN($D$10,$A$13)*0.58","v":5.22},0.10492491719354184,false,null,"other drive",480,"5","10","Nein",null,null,null,null,0.54770806775028835,4382]
[0.5297547126653035,4477.2,6.5547227156983857E-5,0.24512537284973177,-2411.3562479999991,4477.2,{"$f":"MIN($D$10,$A$13)*0.56","v":5.0400000000000009},0.10511006203676655,false,null,"max.",480,1000,1000,"Nein",null,null,null,null,0.5297547126653035,4477.2]
[0.51173470543675759,4573.2,6.4585623211021979E-5,0.23637089524795563,-2431.684412999999,4573.2,{"$f":"MIN($D$10,$A$13)*0.54","v":4.8600000000000003},0.10529520687999126,false,null,"S 131xx     5A 230V","230 V",5,10,"Nein",null,null,null,null,0.51173470543675759,4573.2]
[0.49364804606465085,4670,6.365898668127689E-5,0.22761641764617946,-2451.2733719999992,4670,{"$f":"MIN($D$10,$A$13)*0.52","v":4.68},0.105480351723216,false,null,"S 132xx   10A 480V",480,10,20,"Nein",null,null,null,null,0.49364804606465085,4670]
[0.47549473454898328,4767.6000000000004,6.2767317567748605E-5,0.21886194004440332,-2470.1231249999992,4767.6000000000004,{"$f":"MIN($D$10,$A$13)*0.5","v":4.5},0.10566549656644073,false,null,"S 132xx   15A 480V",480,15,30,"Nein",null,null,null,null,0.47549473454898328,4767.6000000000004]
[0.45727477088975477,4865.8999999999996,6.1910615870437122E-5,0.21010746244262724,-2488.2336719999989,4865.8999999999996,{"$f":"MIN($D$10,$A$13)*0.48","v":4.32},0.10585064140966545,false,null,"S 132xx   20A 480V",480,20,40,"Nein",null,null,null,null,0.45727477088975477,4865.8999999999996]
[0.43898815508696537,4965,6.108888158934243E-5,0.2013529848408511,-2505.605012999999,4965,{"$f":"MIN($D$10,$A$13)*0.46","v":4.1400000000000006},0.10603578625289017,false,null,null,null,null,null,null,null,null,null,null,0.43898815508696537,4965]
[0.42063488714061498,5064.7,6.0302114724464527E-5,0.19259850723907493,-2522.2371479999993,5064.7,{"$f":"MIN($D$10,$A$13)*0.44","v":3.96},0.1062209310961149,false,null,null,null,null,null,null,null,null,null,null,0.42063488714061498,5064.7]
[0.40221496705070375,5164.8999999999996,5.955031527580342E-5,0.18384402963729879,-2538.1300769999989,5164.8999999999996,{"$f":"MIN($D$10,$A$13)*0.42","v":3.78},0.10640607593933962,false,null,null,null,null,null,null,null,null,null,null,0.40221496705070375,5164.8999999999996]
[0.3837283948172307,5265.7,5.8833483243359076E-5,0.17508955203552223,-2553.2837999999997,5265.7,{"$f":"MIN($D$10,$A$13)*0.399999999999999","v":3.5999999999999912},0.10659122078256435,false,null,null,null,null,null,null,null,null,null,null,0.3837283948172307,5265.7]
[0.36517517044019765,5366.9,{"$f":"($C$10^2)/1000000+(($B$10/1000)^2*G52^2*PI()*PI()*($E$10/2)^2)/1200","v":5.8151618627131563E-5},{"$f":"SQRT(3)*$C$10*$A$10*G52/1000","v":0.16633507443374609},{"$f":"0.75*$A$10^2*G52^2-($C$2/SQRT(2)*0.98)^2","v":-2567.6983169999999},5366.9,{"$f":"MIN($D$10,$A$13)*0.379999999999999","v":3.419999999999991},{"$f":"A52/G52","v":0.10677636562578907},false,null,null,null,null,null,null,null,null,null,null,0.36517517044019765,5366.9]
[0.34655529391960371,5468.5,5.7504721427120852E-5,0.15758059683196995,-2581.3736279999998,5468.5,{"$f":"MIN($D$10,$A$13)*0.359999999999999","v":3.2399999999999909},0.1069615104690138,false,null,null,null,null,null,null,null,null,null,null,0.34655529391960371,5468.5]
[0.32786876525544895,5570.3,5.6892791643326931E-5,0.14882611923019382,-2594.3097329999996,5570.3,{"$f":"MIN($D$10,$A$13)*0.339999999999999","v":3.0599999999999912},0.10714665531223852,false,null,null,null,null,null,null,null,null,null,null,0.32786876525544895,5570.3]
[0.30911558444773318,5672.3,5.6315829275749807E-5,0.1400716416284177,-2606.5066319999996,5672.3,{"$f":"MIN($D$10,$A$13)*0.319999999999999","v":2.879999999999991},0.10733180015546324,false,null,null,null,null,null,null,null,null,null,null,0.30911558444773318,5672.3]
[0.29029575149645653,5774.4,5.5773834324389479E-5,0.13131716402664156,-2617.9643249999995,5774.4,{"$f":"MIN($D$10,$A$13)*0.299999999999999","v":2.6999999999999909},0.10751694499868797,false,null,null,null,null,null,null,null,null,null,null,0.29029575149645653,5774.4]
[0.27140926640161905,5876.4,5.5266806789245941E-5,0.12256268642486544,-2628.6828119999996,5876.4,{"$f":"MIN($D$10,$A$13)*0.279999999999999","v":2.5199999999999911},0.10770208984191271,false,null,null,null,null,null,null,null,null,null,null,0.27140926640161905,5876.4]
[0.25245612916322058,5978.2,5.4794746670319206E-5,0.11380820882308929,-2638.6620929999995,5978.2,{"$f":"MIN($D$10,$A$13)*0.259999999999999","v":2.339999999999991},0.10788723468513742,false,null,null,null,null,null,null,null,null,null,null,0.25245612916322058,5978.2]
[0.23343633978126124,6079.7,5.4357653967609261E-5,0.10505373122131316,-2647.9021679999996,6079.7,{"$f":"MIN($D$10,$A$13)*0.239999999999999","v":2.1599999999999908},0.10807237952836214,false,null,null,null,null,null,null,null,null,null,null,0.23343633978126124,6079.7]
[0.21434989825574102,6180.8,5.3955528681116119E-5,9.6299253619537034E-2,-2656.4030369999996,6180.8,{"$f":"MIN($D$10,$A$13)*0.219999999999999","v":1.9799999999999911},0.10825752437158687,false,null,null,null,null,null,null,null,null,null,null,0.21434989825574102,6180.8]
[0.19519680458665989,6281.2,5.3588370810839766E-5,8.7544776017760909E-2,-2664.1646999999994,6281.2,{"$f":"MIN($D$10,$A$13)*0.199999999999999","v":1.7999999999999912},0.10844266921481158,false,null,null,null,null,null,null,null,null,null,null,0.19519680458665989,6281.2]
[0.17597705877401784,6381,5.325618035678021E-5,7.8790298415984769E-2,-2671.1871569999994,6381,{"$f":"MIN($D$10,$A$13)*0.179999999999999","v":1.619999999999991},0.1086278140580363,false,null,null,null,null,null,null,null,null,null,null,0.17597705877401784,6381]
[0.15669066081781491,6479.8,5.2958957318937451E-5,7.003582081420863E-2,-2677.4704079999992,6479.8,{"$f":"MIN($D$10,$A$13)*0.159999999999999","v":1.4399999999999911},0.10881295890126103,false,null,null,null,null,null,null,null,null,null,null,0.15669066081781491,6479.8]
[0.13733761071805106,6577.6,5.2696701697311481E-5,6.128134321243249E-2,-2683.0144529999993,6577.6,{"$f":"MIN($D$10,$A$13)*0.139999999999999","v":1.2599999999999909},0.10899810374448575,false,null,null,null,null,null,null,null,null,null,null,0.13733761071805106,6577.6]
[0.11791790847472633,6674.2,5.2469413491902314E-5,5.2526865610656358E-2,-2687.8192919999992,6674.2,{"$f":"MIN($D$10,$A$13)*0.119999999999999","v":1.079999999999991},0.10918324858771047,false,null,null,null,null,null,null,null,null,null,null,0.11791790847472633,6674.2]
[9.8431554087840697E-2,6769.4,5.2277092702709944E-5,4.3772388008880225E-2,-2691.8849249999994,6769.4,{"$f":"MIN($D$10,$A$13)*0.099999999999999","v":0.89999999999999103},0.1093683934309352,false,null,null,null,null,null,null,null,null,null,null,9.8431554087840697E-2,6769.4]
[7.8878547557394152E-2,6863,5.2119739329734363E-5,3.50179104071041E-2,-2695.2113519999994,6863,{"$f":"MIN($D$10,$A$13)*0.079999999999999","v":0.71999999999999098},0.10955353827415992,false,null,null,null,null,null,null,null,null,null,null,7.8878547557394152E-2,6863]
[5.925888888338663E-2,6954.9,5.1997353372975579E-5,2.6263432805327919E-2,-2697.7985729999991,6954.9,{"$f":"MIN($D$10,$A$13)*0.0599999999999989","v":0.53999999999999015},0.10973868311738465,false,null,null,null,null,null,null,null,null,null,null,5.925888888338663E-2,6954.9]
[3.9572578065818383E-2,7044.9,5.1909934832433591E-5,1.7508955203551828E-2,-2699.6465879999992,7044.9,{"$f":"MIN($D$10,$A$13)*0.039999999999999","v":0.35999999999999099},0.10992382796060937,false,null,null,null,null,null,null,null,null,null,null,3.9572578065818383E-2,7044.9]
[1.9819615104689145E-2,7132.8,5.18574837081084E-5,8.7544776017756953E-3,-2700.755396999999,7132.8,{"$f":"MIN($D$10,$A$13)*0.019999999999999","v":0.179999999999991},0.11010897280383408,false,null,null,null,null,null,null,null,null,null,null,1.9819615104689145E-2,7132.8]
[0,7218.4,5.1840000000000005E-5,0,-2701.1249999999991,7218.4,{"$f":"MIN($D$10,$A$13)*0","v":0},null,false,null,null,null,null,null,null,null,null,null,null,0,7218.4]
[]
[null,{"$f":"MAX(MIN(F73,$F$10),0)","v":5917},{"$f":"($C$10^2)/1000000+(($B$10/1000)^2*G73^2*PI()*PI()*($E$10/2)^2)/1200","v":5.5073786651729257E-5},{"$f":"SQRT(3)*$C$10*$A$10*G73/1000","v":0.11906089538415543},{"$f":"0.75*$A$10^2*G73^2-($C$2/SQRT(2)*0.98)^2","v":-2632.7632291199989},{"$f":"ROUND((-D73/2/C73+SQRT((D73/2/C73)^2-E73/C73)),0)","v":5917},{"$f":"MIN(B13,H10/G10*C83)","v":2.4480000000000004}]
[]
[]
["S1"]
["M ","n"]
[{"$f":"IF(D78>$B$71,\"\",C78)","v":0.3},{"$f":"IF(D78>$B$71,\"\",D78)","v":0},{"$f":"G10","v":0.3},0,0,{"$f":"MIN(A78,$A$154)","v":0.3}]
[{"$f":"IF(D79>$B$71,A78,C79)","v":0.3},{"$f":"IF(D79>$B$71,B78,D79)","v":0},{"$f":"IF(VLOOKUP($A$2,Motorenmatrix,6,FALSE)=0,C78,VLOOKUP($A$2,Motorenmatrix,6,FALSE))","v":0.3},{"$f":"IF(VLOOKUP($A$2,Motorenmatrix,7,FALSE)=0,D78,VLOOKUP($A$2,Motorenmatrix,7,FALSE))","v":0},{"$f":"IF(D79-D78=0,E78,(C79-C78)/(D79-D78))","v":0},{"$f":"MIN(A79,$A$154)","v":0.3}]
[{"$f":"IF(D80>$B$71,A79,C80)","v":0.3},{"$f":"IF(D80>$B$71,B79,D80)","v":1500},{"$f":"IF(VLOOKUP($A$2,Motorenmatrix,8,FALSE)=0,C79,VLOOKUP($A$2,Motorenmatrix,8,FALSE))","v":0.3},{"$f":"IF(VLOOKUP($A$2,Motorenmatrix,9,FALSE)=0,D79,VLOOKUP($A$2,Motorenmatrix,9,FALSE))","v":1500},{"$f":"IF(D80-D79=0,E79,(C80-C79)/(D80-D79))","v":0},0.3]
[{"$f":"IF(D81>$B$71,A80,C81)","v":0.3},{"$f":"IF(D81>$B$71,B80,D81)","v":3000},{"$f":"IF(VLOOKUP($A$2,Motorenmatrix,10,FALSE)=0,C80,VLOOKUP($A$2,Motorenmatrix,10,FALSE))","v":0.3},{"$f":"IF(VLOOKUP($A$2,Motorenmatrix,11,FALSE)=0,D80,VLOOKUP($A$2,Motorenmatrix,11,FALSE))","v":3000},{"$f":"IF(D81-D80=0,E80,(C81-C80)/(D81-D80))","v":0},0.3]
[{"$f":"IF(D82>$B$71,A81,C82)","v":0.3},{"$f":"IF(D82>$B$71,B81,D82)","v":3000},{"$f":"IF(VLOOKUP($A$2,Motorenmatrix,12,FALSE)=0,C81,VLOOKUP($A$2,Motorenmatrix,12,FALSE))","v":0.27},{"$f":"IF(VLOOKUP($A$2,Motorenmatrix,13,FALSE)=0,D81,VLOOKUP($A$2,Motorenmatrix,13,FALSE))","v":8000},{"$f":"IF(D82-D81=0,E81,(C82-C81)/(D82-D81))","v":-5.9999999999999942E-6},0.3]
[{"$f":"IF(D83>$B$71,A82,C83)","v":0.3},{"$f":"IF(D83>$B$71,B82,D83)","v":3000},{"$f":"IF(VLOOKUP($A$2,Motorenmatrix,14,FALSE)=0,C82,VLOOKUP($A$2,Motorenmatrix,14,FALSE))","v":0.27},{"$f":"IF(VLOOKUP($A$2,Motorenmatrix,15,FALSE)=0,D82,VLOOKUP($A$2,Motorenmatrix,15,FALSE))","v":8000},{"$f":"IF(D83-D82=0,E82,(C83-C82)/(D83-D82))","v":-5.9999999999999942E-6},0.3]
[{"$f":"A83+(B84-B83)*E83","v":0.28249800000000003},{"$f":"B73","v":5917},{"$f":"A83+(B84-B83)*E83","v":0.28249800000000003},null,null,0.28249800000000003]
[]
[{"$f":"C78","v":0.3},0,null,{"$f":"MIN(A86,$A$154)","v":0.3}]
[{"$f":"A86+(B87-B86)*C87","v":0.3},{"$f":"0.02*$B$84","v":118.34},{"$f":"IF(B87<$B$79,$E$79,IF(B87<$B$80,$E$80,IF(B87<$B$81,$E$81,IF(B87<$B$82,$E$82,$E$83 ) ) ))","v":0},{"$f":"MIN(A87,$A$154)","v":0.3}]
[{"$f":"A87+(B88-B87)*C88","v":0.3},{"$f":"0.04*$B$84","v":236.68},{"$f":"IF(B88<$B$79,$E$79,IF(B88<$B$80,$E$80,IF(B88<$B$81,$E$81,IF(B88<$B$82,$E$82,$E$83 ) ) ))","v":0},0.3]
[0.3,{"$f":"0.06*$B$84","v":355.02},0,0.3]
[0.3,{"$f":"0.08*$B$84","v":473.36},0,0.3]
[0.3,{"$f":"0.1*$B$84","v":591.70000000000005},0,0.3]
[0.3,{"$f":"0.12*$B$84","v":710.04},0,0.3]
[0.3,{"$f":"0.14*$B$84","v":828.38000000000011},0,0.3]
[0.3,{"$f":"0.16*$B$84","v":946.72},0,0.3]
[0.3,{"$f":"0.18*$B$84","v":1065.06},0,0.3]
[0.3,{"$f":"0.2*$B$84","v":1183.4000000000001},0,0.3]
[0.3,{"$f":"0.22*$B$84","v":1301.74},0,0.3]
[0.3,{"$f":"0.24*$B$84","v":1420.08},0,0.3]
[0.3,{"$f":"0.26*$B$84","v":1538.42},0,0.3]
[0.3,{"$f":"0.28*$B$84","v":1656.7600000000002},0,0.3]
[0.3,{"$f":"0.3*$B$84","v":1775.1},0,0.3]
[0.3,{"$f":"0.32*$B$84","v":1893.44},0,0.3]
[0.3,{"$f":"0.34*$B$84","v":2011.7800000000002},0,0.3]
[0.3,{"$f":"0.36*$B$84","v":2130.12},0,0.3]
[0.3,{"$f":"0.38*$B$84","v":2248.46},0,0.3]
[0.3,{"$f":"0.4*$B$84","v":2366.8000000000002},{"$f":"IF(B106<$B$79,$E$79,IF(B106<$B$80,$E$80,IF(B106<$B$81,$E$81,IF(B106<$B$82,$E$82,$E$83 ) ) ))","v":0},{"$f":"MIN(A106,$A$154)","v":0.3}]
[0.3,{"$f":"0.42*$B$84","v":2485.14},{"$f":"IF(B107<$B$79,$E$79,IF(B107<$B$80,$E$80,IF(B107<$B$81,$E$81,IF(B107<$B$82,$E$82,$E$83 ) ) ))","v":0},0.3]
[0.3,{"$f":"0.44*$B$84","v":2603.48},0,0.3]
[0.3,{"$f":"0.46*$B$84","v":2721.82},0,0.3]
[0.3,{"$f":"0.48*$B$84","v":2840.16},0,0.3]
[0.3,{"$f":"0.5*$B$84","v":2958.5},0,0.3]
[0.29928995999999997,{"$f":"0.52*$B$84","v":3076.84},-5.9999999999999942E-6,0.29928995999999997]
[0.29857991999999994,{"$f":"0.54*$B$84","v":3195.1800000000003},-5.9999999999999942E-6,0.29857991999999994]
[0.29786987999999992,{"$f":"0.56*$B$84","v":3313.5200000000004},-5.9999999999999942E-6,0.29786987999999992]
[0.29715983999999995,{"$f":"0.58*$B$84","v":3431.8599999999997},-5.9999999999999942E-6,0.29715983999999995]
[0.29644979999999993,{"$f":"0.6*$B$84","v":3550.2},-5.9999999999999942E-6,0.29644979999999993]
[0.29573975999999991,{"$f":"0.62*$B$84","v":3668.54},-5.9999999999999942E-6,0.29573975999999991]
[0.29502971999999988,{"$f":"0.64*$B$84","v":3786.88},-5.9999999999999942E-6,0.29502971999999988]
[0.29431967999999986,{"$f":"0.66*$B$84","v":3905.2200000000003},-5.9999999999999942E-6,0.29431967999999986]
[0.29360963999999984,{"$f":"0.68*$B$84","v":4023.5600000000004},-5.9999999999999942E-6,0.29360963999999984]
[0.29289959999999987,{"$f":"0.7*$B$84","v":4141.8999999999996},-5.9999999999999942E-6,0.29289959999999987]
[0.29218955999999985,{"$f":"0.72*$B$84","v":4260.24},-5.9999999999999942E-6,0.29218955999999985]
[0.29147951999999983,{"$f":"0.74*$B$84","v":4378.58},-5.9999999999999942E-6,0.29147951999999983]
[0.2907694799999998,{"$f":"0.76*$B$84","v":4496.92},-5.9999999999999942E-6,0.2907694799999998]
[0.29005943999999978,{"$f":"0.78*$B$84","v":4615.26},{"$f":"IF(B125<$B$79,$E$79,IF(B125<$B$80,$E$80,IF(B125<$B$81,$E$81,IF(B125<$B$82,$E$82,$E$83 ) ) ))","v":-5.9999999999999942E-6},{"$f":"MIN(A125,$A$154)","v":0.29005943999999978}]
[0.28934939999999976,{"$f":"0.8*$B$84","v":4733.6000000000004},{"$f":"IF(B126<$B$79,$E$79,IF(B126<$B$80,$E$80,IF(B126<$B$81,$E$81,IF(B126<$B$82,$E$82,$E$83 ) ) ))","v":-5.9999999999999942E-6},0.28934939999999976]
[0.28863935999999979,{"$f":"0.82*$B$84","v":4851.9399999999996},-5.9999999999999942E-6,0.28863935999999979]
[0.28792931999999977,{"$f":"0.84*$B$84","v":4970.28},-5.9999999999999942E-6,0.28792931999999977]
[0.28721927999999974,{"$f":"0.86*$B$84","v":5088.62},-5.9999999999999942E-6,0.28721927999999974]
[0.28650923999999972,{"$f":"0.88*$B$84","v":5206.96},-5.9999999999999942E-6,0.28650923999999972]
[0.2857991999999997,{"$f":"0.9*$B$84","v":5325.3},-5.9999999999999942E-6,0.2857991999999997]
[0.28508915999999968,{"$f":"0.92*$B$84","v":5443.64},-5.9999999999999942E-6,0.28508915999999968]
[0.28437911999999971,{"$f":"0.94*$B$84","v":5561.98},-5.9999999999999942E-6,0.28437911999999971]
[0.28366907999999968,{"$f":"0.96*$B$84","v":5680.32},-5.9999999999999942E-6,0.28366907999999968]
[0.28295903999999966,{"$f":"0.98*$B$84","v":5798.66},-5.9999999999999942E-6,0.28295903999999966]
[{"$f":"C84","v":0.28249800000000003},{"$f":"1*$B$73","v":5917},null,0.28249800000000003]
[]
[]
[]
["Rated"]
["M","n",{"$f":"$C$2*1","v":75}]
[{"$f":"MIN(VLOOKUP(C141,C142:E148,2,FALSE),A154)","v":0.3},{"$f":"VLOOKUP(C141,C142:E148,3,FALSE)","v":3000},24,{"$f":"IF(VLOOKUP($A$2,Motor!$A$9:$Y$1285,6,FALSE)=0,A78,VLOOKUP($A$2,Motor!$A$9:$Y$1285,6,FALSE))","v":0.3},{"$f":"IF(VLOOKUP($A$2,Motor!$A$9:$Y$1285,7,FALSE)=0,B78,VLOOKUP($A$2,Motor!$A$9:$Y$1285,7,FALSE))","v":0},6,7]
[null,null,48,{"$f":"IF(VLOOKUP($A$2,Motor!$A$9:$Y$1285,8,FALSE)=0,D142,VLOOKUP($A$2,Motor!$A$9:$Y$1285,8,FALSE))","v":0.3},{"$f":"IF(VLOOKUP($A$2,Motor!$A$9:$Y$1285,9,FALSE)=0,E142,VLOOKUP($A$2,Motor!$A$9:$Y$1285,9,FALSE))","v":1500},8,9]
[null,null,75,{"$f":"IF(VLOOKUP($A$2,Motor!$A$9:$Y$1285,10,FALSE)=0,D143,VLOOKUP($A$2,Motor!$A$9:$Y$1285,10,FALSE))","v":0.3},{"$f":"IF(VLOOKUP($A$2,Motor!$A$9:$Y$1285,11,FALSE)=0,E143,VLOOKUP($A$2,Motor!$A$9:$Y$1285,11,FALSE))","v":3000},10,11]
[null,null,160,{"$f":"IF(VLOOKUP($A$2,Motor!$A$9:$Y$1285,12,FALSE)=0,D144,VLOOKUP($A$2,Motor!$A$9:$Y$1285,12,FALSE))","v":0.27},{"$f":"IF(VLOOKUP($A$2,Motor!$A$9:$Y$1285,13,FALSE)=0,E144,VLOOKUP($A$2,Motor!$A$9:$Y$1285,13,FALSE))","v":8000},12,13]
[null,null,320,{"$f":"IF(VLOOKUP($A$2,Motor!$A$9:$Y$1285,14,FALSE)=0,D145,VLOOKUP($A$2,Motor!$A$9:$Y$1285,14,FALSE))","v":0.27},{"$f":"IF(VLOOKUP($A$2,Motor!$A$9:$Y$1285,15,FALSE)=0,E145,VLOOKUP($A$2,Motor!$A$9:$Y$1285,15,FALSE))","v":8000},14,15]
[null,null,560,{"$f":"IF(VLOOKUP($A$2,Motor!$A$9:$Y$1285,16,FALSE)=0,D146,VLOOKUP($A$2,Motor!$A$9:$Y$1285,16,FALSE))","v":0.27},{"$f":"IF(VLOOKUP($A$2,Motor!$A$9:$Y$1285,17,FALSE)=0,E146,VLOOKUP($A$2,Motor!$A$9:$Y$1285,17,FALSE))","v":8000}]
["I peak",null,640,{"$f":"IF(VLOOKUP($A$2,Motor!$A$9:$Y$1285,18,FALSE)=0,D147,VLOOKUP($A$2,Motor!$A$9:$Y$1285,18,FALSE))","v":0.27},{"$f":"IF(VLOOKUP($A$2,Motor!$A$9:$Y$1285,19,FALSE)=0,E147,VLOOKUP($A$2,Motor!$A$9:$Y$1285,19,FALSE))","v":8000}]
[{"$f":"A14*MAX(($G$10/$H$10-($G$10/$H$10-$I$10/$D$10)/$D$10*A14),$I$10/$D$10)","v":0.90933187937240378},0]
[{"$f":"A149","v":0.90933187937240378},{"$f":"B71*1.05","v":7579.32}]
[]
[]
["I rms"]
[{"$f":"B13*MAX(($G$10/$H$10-($G$10/$H$10-$I$10/$D$10)/$D$10*B13),I10/D10)","v":0.32162511077994027},0]
[{"$f":"A154","v":0.32162511077994027},{"$f":"B71*1.05","v":7579.32}]

{"sheet":"Calc2","index":3,"n_rows":223,"n_cols":21,"rows_kept":223,"cut":false,"hidden":true,"merged":[]}
["Motor Nr","Drive Nr","DC-Voltage",null,null,{"$f":"Calc!F1","v":"AC"},{"$f":"Calc!G1","v":"DC"},null,null,null,{"$f":"Calc!K1","v":"Drives"},{"$f":"Calc!L1","v":"AC-Voltage"},{"$f":"Calc!M1","v":"Icont"},{"$f":"Calc!N1","v":"Ipeak"},{"$f":"Calc!O1","v":"SFD \nUnterstützung?"}]
["AKM11E",{"$f":"Calc!B2","v":"Servostar 303"},{"$f":"Calc!C2","v":"75"},null,{"$f":"Calc!E2","v":2},{"$f":"Calc!F2","v":16.970562748477139},{"$f":"Calc!G2","v":24},null,null,null,{"$f":"Calc!K2","v":"Servostar 303"},{"$f":"Calc!L2","v":230},{"$f":"Calc!M2","v":3},{"$f":"Calc!N2","v":9},{"$f":"Calc!O2","v":"Nein"}]
[null,{"$f":"Calc!B3","v":"V < 75V"},{"$f":"Calc!C3","v":false},null,null,{"$f":"Calc!F3","v":33.941125496954278},{"$f":"Calc!G3","v":48},null,null,null,{"$f":"Calc!K3","v":"Servostar 306"},{"$f":"Calc!L3","v":230},{"$f":"Calc!M3","v":6},{"$f":"Calc!N3","v":15},{"$f":"Calc!O3","v":"Nein"}]
[null,null,null,null,null,{"$f":"Calc!F4","v":53.033008588991059},{"$f":"Calc!G4","v":75},null,null,null,{"$f":"Calc!K4","v":"Servostar 310"},{"$f":"Calc!L4","v":230},{"$f":"Calc!M4","v":10},{"$f":"Calc!N4","v":20},{"$f":"Calc!O4","v":"Nein"}]
[null,null,null,null,null,{"$f":"Calc!F5","v":113.13708498984759},{"$f":"Calc!G5","v":160},null,null,null,{"$f":"Calc!K5","v":"Servostar 341"},{"$f":"Calc!L5","v":480},{"$f":"Calc!M5","v":1.5},{"$f":"Calc!N5","v":4.5},{"$f":"Calc!O5","v":"Nein"}]
[null,null,null,null,null,{"$f":"Calc!F6","v":226.27416997969519},{"$f":"Calc!G6","v":320},null,null,null,{"$f":"Calc!K6","v":"Servostar 343"},{"$f":"Calc!L6","v":480},{"$f":"Calc!M6","v":3},{"$f":"Calc!N6","v":7.5},{"$f":"Calc!O6","v":"Nein"}]
[null,null,null,null,null,{"$f":"Calc!F7","v":395.97979746446657},{"$f":"Calc!G7","v":""},null,null,null,{"$f":"Calc!K7","v":"Servostar 346"},{"$f":"Calc!L7","v":480},{"$f":"Calc!M7","v":6},{"$f":"Calc!N7","v":12},{"$f":"Calc!O7","v":"Nein"}]
["Motor",null,null,null,null,{"$f":"Calc!F8","v":452.54833995939038},{"$f":"Calc!G8","v":""},null,null,null,{"$f":"Calc!K8","v":"Servostar 403M/A"},{"$f":"Calc!L8","v":230},{"$f":"Calc!M8","v":3},{"$f":"Calc!N8","v":9},{"$f":"Calc!O8","v":"Nein"}]
["r","l","ke","Ipeak ","poles","nmax","Mo","Io","Mpeak",null,{"$f":"Calc!K9","v":"Servostar 406M/A"},{"$f":"Calc!L9","v":230},{"$f":"Calc!M9","v":6},{"$f":"Calc!N9","v":12},{"$f":"Calc!O9","v":"Nein"}]
[{"$f":"IF(C3=TRUE,VLOOKUP($A$2,Motor!$A$9:$Y$1285,22,FALSE)*1.4,VLOOKUP($A$2,Motor!$A$9:$Y$1285,22,FALSE))","v":3.3},{"$f":"VLOOKUP($A$2,Motor!$A$9:$Y$477,23,FALSE)","v":2.04},{"$f":"VLOOKUP($A$2,Motor!$A$9:$Y$477,24,FALSE)","v":4.0999999999999996},{"$f":"VLOOKUP($A$2,Motor!$A$9:$Y$477,3,FALSE)","v":11.6},{"$f":"VLOOKUP($A$2,Motor!$A$9:$Y$477,25,FALSE)","v":6},{"$f":"VLOOKUP($A$2,Motor!$A$9:$Y$477,20,FALSE)","v":8000},{"$f":"VLOOKUP($A$2,Motor!$A$9:$Y$477,4,FALSE)","v":0.19},{"$f":"VLOOKUP($A$2,Motor!$A$9:$Y$477,5,FALSE)","v":2.91},{"$f":"VLOOKUP($A$2,Motor!$A$9:$Y$477,2,FALSE)","v":0.61},null,{"$f":"Calc!K10","v":"Servostar 443M/403A"},{"$f":"Calc!L10","v":400},{"$f":"Calc!M10","v":3},{"$f":"Calc!N10","v":9},{"$f":"Calc!O10","v":"Nein"}]
["Drive",null,null,null,null,null,{"$f":"G10/H10","v":6.5292096219931275E-2},null,{"$f":"I10/D10","v":5.2586206896551725E-2},null,{"$f":"Calc!K11","v":"Servostar 446M/406A"},{"$f":"Calc!L11","v":400},{"$f":"Calc!M11","v":6},{"$f":"Calc!N11","v":12},{"$f":"Calc!O11","v":"Nein"}]
["I peak","I rms",null,null,null,null,null,null,null,null,{"$f":"Calc!K12","v":"Servostar 601"},{"$f":"Calc!L12","v":480},{"$f":"Calc!M12","v":1.5},{"$f":"Calc!N12","v":3},{"$f":"Calc!O12","v":"Nein"}]
[{"$f":"VALUE(VLOOKUP($B$2,$K$2:$N$43,4,FALSE))","v":9},{"$f":"VALUE(VLOOKUP($B$2,$K$2:$N$43,3,FALSE))","v":3},null,null,null,null,null,null,null,null,{"$f":"Calc!K13","v":"Servostar 603"},{"$f":"Calc!L13","v":480},{"$f":"Calc!M13","v":3},{"$f":"Calc!N13","v":6},{"$f":"Calc!O13","v":"Nein"}]
[{"$f":"VALUE(VLOOKUP($B$2,$K$2:$N$43,4,FALSE))","v":9},null,null,null,null,null,null,null,null,null,{"$f":"Calc!K14","v":"Servostar 606"},{"$f":"Calc!L14","v":480},{"$f":"Calc!M14","v":6},{"$f":"Calc!N14","v":12},{"$f":"Calc!O14","v":"Nein"}]
["A - U 18",19,20,3,21,16,4,5,2,null,{"$f":"Calc!K15","v":"Servostar 610"},{"$f":"Calc!L15","v":480},{"$f":"Calc!M15","v":10},{"$f":"Calc!N15","v":20},{"$f":"Calc!O15","v":"Nein"}]
[null,null,null,null,null,null,null,null,null,null,{"$f":"Calc!K16","v":"Servostar 610/30"},{"$f":"Calc!L16","v":480},{"$f":"Calc!M16","v":10},{"$f":"Calc!N16","v":30},{"$f":"Calc!O16","v":"Nein"}]
[null,null,null,null,null,null,null,null,null,null,{"$f":"Calc!K17","v":"Servostar 614"},{"$f":"Calc!L17","v":480},{"$f":"Calc!M17","v":14},{"$f":"Calc!N17","v":28},{"$f":"Calc!O17","v":"Nein"}]
["Cyclic duty",null,null,null,null,null,null,null,null,null,{"$f":"Calc!K18","v":"Servostar 620"},{"$f":"Calc!L18","v":480},{"$f":"Calc!M18","v":20},{"$f":"Calc!N18","v":40},{"$f":"Calc!O18","v":"Nein"}]
["M","n","a","b","c","speed","Ipeak","Kt","Error_1",null,{"$f":"Calc!K19","v":"Servostar 640"},{"$f":"Calc!L19","v":480},{"$f":"Calc!M19","v":40},{"$f":"Calc!N19","v":80},{"$f":"Calc!O19","v":"Nein"},null,null,null,null,"Answer_1","Answer_2"]
[{"$f":"VLOOKUP(FALSE,I21:U71,12,0)","v":0.49890670777302426},{"$f":"IF(I21,VLOOKUP(FALSE,I21:U71,13,0),0)","v":0},null,null,null,null,null,null,null,null,{"$f":"Calc!K20","v":"Servostar 670"},{"$f":"Calc!L20","v":480},{"$f":"Calc!M20","v":70},{"$f":"Calc!N20","v":140},{"$f":"Calc!O20","v":"Nein"}]
[{"$f":"IF(I21,$A$20,G21*($G$10/$H$10-($G$10/$H$10-$I$10/$D$10)/$D$10*G21))","v":0.49890670777302426},{"$f":"IF(I21,$B$20,MAX(MIN(F21,$F$10),0))","v":4905.5},{"$f":"($C$10^2)/1000000+(($B$10/1000)^2*G21^2*PI()*PI()*($E$10/2)^2)/1200","v":4.176205749791089E-5},{"$f":"SQRT(3)*$C$10*$A$10*G21/1000","v":0.21091182683766216},{"$f":"0.75*$A$10^2*G21^2-($C$2/SQRT(2)*0.98)^2","v":-2039.5574999999992},{"$f":"ROUND((-D21/2/C21+SQRT((D21/2/C21)^2-E21/C21)),1)","v":4905.5},{"$f":"MIN($D$10,$A$13)*1","v":9},{"$f":"A21/G21","v":5.5434078641447143E-2},{"$f":"OR(IF(ISERROR(F21),TRUE,FALSE),IFERROR(IF(F21<0,TRUE,FALSE),TRUE))","v":false},null,{"$f":"Calc!K21","v":"Servostar S20260"},{"$f":"Calc!L21","v":230},{"$f":"Calc!M21","v":1.5},{"$f":"Calc!N21","v":4.5},{"$f":"Calc!O21","v":"Ja"},null,null,null,null,{"$f":"A21","v":0.49890670777302426},{"$f":"B21","v":4905.5}]
[{"$f":"IF(I22,$A$20,G22*($G$10/$H$10-($G$10/$H$10-$I$10/$D$10)/$D$10*G22))","v":0.4906675279184084},{"$f":"IF(I22,$B$20,MAX(MIN(F22,$F$10),0))","v":5021},4.0773956020993616E-5,0.20669359030090892,-2065.7555729999995,{"$f":"ROUND((-D22/2/C22+SQRT((D22/2/C22)^2-E22/C22)),1)","v":5021},{"$f":"MIN($D$10,$A$13)*0.98","v":8.82},5.5631238993016821E-2,{"$f":"OR(IF(ISERROR(F22),TRUE,FALSE),IFERROR(IF(F22<0,TRUE,FALSE),TRUE))","v":false},null,{"$f":"Calc!K22","v":"Servostar S20360"},{"$f":"Calc!L22","v":230},{"$f":"Calc!M22","v":3},{"$f":"Calc!N22","v":9},{"$f":"Calc!O22","v":"Ja"},null,null,null,null,{"$f":"A22","v":0.4906675279184084},{"$f":"B22","v":5021}]
[0.48235737033722742,5138.3999999999996,3.9805816190074676E-5,0.20247535376415568,-2091.424391999999,5138.3999999999996,{"$f":"MIN($D$10,$A$13)*0.96","v":8.64},5.5828399344586506E-2,false,null,{"$f":"Calc!K23","v":"Servostar S20330"},{"$f":"Calc!L23","v":50},{"$f":"Calc!M23","v":3},{"$f":"Calc!N23","v":9},{"$f":"Calc!O23","v":"Ja"},null,null,null,null,0.48235737033722742,5138.3999999999996]
[0.47397623502948133,5257.7,3.8857638005154063E-5,0.19825711722740241,-2116.5639569999994,5257.7,{"$f":"MIN($D$10,$A$13)*0.94","v":8.4599999999999991},5.6025559696156191E-2,false,null,{"$f":"Calc!K24","v":"Servostar S20630"},{"$f":"Calc!L24","v":50},{"$f":"Calc!M24","v":6},{"$f":"Calc!N24","v":18},{"$f":"Calc!O24","v":"Ja"},null,null,null,null,0.47397623502948133,5257.7]
[0.46552412199517024,5379,3.7929421466231783E-5,0.1940388806906492,-2141.1742679999988,5379,{"$f":"MIN($D$10,$A$13)*0.92","v":8.2800000000000011},5.6222720047725869E-2,false,null,{"$f":"Calc!K25","v":"S 701"},{"$f":"Calc!L25","v":480},{"$f":"Calc!M25","v":1.5},{"$f":"Calc!N25","v":4.5},{"$f":"Calc!O25","v":"Nein"},null,null,null,null,0.46552412199517024,5379]
[0.45700103123429398,5502.3,3.7021166573307824E-5,0.18982064415389593,-2165.2553249999992,5502.3,{"$f":"MIN($D$10,$A$13)*0.9","v":8.1},5.6419880399295554E-2,false,null,{"$f":"Calc!K26","v":"S 703"},{"$f":"Calc!L26","v":480},{"$f":"Calc!M26","v":3},{"$f":"Calc!N26","v":9},{"$f":"Calc!O26","v":"Nein"},null,null,null,null,0.45700103123429398,5502.3]
[0.44840696274685271,5627.6,3.6132873326382198E-5,0.1856024076171427,-2188.8071279999995,5627.6,{"$f":"MIN($D$10,$A$13)*0.88","v":7.92},5.6617040750865238E-2,false,null,{"$f":"Calc!K27","v":"S 706"},{"$f":"Calc!L27","v":480},{"$f":"Calc!M27","v":6},{"$f":"Calc!N27","v":18},{"$f":"Calc!O27","v":"Nein"},null,null,null,null,0.44840696274685271,5627.6]
[0.43974191653284628,5755,3.5264541725454893E-5,0.18138417108038946,-2211.8296769999993,5755,{"$f":"MIN($D$10,$A$13)*0.86","v":7.74},5.6814201102434916E-2,false,null,{"$f":"Calc!K28","v":"S 712"},{"$f":"Calc!L28","v":480},{"$f":"Calc!M28","v":12},{"$f":"Calc!N28","v":24},{"$f":"Calc!O28","v":"Nein"},null,null,null,null,0.43974191653284628,5755]
[0.43100589259227479,5884.6,3.4416171770525921E-5,0.17716593454363619,-2234.322971999999,5884.6,{"$f":"MIN($D$10,$A$13)*0.84","v":7.56},5.7011361454004601E-2,false,null,{"$f":"Calc!K29","v":"S 712P"},{"$f":"Calc!L29","v":480},{"$f":"Calc!M29","v":12},{"$f":"Calc!N29","v":30},{"$f":"Calc!O29","v":"Nein"},null,null,null,null,0.43100589259227479,5884.6]
[0.42219889092513824,6016.4,3.3587763461595283E-5,0.17294769800688295,-2256.2870129999992,6016.4,{"$f":"MIN($D$10,$A$13)*0.82","v":7.38},5.7208521805574286E-2,false,null,{"$f":"Calc!K30","v":"S 724"},{"$f":"Calc!L30","v":480},{"$f":"Calc!M30","v":24},{"$f":"Calc!N30","v":48},{"$f":"Calc!O30","v":"Nein"},null,null,null,null,0.42219889092513824,6016.4]
[0.41332091153143657,6150.4,3.2779316798662965E-5,0.16872946147012971,-2277.7217999999993,6150.4,{"$f":"MIN($D$10,$A$13)*0.8","v":7.2},5.7405682157143964E-2,false,null,{"$f":"Calc!K31","v":"S 724P"},{"$f":"Calc!L31","v":480},{"$f":"Calc!M31","v":24},{"$f":"Calc!N31","v":72},{"$f":"Calc!O31","v":"Nein"},null,null,null,null,0.41332091153143657,6150.4]
[0.40437195441116985,6286.8,3.1990831781728987E-5,0.16451122493337647,-2298.627332999999,6286.8,{"$f":"MIN($D$10,$A$13)*0.78","v":7.0200000000000005},5.7602842508713649E-2,false,null,{"$f":"Calc!K32","v":"S 748"},{"$f":"Calc!L32","v":480},{"$f":"Calc!M32","v":48},{"$f":"Calc!N32","v":96},{"$f":"Calc!O32","v":"Nein"},null,null,null,null,0.40437195441116985,6286.8]
[0.39535201956433802,6425.4,3.1222308410793323E-5,0.16029298839662323,-2319.0036119999991,6425.4,{"$f":"MIN($D$10,$A$13)*0.76","v":6.84},5.7800002860283341E-2,false,null,{"$f":"Calc!K33","v":"S 772"},{"$f":"Calc!L33","v":480},{"$f":"Calc!M33","v":72},{"$f":"Calc!N33","v":140},{"$f":"Calc!O33","v":"Nein"},null,null,null,null,0.39535201956433802,6425.4]
[0.38626110699094113,6566.5,3.0473746685856006E-5,0.15607475185986999,-2338.8506369999991,6566.5,{"$f":"MIN($D$10,$A$13)*0.74","v":6.66},5.7997163211853019E-2,false,null,{"$f":"Calc!K34","v":"AKD-x00306"},{"$f":"Calc!L34","v":230},{"$f":"Calc!M34","v":3},{"$f":"Calc!N34","v":9},{"$f":"Calc!O34","v":"Ja"},null,null,null,null,0.38626110699094113,6566.5]
[0.37709921669097907,6709.9,2.9745146606917003E-5,0.15185651532311673,-2358.1684079999991,6709.9,{"$f":"MIN($D$10,$A$13)*0.72","v":6.4799999999999995},5.8194323563422697E-2,false,null,{"$f":"Calc!K35","v":"AKD-x00606"},{"$f":"Calc!L35","v":230},{"$f":"Calc!M35","v":6},{"$f":"Calc!N35","v":18},{"$f":"Calc!O35","v":"Ja"},null,null,null,null,0.37709921669097907,6709.9]
[0.367866348664452,6855.8,2.9036508173976336E-5,0.14763827878636349,-2376.956924999999,6855.8,{"$f":"MIN($D$10,$A$13)*0.7","v":6.3},5.8391483914992381E-2,false,null,{"$f":"Calc!K36","v":"AKD-x01206"},{"$f":"Calc!L36","v":230},{"$f":"Calc!M36","v":12},{"$f":"Calc!N36","v":30},{"$f":"Calc!O36","v":"Ja"},null,null,null,null,0.367866348664452,6855.8]
[0.35856250291135983,7004.1,2.8347831387033993E-5,0.14342004224961025,-2395.216187999999,7004.1,{"$f":"MIN($D$10,$A$13)*0.68","v":6.12},5.8588644266562059E-2,false,null,{"$f":"Calc!K37","v":"AKD-x02406"},{"$f":"Calc!L37","v":230},{"$f":"Calc!M37","v":24},{"$f":"Calc!N37","v":48},{"$f":"Calc!O37","v":"Ja"},null,null,null,null,0.35856250291135983,7004.1]
[0.34918767943170259,7154.9,2.7679116246089984E-5,0.13920180571285701,-2412.9461969999993,7154.9,{"$f":"MIN($D$10,$A$13)*0.66","v":5.94},5.8785804618131744E-2,false,null,{"$f":"Calc!K38","v":"AKD-x00307"},{"$f":"Calc!L38","v":480},{"$f":"Calc!M38","v":3},{"$f":"Calc!N38","v":9},{"$f":"Calc!O38","v":"Ja"},null,null,null,null,0.34918767943170259,7154.9]
[0.33974187822548024,7308.2,2.7030362751144302E-5,0.13498356917610377,-2430.1469519999991,7308.2,{"$f":"MIN($D$10,$A$13)*0.64","v":5.76},5.8982964969701436E-2,false,null,{"$f":"Calc!K39","v":"AKD-x00607"},{"$f":"Calc!L39","v":480},{"$f":"Calc!M39","v":6},{"$f":"Calc!N39","v":18},{"$f":"Calc!O39","v":"Ja"},null,null,null,null,0.33974187822548024,7308.2]
[0.33022509929269284,7463.8,2.6401570902196943E-5,0.13076533263935053,-2446.818452999999,7463.8,{"$f":"MIN($D$10,$A$13)*0.62","v":5.58},5.9180125321271114E-2,false,null,{"$f":"Calc!K40","v":"AKD-x01207"},{"$f":"Calc!L40","v":480},{"$f":"Calc!M40","v":12},{"$f":"Calc!N40","v":30},{"$f":"Calc!O40","v":"Ja"},null,null,null,null,0.33022509929269284,7463.8]
[0.32063734263334026,7622,2.5792740699247918E-5,0.12654709610259726,-2462.9606999999992,7622,{"$f":"MIN($D$10,$A$13)*0.6","v":5.3999999999999995},5.9377285672840792E-2,false,null,{"$f":"Calc!K41","v":"AKD-x02407"},{"$f":"Calc!L41","v":480},{"$f":"Calc!M41","v":24},{"$f":"Calc!N41","v":48},{"$f":"Calc!O41","v":"Ja"},null,null,null,null,0.32063734263334026,7622]
[0.31097860824742268,7782.5,2.5203872142297223E-5,0.12232885956584404,-2478.5736929999994,7782.5,{"$f":"MIN($D$10,$A$13)*0.58","v":5.22},5.9574446024410477E-2,false,null,{"$f":"Calc!K42","v":"other drive"},{"$f":"Calc!L42","v":480},{"$f":"Calc!M42","v":"5"},{"$f":"Calc!N42","v":"10"},{"$f":"Calc!O42","v":"Nein"},null,null,null,null,0.31097860824742268,7782.5]
[0.30124889613494005,7945.5,2.4634965231344859E-5,0.11811062302909081,-2493.6574319999991,7945.5,{"$f":"MIN($D$10,$A$13)*0.56","v":5.0400000000000009},5.9771606375980155E-2,false,null,{"$f":"Calc!K43","v":"max."},{"$f":"Calc!L43","v":480},{"$f":"Calc!M43","v":1000},{"$f":"Calc!N43","v":1000},{"$f":"Calc!O43","v":"Nein"},null,null,null,null,0.30124889613494005,7945.5]
[0.2914482062958923,8000,2.4086019966390818E-5,0.11389238649233756,-2508.2119169999992,8110.7,{"$f":"MIN($D$10,$A$13)*0.54","v":4.8600000000000003},5.9968766727549853E-2,false,null,{"$f":"Calc!K44","v":"S 131xx     5A 230V"},{"$f":"Calc!L44","v":"230 V"},{"$f":"Calc!M44","v":5},{"$f":"Calc!N44","v":10},{"$f":"Calc!O44","v":"Nein"},null,null,null,null,0.2914482062958923,8000]
[0.28157653873027938,8000,2.3557036347435104E-5,0.10967414995558432,-2522.2371479999993,8278.2000000000007,{"$f":"MIN($D$10,$A$13)*0.52","v":4.68},6.0165927079119531E-2,false,null,{"$f":"Calc!K45","v":"S 132xx   10A 480V"},{"$f":"Calc!L45","v":480},{"$f":"Calc!M45","v":10},{"$f":"Calc!N45","v":20},{"$f":"Calc!O45","v":"Nein"},null,null,null,null,0.28157653873027938,8000]
[0.27163389343810146,8000,2.3048014374477723E-5,0.10545591341883108,-2535.7331249999993,8447.9,{"$f":"MIN($D$10,$A$13)*0.5","v":4.5},6.0363087430689216E-2,false,null,{"$f":"Calc!K46","v":"S 132xx   15A 480V"},{"$f":"Calc!L46","v":480},{"$f":"Calc!M46","v":15},{"$f":"Calc!N46","v":30},{"$f":"Calc!O46","v":"Nein"},null,null,null,null,0.27163389343810146,8000]
[0.26162027041935842,8000,2.255895404751867E-5,0.10123767688207784,-2548.6998479999993,8619.6,{"$f":"MIN($D$10,$A$13)*0.48","v":4.32},6.0560247782258887E-2,false,null,{"$f":"Calc!K47","v":"S 132xx   20A 480V"},{"$f":"Calc!L47","v":480},{"$f":"Calc!M47","v":20},{"$f":"Calc!N47","v":40},{"$f":"Calc!O47","v":"Nein"},null,null,null,null,0.26162027041935842,8000]
[0.25153566967405033,8000,2.2089855366557947E-5,9.7019440345324601E-2,-2561.1373169999993,8793.2999999999993,{"$f":"MIN($D$10,$A$13)*0.46","v":4.1400000000000006},6.0757408133828572E-2,false,null,{"$f":"Calc!K48","v":0},{"$f":"Calc!L48","v":0},{"$f":"Calc!M48","v":0},{"$f":"Calc!N48","v":0},{"$f":"Calc!O48","v":0},null,null,null,null,0.25153566967405033,8000]
[0.2413800912021771,8000,2.164071833159555E-5,9.2801203808571348E-2,-2573.0455319999992,8968.7000000000007,{"$f":"MIN($D$10,$A$13)*0.44","v":3.96},6.0954568485398257E-2,false,null,{"$f":"Calc!K49","v":0},{"$f":"Calc!L49","v":0},{"$f":"Calc!M49","v":0},{"$f":"Calc!N49","v":0},{"$f":"Calc!O49","v":0},null,null,null,null,0.2413800912021771,8000]
[0.23115353500373881,8000,2.1211542942631481E-5,8.8582967271818094E-2,-2584.4244929999991,9145.7999999999993,{"$f":"MIN($D$10,$A$13)*0.42","v":3.78},6.1151728836967942E-2,false,null,null,null,null,null,null,null,null,null,null,0.23115353500373881,8000]
[0.22085600107873493,8000,2.0802329199665722E-5,8.4364730735064661E-2,-2595.2741999999998,9324.4,{"$f":"MIN($D$10,$A$13)*0.399999999999999","v":3.5999999999999912},6.1348889188537634E-2,false,null,null,null,null,null,null,null,null,null,null,0.22085600107873493,8000]
[0.21048748942716644,8000,2.0413077102698313E-5,8.0146494198311408E-2,-2605.5946529999997,9504.1,{"$f":"MIN($D$10,$A$13)*0.379999999999999","v":3.419999999999991},6.1546049540107305E-2,false,null,null,null,null,null,null,null,null,null,null,0.21048748942716644,8000]
[0.20004800004903289,8000,{"$f":"($C$10^2)/1000000+(($B$10/1000)^2*G53^2*PI()*PI()*($E$10/2)^2)/1200","v":2.0043786651729235E-5},{"$f":"SQRT(3)*$C$10*$A$10*G53/1000","v":7.5928257661558168E-2},{"$f":"0.75*$A$10^2*G53^2-($C$2/SQRT(2)*0.98)^2","v":-2615.3858519999994},9684.7999999999993,{"$f":"MIN($D$10,$A$13)*0.359999999999999","v":3.2399999999999909},{"$f":"A53/G53","v":6.1743209891676989E-2},false,null,null,null,null,null,null,null,null,null,null,0.20004800004903289,8000]
[0.18953753294433429,8000,1.9694457846758483E-5,7.1710021124804929E-2,-2624.6477969999996,9866.2999999999993,{"$f":"MIN($D$10,$A$13)*0.339999999999999","v":3.0599999999999912},6.1940370243246674E-2,false,null,null,null,null,null,null,null,null,null,null,0.18953753294433429,8000]
[0.17895608811307057,8000,1.9365090687786059E-5,6.7491784588051676E-2,-2633.3804879999993,10048.200000000001,{"$f":"MIN($D$10,$A$13)*0.319999999999999","v":2.879999999999991},6.2137530594816366E-2,false,null,null,null,null,null,null,null,null,null,null,0.17895608811307057,8000]
[0.16830366555524176,8000,1.9055685174811964E-5,6.3273548051298423E-2,-2641.5839249999995,10230.1,{"$f":"MIN($D$10,$A$13)*0.299999999999999","v":2.6999999999999909},6.2334690946386051E-2,false,null,null,null,null,null,null,null,null,null,null,0.16830366555524176,8000]
[0.15758026527084787,8000,1.87662413078362E-5,5.905531151454519E-2,-2649.2581079999995,10411.799999999999,{"$f":"MIN($D$10,$A$13)*0.279999999999999","v":2.5199999999999911},6.2531851297955729E-2,false,null,null,null,null,null,null,null,null,null,null,0.15758026527084787,8000]
[0.14678588725988889,8000,1.8496759086858763E-5,5.4837074977791944E-2,-2656.4030369999996,10592.9,{"$f":"MIN($D$10,$A$13)*0.259999999999999","v":2.339999999999991},6.2729011649525407E-2,false,null,null,null,null,null,null,null,null,null,null,0.14678588725988889,8000]
[0.13592053152236483,8000,1.8247238511879656E-5,5.0618838441038698E-2,-2663.0187119999996,10772.9,{"$f":"MIN($D$10,$A$13)*0.239999999999999","v":2.1599999999999908},6.2926172001095099E-2,false,null,null,null,null,null,null,null,null,null,null,0.13592053152236483,8000]
[0.12498419805827569,8000,1.8017679582898877E-5,4.6400601904285459E-2,-2669.1051329999996,10951.5,{"$f":"MIN($D$10,$A$13)*0.219999999999999","v":1.9799999999999911},6.3123332352664777E-2,false,null,null,null,null,null,null,null,null,null,null,0.12498419805827569,8000]
[0.11397688686762146,8000,1.7808082299916427E-5,4.2182365367532219E-2,-2674.6622999999995,11128.1,{"$f":"MIN($D$10,$A$13)*0.199999999999999","v":1.7999999999999912},6.3320492704234455E-2,false,null,null,null,null,null,null,null,null,null,null,0.11397688686762146,8000]
[0.10289859795040214,8000,1.7618446662932304E-5,3.7964128830778973E-2,-2679.6902129999994,11302.3,{"$f":"MIN($D$10,$A$13)*0.179999999999999","v":1.619999999999991},6.3517653055804146E-2,false,null,null,null,null,null,null,null,null,null,null,0.10289859795040214,8000]
[9.1749331306617735E-2,8000,1.7448772671946512E-5,3.3745892294025727E-2,-2684.1888719999993,11473.6,{"$f":"MIN($D$10,$A$13)*0.159999999999999","v":1.4399999999999911},6.3714813407373824E-2,false,null,null,null,null,null,null,null,null,null,null,9.1749331306617735E-2,8000]
[8.0529086936268229E-2,8000,1.7299060326959047E-5,2.9527655757272488E-2,-2688.1582769999991,11641.4,{"$f":"MIN($D$10,$A$13)*0.139999999999999","v":1.2599999999999909},6.3911973758943502E-2,false,null,null,null,null,null,null,null,null,null,null,8.0529086936268229E-2,8000]
[6.9237864839353666E-2,8000,1.7169309627969912E-5,2.5309419220519245E-2,-2691.5984279999993,11805.3,{"$f":"MIN($D$10,$A$13)*0.119999999999999","v":1.079999999999991},6.4109134110513194E-2,false,null,null,null,null,null,null,null,null,null,null,6.9237864839353666E-2,8000]
[5.787566501587401E-2,8000,1.7059520574979103E-5,2.1091182683766002E-2,-2694.5093249999991,11964.7,{"$f":"MIN($D$10,$A$13)*0.099999999999999","v":0.89999999999999103},6.4306294462082872E-2,false,null,null,null,null,null,null,null,null,null,null,5.787566501587401E-2,8000]
[4.6442487465829255E-2,8000,1.6969693167986625E-5,1.6872946147012759E-2,-2696.8909679999992,12119.2,{"$f":"MIN($D$10,$A$13)*0.079999999999999","v":0.71999999999999098},6.450345481365255E-2,false,null,null,null,null,null,null,null,null,null,null,4.6442487465829255E-2,8000]
[3.4938332189219372E-2,8000,1.6899827406992474E-5,1.2654709610259499E-2,-2698.7433569999994,12268,{"$f":"MIN($D$10,$A$13)*0.0599999999999989","v":0.53999999999999015},6.4700615165222242E-2,false,null,null,null,null,null,null,null,null,null,null,3.4938332189219372E-2,8000]
[2.3363199186044507E-2,8000,1.6849923291996654E-5,8.4364730735062739E-3,-2700.066491999999,12410.8,{"$f":"MIN($D$10,$A$13)*0.039999999999999","v":0.35999999999999099},6.489777551679192E-2,false,null,null,null,null,null,null,null,null,null,null,2.3363199186044507E-2,8000]
[1.1717088456304502E-2,8000,1.6819980822999163E-5,4.218236536753032E-3,-2700.8603729999991,12547,{"$f":"MIN($D$10,$A$13)*0.019999999999999","v":0.179999999999991},6.5094935868361598E-2,false,null,null,null,null,null,null,null,null,null,null,1.1717088456304502E-2,8000]
[0,8000,1.681E-5,0,-2701.1249999999991,12676.2,{"$f":"MIN($D$10,$A$13)*0","v":0},null,false,null,null,null,null,null,null,null,null,null,null,0,8000]
[]
[null,{"$f":"MAX(MIN(F73,$F$10),0)","v":8000},{"$f":"($C$10^2)/1000000+(($B$10/1000)^2*G73^2*PI()*PI()*($E$10/2)^2)/1200","v":1.9151235657596224E-5},{"$f":"SQRT(3)*$C$10*$A$10*G73/1000","v":6.4605622747115468E-2},{"$f":"0.75*$A$10^2*G73^2-($C$2/SQRT(2)*0.98)^2","v":-2639.0505429722984},{"$f":"ROUND((-D73/2/C73+SQRT((D73/2/C73)^2-E73/C73)),0)","v":10173},{"$f":"MIN(B13,H10/G10*C83)","v":2.756842105263158}]
[]
[]
["S1"]
["M ","n"]
[{"$f":"IF(D78>$B$71,\"\",C78)","v":0.19},{"$f":"IF(D78>$B$71,\"\",D78)","v":0},{"$f":"G10","v":0.19},0,0,{"$f":"MIN(A78,$A$154)","v":0.18601827108130969}]
[{"$f":"IF(D79>$B$71,A78,C79)","v":0.19},{"$f":"IF(D79>$B$71,B78,D79)","v":0},{"$f":"IF(VLOOKUP($A$2,Motorenmatrix,6,FALSE)=0,C78,VLOOKUP($A$2,Motorenmatrix,6,FALSE))","v":0.19},{"$f":"IF(VLOOKUP($A$2,Motorenmatrix,7,FALSE)=0,D78,VLOOKUP($A$2,Motorenmatrix,7,FALSE))","v":0},{"$f":"IF(D79-D78=0,E78,(C79-C78)/(D79-D78))","v":0},0.18601827108130969]
[{"$f":"IF(D80>$B$71,A79,C80)","v":0.19},{"$f":"IF(D80>$B$71,B79,D80)","v":0},{"$f":"IF(VLOOKUP($A$2,Motorenmatrix,8,FALSE)=0,C79,VLOOKUP($A$2,Motorenmatrix,8,FALSE))","v":0.19},{"$f":"IF(VLOOKUP($A$2,Motorenmatrix,9,FALSE)=0,D79,VLOOKUP($A$2,Motorenmatrix,9,FALSE))","v":0},{"$f":"IF(D80-D79=0,E79,(C80-C79)/(D80-D79))","v":0},0.18601827108130969]
[{"$f":"IF(D81>$B$71,A80,C81)","v":0.18},{"$f":"IF(D81>$B$71,B80,D81)","v":6000},{"$f":"IF(VLOOKUP($A$2,Motorenmatrix,10,FALSE)=0,C80,VLOOKUP($A$2,Motorenmatrix,10,FALSE))","v":0.18},{"$f":"IF(VLOOKUP($A$2,Motorenmatrix,11,FALSE)=0,D80,VLOOKUP($A$2,Motorenmatrix,11,FALSE))","v":6000},{"$f":"IF(D81-D80=0,E80,(C81-C80)/(D81-D80))","v":-1.6666666666666681E-6},0.18]
[{"$f":"IF(D82>$B$71,A81,C82)","v":0.18},{"$f":"IF(D82>$B$71,B81,D82)","v":6000},{"$f":"IF(VLOOKUP($A$2,Motorenmatrix,12,FALSE)=0,C81,VLOOKUP($A$2,Motorenmatrix,12,FALSE))","v":0.18},{"$f":"IF(VLOOKUP($A$2,Motorenmatrix,13,FALSE)=0,D81,VLOOKUP($A$2,Motorenmatrix,13,FALSE))","v":6000},{"$f":"IF(D82-D81=0,E81,(C82-C81)/(D82-D81))","v":-1.6666666666666681E-6},0.18]
[{"$f":"IF(D83>$B$71,A82,C83)","v":0.18},{"$f":"IF(D83>$B$71,B82,D83)","v":6000},{"$f":"IF(VLOOKUP($A$2,Motorenmatrix,14,FALSE)=0,C82,VLOOKUP($A$2,Motorenmatrix,14,FALSE))","v":0.18},{"$f":"IF(VLOOKUP($A$2,Motorenmatrix,15,FALSE)=0,D82,VLOOKUP($A$2,Motorenmatrix,15,FALSE))","v":6000},{"$f":"IF(D83-D82=0,E82,(C83-C82)/(D83-D82))","v":-1.6666666666666681E-6},0.18]
[{"$f":"A83+(B84-B83)*E83","v":0.17666666666666667},{"$f":"B73","v":8000},{"$f":"A83+(B84-B83)*E83","v":0.17666666666666667},null,null,0.17666666666666667]
[]
[{"$f":"C78","v":0.19},0,null,{"$f":"MIN(A86,$A$154)","v":0.18601827108130969}]
[{"$f":"A86+(B87-B86)*C87","v":0.18973333333333334},{"$f":"0.02*$B$84","v":160},{"$f":"IF(B87<$B$79,$E$79,IF(B87<$B$80,$E$80,IF(B87<$B$81,$E$81,IF(B87<$B$82,$E$82,$E$83 ) ) ))","v":-1.6666666666666681E-6},0.18601827108130969]
[{"$f":"A87+(B88-B87)*C88","v":0.18946666666666667},{"$f":"0.04*$B$84","v":320},{"$f":"IF(B88<$B$79,$E$79,IF(B88<$B$80,$E$80,IF(B88<$B$81,$E$81,IF(B88<$B$82,$E$82,$E$83 ) ) ))","v":-1.6666666666666681E-6},0.18601827108130969]
[0.18920000000000001,{"$f":"0.06*$B$84","v":480},-1.6666666666666681E-6,0.18601827108130969]
[0.18893333333333334,{"$f":"0.08*$B$84","v":640},-1.6666666666666681E-6,0.18601827108130969]
[0.18866666666666668,{"$f":"0.1*$B$84","v":800},-1.6666666666666681E-6,0.18601827108130969]
[0.18840000000000001,{"$f":"0.12*$B$84","v":960},-1.6666666666666681E-6,0.18601827108130969]
[0.18813333333333335,{"$f":"0.14*$B$84","v":1120},-1.6666666666666681E-6,0.18601827108130969]
[0.18786666666666668,{"$f":"0.16*$B$84","v":1280},-1.6666666666666681E-6,0.18601827108130969]
[0.18760000000000002,{"$f":"0.18*$B$84","v":1440},-1.6666666666666681E-6,0.18601827108130969]
[0.18733333333333335,{"$f":"0.2*$B$84","v":1600},-1.6666666666666681E-6,0.18601827108130969]
[0.18706666666666669,{"$f":"0.22*$B$84","v":1760},-1.6666666666666681E-6,0.18601827108130969]
[0.18680000000000002,{"$f":"0.24*$B$84","v":1920},-1.6666666666666681E-6,0.18601827108130969]
[0.18653333333333336,{"$f":"0.26*$B$84","v":2080},-1.6666666666666681E-6,0.18601827108130969]
[0.18626666666666669,{"$f":"0.28*$B$84","v":2240},-1.6666666666666681E-6,0.18601827108130969]
[0.18600000000000003,{"$f":"0.3*$B$84","v":2400},-1.6666666666666681E-6,0.18600000000000003]
[0.18573333333333336,{"$f":"0.32*$B$84","v":2560},-1.6666666666666681E-6,0.18573333333333336]
[0.1854666666666667,{"$f":"0.34*$B$84","v":2720},-1.6666666666666681E-6,0.1854666666666667]
[0.18520000000000003,{"$f":"0.36*$B$84","v":2880},-1.6666666666666681E-6,0.18520000000000003]
[0.18493333333333337,{"$f":"0.38*$B$84","v":3040},-1.6666666666666681E-6,0.18493333333333337]
[0.1846666666666667,{"$f":"0.4*$B$84","v":3200},-1.6666666666666681E-6,0.1846666666666667]
[0.18440000000000004,{"$f":"0.42*$B$84","v":3360},-1.6666666666666681E-6,0.18440000000000004]
[0.18413333333333337,{"$f":"0.44*$B$84","v":3520},-1.6666666666666681E-6,0.18413333333333337]
[0.18386666666666671,{"$f":"0.46*$B$84","v":3680},-1.6666666666666681E-6,0.18386666666666671]
[0.18360000000000004,{"$f":"0.48*$B$84","v":3840},-1.6666666666666681E-6,0.18360000000000004]
[0.18333333333333338,{"$f":"0.5*$B$84","v":4000},-1.6666666666666681E-6,0.18333333333333338]
[0.18306666666666671,{"$f":"0.52*$B$84","v":4160},-1.6666666666666681E-6,0.18306666666666671]
[0.18280000000000005,{"$f":"0.54*$B$84","v":4320},-1.6666666666666681E-6,0.18280000000000005]
[0.18253333333333338,{"$f":"0.56*$B$84","v":4480},-1.6666666666666681E-6,0.18253333333333338]
[0.18226666666666672,{"$f":"0.58*$B$84","v":4640},-1.6666666666666681E-6,0.18226666666666672]
[0.18200000000000005,{"$f":"0.6*$B$84","v":4800},-1.6666666666666681E-6,0.18200000000000005]
[0.18173333333333339,{"$f":"0.62*$B$84","v":4960},-1.6666666666666681E-6,0.18173333333333339]
[0.18146666666666672,{"$f":"0.64*$B$84","v":5120},-1.6666666666666681E-6,{"$f":"MIN(A118,$A$154)","v":0.18146666666666672}]
[{"$f":"A118+(B119-B118)*C119","v":0.18120000000000006},{"$f":"0.66*$B$84","v":5280},{"$f":"IF(B119<$B$79,$E$79,IF(B119<$B$80,$E$80,IF(B119<$B$81,$E$81,IF(B119<$B$82,$E$82,$E$83 ) ) ))","v":-1.6666666666666681E-6},0.18120000000000006]
[0.18093333333333339,{"$f":"0.68*$B$84","v":5440},-1.6666666666666681E-6,0.18093333333333339]
[0.18066666666666673,{"$f":"0.7*$B$84","v":5600},-1.6666666666666681E-6,0.18066666666666673]
[0.18040000000000006,{"$f":"0.72*$B$84","v":5760},-1.6666666666666681E-6,0.18040000000000006]
[0.1801333333333334,{"$f":"0.74*$B$84","v":5920},-1.6666666666666681E-6,0.1801333333333334]
[0.17986666666666673,{"$f":"0.76*$B$84","v":6080},-1.6666666666666681E-6,0.17986666666666673]
[0.17960000000000007,{"$f":"0.78*$B$84","v":6240},-1.6666666666666681E-6,0.17960000000000007]
[0.1793333333333334,{"$f":"0.8*$B$84","v":6400},-1.6666666666666681E-6,0.1793333333333334]
[0.17906666666666674,{"$f":"0.82*$B$84","v":6560},-1.6666666666666681E-6,0.17906666666666674]
[0.17880000000000007,{"$f":"0.84*$B$84","v":6720},-1.6666666666666681E-6,0.17880000000000007]
[0.1785333333333334,{"$f":"0.86*$B$84","v":6880},-1.6666666666666681E-6,0.1785333333333334]
[0.17826666666666674,{"$f":"0.88*$B$84","v":7040},-1.6666666666666681E-6,0.17826666666666674]
[0.17800000000000007,{"$f":"0.9*$B$84","v":7200},-1.6666666666666681E-6,0.17800000000000007]
[0.17773333333333341,{"$f":"0.92*$B$84","v":7360},-1.6666666666666681E-6,0.17773333333333341]
[0.17746666666666674,{"$f":"0.94*$B$84","v":7520},-1.6666666666666681E-6,0.17746666666666674]
[0.17720000000000008,{"$f":"0.96*$B$84","v":7680},-1.6666666666666681E-6,0.17720000000000008]
[0.17693333333333341,{"$f":"0.98*$B$84","v":7840},-1.6666666666666681E-6,0.17693333333333341]
[{"$f":"C84","v":0.17666666666666667},{"$f":"1*$B$73","v":8000},null,0.17666666666666667]
[]
[]
[]
["Rated"]
["M","n",{"$f":"$C$2*1","v":75}]
[{"$f":"MIN(VLOOKUP(C141,C142:E148,2,FALSE),A154)","v":0.18},{"$f":"VLOOKUP(C141,C142:E148,3,FALSE)","v":6000},24,{"$f":"IF(VLOOKUP($A$2,Motorenmatrix,6,FALSE)=0,A78,VLOOKUP($A$2,Motorenmatrix,6,FALSE))","v":0.19},{"$f":"IF(VLOOKUP($A$2,Motorenmatrix,7,FALSE)=0,B78,VLOOKUP($A$2,Motorenmatrix,7,FALSE))","v":0}]
[null,null,48,{"$f":"IF(VLOOKUP($A$2,Motorenmatrix,8,FALSE)=0,D142,VLOOKUP($A$2,Motorenmatrix,8,FALSE))","v":0.19},{"$f":"IF(VLOOKUP($A$2,Motorenmatrix,9,FALSE)=0,E142,VLOOKUP($A$2,Motorenmatrix,9,FALSE))","v":0}]
[null,null,75,{"$f":"IF(VLOOKUP($A$2,Motorenmatrix,10,FALSE)=0,D143,VLOOKUP($A$2,Motorenmatrix,10,FALSE))","v":0.18},{"$f":"IF(VLOOKUP($A$2,Motorenmatrix,11,FALSE)=0,E143,VLOOKUP($A$2,Motorenmatrix,11,FALSE))","v":6000}]
[null,null,160,{"$f":"IF(VLOOKUP($A$2,Motorenmatrix,12,FALSE)=0,D144,VLOOKUP($A$2,Motorenmatrix,12,FALSE))","v":0.18},{"$f":"IF(VLOOKUP($A$2,Motorenmatrix,13,FALSE)=0,E144,VLOOKUP($A$2,Motorenmatrix,13,FALSE))","v":6000}]
[null,null,320,{"$f":"IF(VLOOKUP($A$2,Motorenmatrix,14,FALSE)=0,D145,VLOOKUP($A$2,Motorenmatrix,14,FALSE))","v":0.18},{"$f":"IF(VLOOKUP($A$2,Motorenmatrix,15,FALSE)=0,E145,VLOOKUP($A$2,Motorenmatrix,15,FALSE))","v":6000}]
[null,null,560,{"$f":"IF(VLOOKUP($A$2,Motorenmatrix,16,FALSE)=0,D146,VLOOKUP($A$2,Motorenmatrix,16,FALSE))","v":0.18},{"$f":"IF(VLOOKUP($A$2,Motorenmatrix,17,FALSE)=0,E146,VLOOKUP($A$2,Motorenmatrix,17,FALSE))","v":6000}]
["I peak",null,640,{"$f":"IF(VLOOKUP($A$2,Motorenmatrix,18,FALSE)=0,D147,VLOOKUP($A$2,Motorenmatrix,18,FALSE))","v":0.18},{"$f":"IF(VLOOKUP($A$2,Motorenmatrix,19,FALSE)=0,E147,VLOOKUP($A$2,Motorenmatrix,19,FALSE))","v":6000}]
[{"$f":"A14*MAX(($G$10/$H$10-($G$10/$H$10-$I$10/$D$10)/$D$10*A14),I10/D10)","v":0.49890670777302426},0]
[{"$f":"A149","v":0.49890670777302426},{"$f":"B71*1.05","v":8400}]
[]
[]
["I rms"]
[{"$f":"B13*MAX(($G$10/$H$10-($G$10/$H$10-$I$10/$D$10)/$D$10*B13),I10/D10)","v":0.18601827108130969},0]
[{"$f":"A154","v":0.18601827108130969},{"$f":"B71*1.05","v":8400}]
[]
[]
[]
[]
[]
[]
[]
[]
[]
[]
[]
[]
[]
[]
[]
[]
[]
[]
[]
[]
[]
[]
[]
[]
[]
[]
[]
[]
[]
[]
[]
[]
[]
[]
[]
[]
[]
[]
[]
[]
[]
[]
[]
[]
[]
[]
[]
[]
[]
[]
[]
[]
[]
[null,null,null,null,null,null,null,null,null,"Linearmotor Calculator"]
[null,null,null,null,null,null,null,null,null,"m/s in elek U/min"]
[null,null,null,null,null,null,null,null,null,"Geschwindigkeit [m/s]",5]
[null,null,null,null,null,null,null,null,null,"Polpitch [mm]",32]
[null,null,null,null,null,null,null,null,null,"Umdrehungen [U/min]",{"$f":"K211*1000/K212*60","v":9375}]
[]
[null,null,null,null,null,null,null,null,null,"Ke Umrechner",null,null,null,"Kt Rechner"]
[null,null,null,null,null,null,null,null,null,"Polpitch [mm]",32,null,null,"Ke mV/rpm",{"$f":"K218","v":21.866666666666667}]
[null,null,null,null,null,null,null,null,null,"KE mV/(m/s)",41000,null,null,"Kt Nm/A",{"$f":"O216*(1.73/6.28)","v":6.0237791932059448}]
[null,null,null,null,null,null,null,null,null,"KE mV/rpm",{"$f":"K217/((1000/K216)*60)","v":21.866666666666667}]
[]
[null,null,null,null,null,null,null,null,null,"Ele U/min in m/s"]
[null,null,null,null,null,null,null,null,null,"Umdrehungen [U/min]",9375]
[null,null,null,null,null,null,null,null,null,"Polpitch [mm]",32]
[null,null,null,null,null,null,null,null,null,"Geschwindigkeit [m/s]",{"$f":"K221/60*K222/1000","v":5}]

{"sheet":"Motor_Mechanic","index":4,"n_rows":175,"n_cols":34,"rows_kept":175,"cut":false,"hidden":true,"merged":[]}
[null,"Created by Online2PDF.com",null,null,null,null,null,null,null,null,null,null,null,null,null,null,null,null,null,null,null,null,null,null,null,null,"Combination","Is Family","Choosen","Same","possible flange","Flange","Same","(Alle)"]
[null,"                                             AKM Series Brushless Servomotors                                              ",null,null,null,null,null,null,null,null,null,null,null,null,null,null,null,null,null,null,null,null,null,null,null,null,"AKM1-AK",{"$f":"MID(AA2,1,4)","v":"AKM1"},{"$f":"MID(Calc!$A$2,1,4)","v":"AKM1"},{"$f":"AB2=AC2","v":true},{"$f":"IF(AB2=AC2,MID(AA2,6,2),\"\")","v":"AK"},"AN"]
[null,"Mount/Shaft Model Number Codes",null,null,null,null,null,null,null,null,null,null,null,null,null,null,null,null,null,null,null,null,null,null,null,null,"AKM1-AN",{"$f":"MID(AA3,1,4)","v":"AKM1"},{"$f":"MID(Calc!$A$2,1,4)","v":"AKM1"},{"$f":"AB3=AC3","v":true},{"$f":"IF(AB3=AC3,MID(AA3,6,2),\"\")","v":"AN"},"Motor"]
[null,"AKM1xx Models:",null,null,null,null,null,null,null,null,null,null,null,null,null,null,null,null,null,null,null,null,null,null,null,null,"AKM1-BN","AKM1",{"$f":"MID(Calc!$A$2,1,4)","v":"AKM1"},true,"BN",{"$f":"Calc!A2","v":"AKM12E"},"possible flange"]
["Checker","CODE","MOUNT STANDARD","SHAFT STANDARD","BEARING TYPE","PILOT DIAMETER\n(mm)",null,null,"BOLT CIRCLE DIAMETER\n(mm)","HOLE DIAMETER\n(mm)",null,"SHAFT DIAMETER\n(mm)",null,null,"SHAFT LENGTH\n(mm)","KEYWAY TYPE","KEY WIDTH\n(mm)",null,"KEY LENGTH\n(mm)",null,"SHAFT CENTER",null,null,null,null,null,"AKM1-CK","AKM1",{"$f":"MID(Calc!$A$2,1,4)","v":"AKM1"},true,"CK","Kombi","CN"]
["AKM1-AN","AN","-","-","STANDARD",30,0,"h7",46,430,30,8,0,"h7",25,"-","-","-","-",null,"-",null,null,null,null,null,"AKM1-CN","AKM1",{"$f":"MID(Calc!$A$2,1,4)","v":"AKM1"},true,"CN",{"$f":"CONCATENATE(AF4,\"-\",AF2)","v":"AKM12E-AN"},"CK"]
["",null,null,null,null,null,-21,null,null,null,0,null,-15,null,null,null,null,"-",null,null,null,null,null,null,null,null,"AKM2-AC","AKM2",{"$f":"MID(Calc!$A$2,1,4)","v":"AKM1"},false,"",null,"BN"]
["AKM1-AK","AK","-","-","STANDARD",30,0,"h7",46,430,30,8,0,"h7",25,"OPEN",3,0,14,null,"-",null,null,null,null,null,"AKM2-AN","AKM2",{"$f":"MID(Calc!$A$2,1,4)","v":"AKM1"},false,"",null,"AN"]
["",null,null,null,null,null,-21,null,null,null,0,null,-15,null,null,null,null,-25,null,null,null,null,null,null,null,null,"AKM2-BN","AKM2",{"$f":"MID(Calc!$A$2,1,4)","v":"AKM1"},false,"",null,"AK"]
["AKM1-BN","BN","-","-","STANDARD",20.02,2,"-",46.69,356,30,6.35,0,"-",25,"-","-","-","-",null,"-",null,null,null,null,null,"AKM2-CK","AKM2",{"$f":"MID(Calc!$A$2,1,4)","v":"AKM1"},false,""]
["",null,null,null,null,null,-2,null,null,null,0,null,-12,null,null,null,null,"-",null,null,null,null,null,null,null,null,"AKM2-DC","AKM2",{"$f":"MID(Calc!$A$2,1,4)","v":"AKM1"},false,""]
["AKM1-CN","CN","-","-","STANDARD",30,0,"h7",45,340,30,8,0,"h7",25,"-","-","-","-",null,"-",null,null,null,null,null,"AKM2-DN","AKM2",{"$f":"MID(Calc!$A$2,1,4)","v":"AKM1"},false,""]
["",null,null,null,null,null,-21,null,null,null,0,null,-15,null,null,null,null,"-",null,null,null,null,null,null,null,null,"AKM2-EF","AKM2",{"$f":"MID(Calc!$A$2,1,4)","v":"AKM1"},false,""]
["AKM1-CK","CK","-","-","STANDARD",30,0,"h7",45,340,30,8,0,"h7",25,"OPEN",3,0,14,null,"-",null,null,null,null,null,"AKM2-EN","AKM2",{"$f":"MID(Calc!$A$2,1,4)","v":"AKM1"},false,""]
["",null,null,null,null,null,-21,null,null,null,0,null,-15,null,null,null,null,-25,null,null,null,null,null,null,null,null,"AKM3-AC","AKM3",{"$f":"MID(Calc!$A$2,1,4)","v":"AKM1"},false,""]
[null,"AKM2xx Models:",null,null,null,null,null,null,null,null,null,null,null,null,null,null,null,null,null,null,null,null,null,null,null,null,"AKM3-AN","AKM3",{"$f":"MID(Calc!$A$2,1,4)","v":"AKM1"},false,""]
[null,"CODE","MOUNT STANDARD","SHAFT STANDARD","BEARING TYPE","PILOT DIAMETER\n(mm)",null,null,"BOLT CIRCLE DIAMETER\n(mm)","HOLE DIAMETER\n(mm)",null,"SHAFT DIAMETER\n(mm)",null,null,"SHAFT LENGTH\n(mm)","KEYWAY TYPE","KEY WIDTH\n(mm)",null,"KEY LENGTH\n(mm)",null,"SHAFT CENTER",null,null,null,null,null,"AKM3-CC","AKM3",{"$f":"MID(Calc!$A$2,1,4)","v":"AKM1"},false,""]
["AKM2-AN","AN","-","DIN 748","STANDARD",40,11,"j6",63,480,30,9,10,"k6",20,"-","-","-","-",null,"D M3 DIN 332",null,null,null,null,null,"AKM3-CN","AKM3",{"$f":"MID(Calc!$A$2,1,4)","v":"AKM1"},false,""]
["",null,null,null,null,null,-5,null,null,null,0,null,1,null,null,null,null,"-",null,null,null,null,null,null,null,null,"AKM3-GC","AKM3",{"$f":"MID(Calc!$A$2,1,4)","v":"AKM1"},false,""]
["AKM2-AC","AC","-","DIN 748","STANDARD",40,11,"j6",63,480,30,9,10,"k6",20,"CLOSED DIN 6885",3,0,12,null,"D M3 DIN 332",null,null,null,null,null,"AKM3-GN","AKM3",{"$f":"MID(Calc!$A$2,1,4)","v":"AKM1"},false,""]
["",null,null,null,null,null,-5,null,null,null,0,null,1,null,null,null,null,-25,null,null,null,null,null,null,null,null,"AKM4-AC","AKM4",{"$f":"MID(Calc!$A$2,1,4)","v":"AKM1"},false,""]
["AKM2-BN","BN","NEMA ICS 16\nINCH (23)","NEMA ICS 16\nINCH (038)","STANDARD",38.1,0,"-",66.680000000000007,510,30,9.5250000000000004,0,"-",31.75,"-","-","-","-",null,"-",null,null,null,null,null,"AKM4-AN","AKM4",{"$f":"MID(Calc!$A$2,1,4)","v":"AKM1"},false,""]
["",null,null,null,null,null,-5,null,null,null,0,null,-13,null,null,null,null,"-",null,null,null,null,null,null,null,null,"AKM4-BK","AKM4",{"$f":"MID(Calc!$A$2,1,4)","v":"AKM1"},false,""]
["AKM2-CK","CK","NEMA ICS 16\nMETRIC (70)","NEMA ICS 16\nMETRIC (14)","STANDARD",50,0,"h6",70,580,30,14,0,"h6",30,"OPEN",5,0,20,null,"-",null,null,null,null,null,"AKM4-CC","AKM4",{"$f":"MID(Calc!$A$2,1,4)","v":"AKM1"},false,""]
["",null,null,null,null,null,-16,null,null,null,0,null,-11,null,null,null,null,-3,null,null,null,null,null,null,null,null,"AKM4-CN","AKM4",{"$f":"MID(Calc!$A$2,1,4)","v":"AKM1"},false,""]
["AKM2-DN","DN","-","DIN 748","STANDARD",40,11,"j6",65,580,30,9,10,"k6",20,"-","-","-","-",null,"D M3 DIN 332",null,null,null,null,null,"AKM4-EK","AKM4",{"$f":"MID(Calc!$A$2,1,4)","v":"AKM1"},false,""]
["",null,null,null,null,null,-5,null,null,null,0,null,1,null,null,null,null,"-",null,null,null,null,null,null,null,null,"AKM4-GC","AKM4",{"$f":"MID(Calc!$A$2,1,4)","v":"AKM1"},false,""]
["AKM2-DC","DC","-","DIN 748","STANDARD",40,11,"j6",65,580,30,9,10,"k6",20,"CLOSED DIN 6885",3,0,12,null,"D M3 DIN 332",null,null,null,null,null,"AKM4-GN","AKM4",{"$f":"MID(Calc!$A$2,1,4)","v":"AKM1"},false,""]
["",null,null,null,null,null,-5,null,null,null,0,null,1,null,null,null,null,-25,null,null,null,null,null,null,null,null,"AKM4-HC","AKM4",{"$f":"MID(Calc!$A$2,1,4)","v":"AKM1"},false,""]
["AKM2-EF","EF","NEMA ICS 16\nINCH (23)","NEMA ICS 16 DIA\n(038) LENGTH (025)","STANDARD",38.1,0,"-",66.680000000000007,510,30,9.5250000000000004,0,"-",20.57,"-","-","-","-",null,"-",null,null,null,null,null,"AKM4-HN","AKM4",{"$f":"MID(Calc!$A$2,1,4)","v":"AKM1"},false,""]
["",null,null,null,null,null,-5,null,null,null,0,null,-13,null,null,null,null,"-",null,null,null,null,null,null,null,null,"AKM4-KK","AKM4",{"$f":"MID(Calc!$A$2,1,4)","v":"AKM1"},false,""]
["AKM2-EN","EN","NEMA ICS 16\nINCH (23)","NEMA ICS 16 DIA\n(038) LENGTH (025)","STANDARD",38.1,0,"-",66.680000000000007,510,30,9.5250000000000004,0,"-",20.57,"-","-","-","-",null,"-",null,null,null,null,null,"AKM5-AC","AKM5",{"$f":"MID(Calc!$A$2,1,4)","v":"AKM1"},false,""]
["",null,null,null,null,null,-5,null,null,null,0,null,-13,null,null,null,null,"-",null,null,null,null,null,null,null,null,"AKM5-AN","AKM5",{"$f":"MID(Calc!$A$2,1,4)","v":"AKM1"},false,""]
[null,"AKM3xx Models:",null,null,null,null,null,null,null,null,null,null,null,null,null,null,null,null,null,null,null,null,null,null,null,null,"AKM5-BK","AKM5",{"$f":"MID(Calc!$A$2,1,4)","v":"AKM1"},false,""]
[null,"CODE","MOUNT STANDARD","SHAFT STANDARD","BEARING TYPE","PILOT DIAMETER\n(mm)",null,null,"BOLT CIRCLE DIAMETER\n(mm)","HOLE DIAMETER\n(mm)",null,"SHAFT DIAMETER\n(mm)",null,null,"SHAFT LENGTH\n(mm)","KEYWAY TYPE","KEY WIDTH\n(mm)",null,"KEY LENGTH\n(mm)",null,"SHAFT CENTER",null,null,null,null,null,"AKM5-CC","AKM5",{"$f":"MID(Calc!$A$2,1,4)","v":"AKM1"},false,""]
["AKM3-AN","AN","IEC60072","DIN 748","STANDARD",60,12,"j6",75,580,30,14,12,"k6",30,"-","-","-","-",null,"D M5 DIN 332",null,null,null,null,null,"AKM5-CN","AKM5",{"$f":"MID(Calc!$A$2,1,4)","v":"AKM1"},false,""]
["",null,null,null,null,null,-7,null,null,null,0,null,1,null,null,null,null,"-",null,null,null,null,null,null,null,null,"AKM5-DK","AKM5",{"$f":"MID(Calc!$A$2,1,4)","v":"AKM1"},false,""]
["AKM3-AC","AC","IEC60072","DIN 748","STANDARD",60,12,"j6",75,580,30,14,12,"k6",30,"CLOSED DIN 6885",5,0,20,null,"D M5 DIN 332",null,null,null,null,null,"AKM5-GC","AKM5",{"$f":"MID(Calc!$A$2,1,4)","v":"AKM1"},false,""]
["",null,null,null,null,null,-7,null,null,null,0,null,1,null,null,null,null,-3,null,null,null,null,null,null,null,null,"AKM5-GN","AKM5",{"$f":"MID(Calc!$A$2,1,4)","v":"AKM1"},false,""]
["AKM3-CN","CN","-","DIN 748","STANDARD",60,12,"j6",85,580,30,14,12,"k6",30,"-","-","-","-",null,"D M5 DIN 332",null,null,null,null,null,"AKM5-HC","AKM5",{"$f":"MID(Calc!$A$2,1,4)","v":"AKM1"},false,""]
["",null,null,null,null,null,-7,null,null,null,0,null,1,null,null,null,null,"-",null,null,null,null,null,null,null,null,"AKM5-HN","AKM5",{"$f":"MID(Calc!$A$2,1,4)","v":"AKM1"},false,""]
["AKM3-CC","CC","-","DIN 748","STANDARD",60,12,"j6",85,580,30,14,12,"k6",30,"CLOSED DIN 6885",5,0,20,null,"D M5 DIN 332",null,null,null,null,null,"AKM6-AC","AKM6",{"$f":"MID(Calc!$A$2,1,4)","v":"AKM1"},false,""]
["",null,null,null,null,null,-7,null,null,null,0,null,1,null,null,null,null,-3,null,null,null,null,null,null,null,null,"AKM6-AN","AKM6",{"$f":"MID(Calc!$A$2,1,4)","v":"AKM1"},false,""]
[null,"Alternate AKM3xx mount predefined for special orders:",null,null,null,null,null,null,null,null,null,null,null,null,null,null,null,null,null,null,null,null,null,null,null,null,"AKM6-GC","AKM6",{"$f":"MID(Calc!$A$2,1,4)","v":"AKM1"},false,""]
["AKM3-GN","GN","-","DIN 748","STANDARD",60,12,"j6",75,580,30,11,12,"k6",23,"-","-","-","-",null,"D M4 DIN 332",null,null,null,null,null,"AKM6-GN","AKM6",{"$f":"MID(Calc!$A$2,1,4)","v":"AKM1"},false,""]
["",null,null,null,null,null,-7,null,null,null,0,null,1,null,null,null,null,"-",null,null,null,null,null,null,null,null,"AKM6-KK","AKM6",{"$f":"MID(Calc!$A$2,1,4)","v":"AKM1"},false,""]
["AKM3-GC","GC","-","DIN 748","STANDARD",60,12,"j6",75,580,30,11,12,"k6",23,"CLOSED DIN 6885",4,0,16,null,"D M4 DIN 332",null,null,null,null,null,"AKM6-LK","AKM6",{"$f":"MID(Calc!$A$2,1,4)","v":"AKM1"},false,""]
["",null,null,null,null,null,-7,null,null,null,0,null,1,null,null,null,null,-3,null,null,null,null,null,null,null,null,"AKM7-AC","AKM7",{"$f":"MID(Calc!$A$2,1,4)","v":"AKM1"},false,""]
[null,"Notes:",null,null,null,null,null,null,null,null,null,null,null,null,null,null,null,null,null,null,null,null,null,null,null,null,"AKM7-AN","AKM7",{"$f":"MID(Calc!$A$2,1,4)","v":"AKM1"},false,""]
[null,"1.  EF shaft includes a .344\" high x .50\" min. full depth flat.                                                                                                                                     Items in bold do not match standard",null,null,null,null,null,null,null,null,null,null,null,null,null,null,null,null,null,null,null,null,null,null,null,null,"AKM7-GC","AKM7",{"$f":"MID(Calc!$A$2,1,4)","v":"AKM1"},false,""]
[null,"2.  GN & GC mounting flanges and shafts are predefined, tooled and available.",null,null,null,null,null,null,null,null,null,null,null,null,null,null,null,null,null,null,null,null,null,null,null,null,"AKM7-GN","AKM7",{"$f":"MID(Calc!$A$2,1,4)","v":"AKM1"},false,""]
[null,"The shaft is special order:",null,null,null,null,null,null,null,null,null,null,null,null,null,null,null,null,null,null,null,null,null,null,null,null,"AKM7-KK","AKM7",{"$f":"MID(Calc!$A$2,1,4)","v":"AKM1"},false,""]
[null,"Add two weeks to the standard motor lead-time.",null,null,null,null,null,null,null,null,null,null,null,null,null,null,null,null,null,null,null,null,null,null,null,null,"AKM8-AC","AKM8",{"$f":"MID(Calc!$A$2,1,4)","v":"AKM1"},false,""]
[null,"Price adders and minimum quantities apply. Contact customer support.",null,null,null,null,null,null,null,null,null,null,null,null,null,null,null,null,null,null,null,null,null,null,null,null,"AKM8-AN","AKM8",{"$f":"MID(Calc!$A$2,1,4)","v":"AKM1"},false,""]
[null,"                                             AKM Series Brushless Servomotors                                              ",null,null,null,null,null,null,null,null,null,null,null,null,null,null,null,null,null,null,null,null,null,null,null,null,"AKM8-CC","AKM8",{"$f":"MID(Calc!$A$2,1,4)","v":"AKM1"},false,""]
[null,"Mount/Shaft Model Number Codes",null,null,null,null,null,null,null,null,null,null,null,null,null,null,null,null,null,null,null,null,null,null,null,null,"AKM8-CN","AKM8",{"$f":"MID(Calc!$A$2,1,4)","v":"AKM1"},false,""]
[null,"AKM4xx Models:",null,null,null,null,null,null,null,null,null,null,null,null,null,null,null,null,null,null,null,null,null,null,null,null,"AKM8-GC","AKM8",{"$f":"MID(Calc!$A$2,1,4)","v":"AKM1"},false,""]
[null,"CODE","MOUNT STANDARD","SHAFT STANDARD","BEARING TYPE","PILOT DIAMETER\n(mm)",null,null,"BOLT CIRCLE DIAMETER\n(mm)","HOLE DIAMETER\n(mm)",null,"SHAFT DIAMETER\n(mm)",null,null,"SHAFT LENGTH\n(mm)","KEYWAY TYPE","KEY WIDTH\n(mm)",null,"KEY LENGTH\n(mm)",null,"SHAFT CENTER",null,null,null,null,null,"AKM8-GN","AKM8",{"$f":"MID(Calc!$A$2,1,4)","v":"AKM1"},false,""]
["AKM4-AN","AN","IEC60072","DIN 748","STANDARD",80,12,"j6",100,7,30,19,15,"k6",40,"-","-","-","-",null,"D M6 DIN 332",null,null,null,null,null,"AKM8-HC","AKM8",{"$f":"MID(Calc!$A$2,1,4)","v":"AKM1"},false,""]
["",null,null,null,null,null,-7,null,null,null,0,null,2,null,null,null,null,"-",null,null,null,null,null,null,null,null,"AKM8-HN","AKM8",{"$f":"MID(Calc!$A$2,1,4)","v":"AKM1"},false,""]
["AKM4-AC","AC","IEC60072","DIN 748","STANDARD",80,12,"j6",100,7,30,19,15,"k6",40,"CLOSED DIN 6885",6,0,32,null,"D M6 DIN 332",null,null,null,null,null,"AKM8-MC","AKM8",{"$f":"MID(Calc!$A$2,1,4)","v":"AKM1"},false,""]
["",null,null,null,null,null,-7,null,null,null,0,null,2,null,null,null,null,-3,null,null,null,null,null,null,null,null,"AKM8-MN","AKM8",{"$f":"MID(Calc!$A$2,1,4)","v":"AKM1"},false,""]
["AKM4-BK","BK","NEMA ICS 16\nINCH (34)","NEMA ICS 16\nINCH (063)","STANDARD",73.02,0,"-",98.43,554,30,15.875,0,"-",52.4,"OPEN",48,0,3493,null,"-",null,null,null,null,null,"AKM8-TC","AKM8",{"$f":"MID(Calc!$A$2,1,4)","v":"AKM1"},false,""]
["",null,null,null,null,null,-5,null,null,null,0,null,-13,null,null,null,null,-50,null,null,null,null,null,null,null,null,"AKM8-TN","AKM8",{"$f":"MID(Calc!$A$2,1,4)","v":"AKM1"},false,""]
["AKM4-CN","CN","-","DIN 748","STANDARD",60,12,"j6",90,554,30,19,15,"k6",40,"-","-","-","-",null,"D M6 DIN 332",null,null,null,null,null,null,null,null,true,""]
["",null,null,null,null,null,-7,null,null,null,0,null,2,null,null,null,null,"-"]
["AKM4-CC","CC","-","DIN 748","STANDARD",60,12,"j6",90,554,30,19,15,"k6",40,"CLOSED DIN 6885",6,0,32,null,"D M6 DIN 332"]
["",null,null,null,null,null,-7,null,null,null,0,null,2,null,null,null,null,-3]
["AKM4-EK","EK","NEMA ICS 16\nINCH (34)","NEMA ICS 16 DIA\n(050) LENGTH (038)","STANDARD",73.03,0,"-",98.43,554,25,12.7,0,"-",31.75,"OPEN",32,0,"19.05\nHK2212S",null,"-"]
["",null,null,null,null,null,-5,null,null,null,-25,null,-13,null,null,null,null,-50]
[null,"Alternate AKM4xx mount predefined for special orders:"]
["AKM4-GN","GN","-","-","STANDARD",80,12,"j6",100,7,30,14,12,"k6",30,"-","-","-","-",null,"D M5 DIN 332"]
["",null,null,null,null,null,-7,null,null,null,0,null,1,null,null,null,null,"-"]
["AKM4-GC","GC","-","-","STANDARD",80,12,"j6",100,7,30,14,12,"k6",30,"CLOSED DIN 6885",5,0,20,null,"D M5 DIN 332"]
["",null,null,null,null,null,-7,null,null,null,0,null,1,null,null,null,null,-3]
["AKM4-HN","HN","-","-","STANDARD",60,12,"j6",90,554,30,14,12,"k6",30,"-","-","-","-",null,"D M5 DIN 332"]
["",null,null,null,null,null,-7,null,null,null,0,null,1,null,null,null,null,"-"]
["AKM4-HC","HC","-","-","STANDARD",60,12,"j6",90,554,30,14,12,"k6",30,"CLOSED DIN 6885",5,0,20,null,"D M5 DIN 332"]
["",null,null,null,null,null,-7,null,null,null,0,null,1,null,null,null,null,-3]
["AKM4-KK","KK","-","-","STANDARD",70,0,"h7",90,7,30,16,0,"h6",40,"OPEN",5,0,30,null,"-"]
["",null,null,null,null,null,-3,null,null,null,0,null,11,null,null,null,null,-3]
[null,"AKM5xx Models:"]
[null,"CODE","MOUNT STANDARD","SHAFT STANDARD","BEARING TYPE","PILOT DIAMETER\n(mm)",null,null,"BOLT CIRCLE DIAMETER\n(mm)","HOLE DIAMETER\n(mm)",null,"SHAFT DIAMETER\n(mm)",null,null,"SHAFT LENGTH\n(mm)","KEYWAY TYPE","KEY WIDTH\n(mm)",null,"KEY LENGTH\n(mm)",null,"SHAFT CENTER"]
["AKM5-AN","AN","IEC60072","DIN 748","STANDARD",110,13,"j6",130,9,36,24,15,"k6",50,"-","-","-","-",null,"D M8 DIN 332"]
["",null,null,null,null,null,-9,null,null,null,0,null,2,null,null,null,null,"-"]
["AKM5-AC","AC","IEC60072","DIN 748","STANDARD",110,13,"j6",130,9,36,24,15,"k6",50,"CLOSED DIN 6885",8,0,40,null,"D M8 DIN 332"]
["",null,null,null,null,null,-9,null,null,null,0,null,2,null,null,null,null,-36]
["AKM5-BK","BK","NEMA ICS 16\nINCH (42)","NEMA ICS 16\nINCH (075)","STANDARD",55.56,0,"-",125.73,833,36,19.05,0,"h6",57.15,"OPEN",48,0,381,null,"-"]
["",null,null,null,null,null,-51,null,null,null,0,null,-13,null,null,null,null,-50]
["AKM5-CN","CN","IEC60072","DIN 748","STANDARD",95,13,"j6",115,9,36,24,15,"k6",50,"-","-","-","-",null,"D M8 DIN 332"]
["",null,null,null,null,null,-9,null,null,null,0,null,2,null,null,null,null,"-"]
["AKM5-CC","CC","IEC60072","DIN 748","STANDARD",95,13,"j6",115,9,36,24,15,"k6",50,"CLOSED DIN 6885",8,0,40,null,"D M8 DIN 332"]
["",null,null,null,null,null,-9,null,null,null,0,null,2,null,null,null,null,-36]
["AKM5-DK","DK","-","NEMA ICS 16\nINCH (075)","STANDARD",63.5,0,"-",127,833,36,19.05,0,"h6",57.15,"OPEN",48,0,381,null,"-"]
["",null,null,null,null,null,-50,null,null,null,0,null,-13,null,null,null,null,-50]
[null,"Alternate AKM5xx mount predefined for special orders:"]
["AKM5-GN","GN","-","-","STANDARD",110,13,"j6",130,9,36,19,15,"k6",40,"-","-","-","-",null,"D M6 DIN 332"]
["",null,null,null,null,null,-9,null,null,null,0,null,2,null,null,null,null,"-"]
["AKM5-GC","GC","-","-","STANDARD",110,13,"j6",130,9,36,19,15,"k6",40,"CLOSED DIN 6885",6,0,32,null,"D M6 DIN 332"]
["",null,null,null,null,null,-9,null,null,null,0,null,2,null,null,null,null,-3]
["AKM5-HN","HN","-","-","STANDARD",95,13,"j6",115,9,36,19,15,"k6",40,"-","-","-","-",null,"D M6 DIN 332"]
["",null,null,null,null,null,-9,null,null,null,0,null,2,null,null,null,null,"-"]
["AKM5-HC","HC","-","-","STANDARD",95,13,"j6",115,9,36,19,15,"k6",40,"CLOSED DIN 6885",6,0,32,null,"D M6 DIN 332"]
["",null,null,null,null,null,-9,null,null,null,0,null,2,null,null,null,null,-3]
[null,"Notes:"]
[null,"1.  EK mount is available on the AKM41 & 42 only.                                                                                                                                                  Items in bold do not match standard"]
[null,"EK mounts on AKM43 & 44 require customer waiver of shaft liability. EK mounts are limited to a 240N max. radial force."]
[null,"2.  GN, GC, HN, HC & KK mounting flanges and shafts are predefined, tooled and available."]
[null,"The shaft is special order:"]
[null,"Add two weeks to the standard motor lead-time."]
[null,"Price adders and minimum quantities apply. Contact customer support."]
[null,"                                             AKM Series Brushless Servomotors                                              "]
[null,"Mount/Shaft Model Number Codes"]
[null,"AKM6xx Models:"]
[null,"CODE","MOUNT STANDARD","SHAFT STANDARD","BEARING TYPE","PILOT DIAMETER\n(mm)",null,null,"BOLT CIRCLE DIAMETER\n(mm)","HOLE DIAMETER\n(mm)",null,"SHAFT DIAMETER\n(mm)",null,null,"SHAFT LENGTH\n(mm)","KEYWAY TYPE","KEY WIDTH\n(mm)",null,"KEY LENGTH\n(mm)",null,"SHAFT CENTER"]
["AKM6-AN","AN","IEC60072","DIN 748","STANDARD",130,14,"j6",165,11,36,32,18,"k6",58,"-","-","-","-",null,"D M12 DIN 332"]
["",null,null,null,null,null,-11,null,null,null,0,null,2,null,null,null,null,"-"]
["AKM6-AC","AC","IEC60072","DIN 748","STANDARD",130,14,"j6",165,11,36,32,18,"k6",58,"CLOSED DIN 6885",10,0,45,null,"D M12 DIN 332"]
["",null,null,null,null,null,-11,null,null,null,0,null,2,null,null,null,null,-36]
[null,"Alternate AKM6xx mounts predefined for special orders:"]
["AKM6-GN","GN","-","-","STANDARD",130,14,"j6",165,11,36,24,15,"k6",50,"-","-","-","-",null,"D M8 DIN 332"]
["",null,null,null,null,null,-11,null,null,null,0,null,2,null,null,null,null,"-"]
["AKM6-GC","GC","-","-","STANDARD",130,14,"j6",165,11,36,24,15,"k6",50,"CLOSED DIN 6885",8,0,40,null,"D M8 DIN 332"]
["",null,null,null,null,null,-11,null,null,null,0,null,2,null,null,null,null,-36]
["AKM6-KK","KK","NEMA ICS 16\nMETRIC (145)","NEMA ICS 16\nMETRIC (28)","STANDARD",110,0,"h7",145,9,36,28,0,"h6",60,"OPEN",8,0,50,null,"-"]
["",null,null,null,null,null,-35,null,null,null,0,null,-13,null,null,null,null,-36]
["AKM6-LK","LK","NEMA ICS 16\nINCH (56)","NEMA ICS 16\nINCH (113)","STANDARD",114.3,0,"-",149.22499999999999,"[3/8-16 TAP]",null,28.58,0,"h6",69.849999999999994,"OPEN",64,25,381,null,"-"]
["",null,null,null,null,null,-76,null,null,null,null,null,-13,null,null,null,null,0]
[null,"AKM7xx Models:"]
[null,"CODE","MOUNT STANDARD","SHAFT STANDARD","BEARING TYPE","PILOT DIAMETER\n(mm)",null,null,"BOLT CIRCLE DIAMETER\n(mm)","HOLE DIAMETER\n(mm)",null,"SHAFT DIAMETER\n(mm)",null,null,"SHAFT LENGTH\n(mm)","KEYWAY TYPE","KEY WIDTH\n(mm)",null,"KEY LENGTH\n(mm)",null,"SHAFT CENTER"]
["AKM7-AN","AN","IEC60072","DIN 748","STANDARD",180,14,"j6",215,135,43,38,18,"k6",80,"-","-","-","-",null,"D M12 DIN 332"]
["",null,null,null,null,null,-11,null,null,null,0,null,2,null,null,null,null,"-"]
["AKM7-AC","AC","IEC60072","DIN 748","STANDARD",180,14,"j6",215,135,43,38,18,"k6",80,"CLOSED DIN 6885",10,0,70,null,"D M12 DIN 332"]
["",null,null,null,null,null,-11,null,null,null,0,null,2,null,null,null,null,-36]
[null,"Alternate AKM7xx mounts predefined for special orders:"]
["AKM7-GN","GN","-","-","STANDARD",180,14,"j6",215,135,43,32,18,"k6",58.5,"-","-","-","-",null,"D M12 DIN 332"]
["",null,null,null,null,null,-11,null,null,null,0,null,2,null,null,null,null,"-"]
["AKM7-GC","GC","-","-","STANDARD",180,14,"j6",215,135,43,32,18,"k6",58.5,"CLOSED DIN 6885",10,0,50,null,"D M12 DIN 332"]
["",null,null,null,null,null,-11,null,null,null,0,null,2,null,null,null,null,-36]
["AKM7-KK","KK","NEMA ICS 16\nMETRIC (200)","NEMA ICS 16\nMETRIC (35)","STANDARD",114.3,0,"-",200,135,43,35,0,"h6",79,"OPEN",10,0,70,null,"-"]
["",null,null,null,null,null,-25,null,null,null,0,null,-16,null,null,null,null,-36]
[null,"Notes:"]
[null,"1.  GN, GC, KK & LK mounting flanges are predefined, tooled and available.                                                                                                         Items in bold do not match standard The shaft is special order:"]
[null,"Add two weeks to the standard motor lead-time."]
[null,"Price adders and minimum quantities apply. Contact customer support."]
[null,"2.  The LK flange matches the common \"NEMA56\" flange size."]
[null,"The LK shaft, however, has a much larger diameter to accommodate the high motor torque. Contact customer support and review torque ratings if smaller shaft diameters are required."]
[null,"                                             AKM Series Brushless Servomotors                                              "]
[null,"Mount/Shaft Model Number Codes"]
[null,"AKM8xx Models:"]
[null,"CODE","MOUNT STANDARD","SHAFT STANDARD","BEARING TYPE","PILOT DIAMETER\n(mm)",null,null,"BOLT CIRCLE DIAMETER\n(mm)","HOLE DIAMETER\n(mm)",null,"SHAFT DIAMETER\n(mm)",null,null,"SHAFT LENGTH\n(mm)","KEYWAY TYPE","KEY WIDTH\n(mm)",null,"KEY LENGTH\n(mm)",null,"SHAFT CENTER"]
["AKM8-AN","AN","IEC60072","DIN 748","STANDARD",250,16,"j6",300,185,520,48,18,"k6",110,"-","-","-","-",null,"D M16 DIN 332"]
["",null,null,null,null,null,-13,null,null,null,0,null,2,null,null,null,null,"-"]
["AKM8-AC","AC","IEC60072","DIN 748","STANDARD",250,16,"j6",300,185,520,48,18,"k6",110,"CLOSED",14,0,90,null,"D M16 DIN 332"]
["",null,null,null,null,null,-13,null,null,null,0,null,2,null,null,null,null,-43]
["AKM8-CN","CN","IEC60072","DIN 748","STANDARD",230,16,"j6",265,145,430,48,18,"k6",110,"-","-","-","-",null,"D M16 DIN 332"]
["",null,null,null,null,null,-13,null,null,null,0,null,2,null,null,null,null,"-"]
["AKM8-CC","CC","IEC60072","DIN 748","STANDARD",230,16,"j6",265,145,430,48,18,"k6",110,"CLOSED",14,0,90,null,"D M16 DIN 332"]
["",null,null,null,null,null,-13,null,null,null,0,null,2,null,null,null,null,-43]
["AKM8-HN","HN","IEC60072","DIN 748","STANDARD",230,16,"j6",265,145,430,42,18,"k6",82,"-","-","-","-",null,"D M16 DIN 332"]
["",null,null,null,null,null,-13,null,null,null,0,null,2,null,null,null,null,"-"]
["AKM8-HC","HC","IEC60072","DIN 748","STANDARD",230,16,"j6",265,145,430,42,18,"k6",82,"CLOSED",12,0,63,null,"D M16 DIN 332"]
["",null,null,null,null,null,-13,null,null,null,0,null,2,null,null,null,null,-43]
["AKM8-GN","GN","IEC60072","DIN 748","STANDARD",250,16,"j6",300,185,520,48,18,"k6",82,"-","-","-","-",null,"D M16 DIN 332"]
["",null,null,null,null,null,-13,null,null,null,0,null,2,null,null,null,null,"-"]
["AKM8-GC","GC","IEC60072","DIN 748","STANDARD",250,16,"j6",300,185,520,48,18,"k6",82,"CLOSED",14,0,63,null,"D M16 DIN 332"]
["",null,null,null,null,null,-13,null,null,null,0,null,2,null,null,null,null,-43]
["AKM8-MN","MN","IEC60072","DIN 748","REINFORCED",250,16,"j6",300,185,520,48,18,"k6",110,"-","-","-","-",null,"D M16 DIN 332"]
["",null,null,null,null,null,-13,null,null,null,0,null,2,null,null,null,null,"-"]
["AKM8-MC","MC","IEC60072","DIN 748","REINFORCED",250,16,"j6",300,185,520,48,18,"k6",110,"CLOSED",14,0,90,null,"D M16 DIN 332"]
["",null,null,null,null,null,-13,null,null,null,0,null,2,null,null,null,null,-43]
["AKM8-TN","TN","IEC60072","DIN 748","REINFORCED",230,16,"j6",265,145,430,48,18,"k6",110,"-","-","-","-",null,"D M16 DIN 332"]
["",null,null,null,null,null,-13,null,null,null,0,null,2,null,null,null,null,"-"]
["AKM8-TC","TC","IEC60072","DIN 748","REINFORCED",230,16,"j6",265,145,430,48,18,"k6",110,"CLOSED",14,0,90,null,"D M16 DIN 332"]
["",null,null,null,null,null,-13,null,null,null,0,null,2,null,null,null,null,-43]

{"sheet":"Kompatibilitätsbericht","index":5,"n_rows":16,"n_cols":6,"rows_kept":16,"cut":false,"hidden":true,"merged":[]}
[null,"Kompatibilitätsbericht für überarbeitete Kopie von MotorCurves_V1.64.xls"]
[null,"Ausführen auf 06.10.2017 16:26"]
[]
[null,"Wenn die Arbeitsmappe in einem früheren Dateiformat gespeichert oder in einer früheren Version von Microsoft Excel geöffnet wird, sind die aufgeführten Features nicht verfügbar."]
[]
[null,"Erheblicher Funktionalitätsverlust",null,null,"Anzahl","Version"]
[]
[null,"Von früheren Excel-Versionen werden nur Linienfarben aus der Farbpalette unterstützt. Wenn die Arbeitsmappe in einer früheren Excel-Version geöffnet wird, werden alle Linienfarben der ähnlichsten Farbe in der Farbpalette zugeordnet. In einem Diagramm werden mehrere Datenreihen dann möglicherweise in derselben Farbe angezeigt.",null,null,3]
[null,null,null,null,"Diagram'!A1:AD37","Excel 97-2003"]
[]
[]
[null,"Geringer Genauigkeitsverlust"]
[]
[null,"Einige Formeln in der Arbeitsmappe enthalten Verknüpfungen mit anderen Arbeitsmappen, die geschlossen sind. Wenn diese Formeln in früheren Versionen von Excel neu berechnet werden, ohne dass die verknüpften Arbeitsmappen geöffnet sind, können wegen Beschränkung auf 255 Zeichen maximal 255 Zeichen zurückgegeben werden.",null,null,"33\nFestgelegte Namen","Excel 97-2003"]
[]
[null,"Einige Zellen oder Formatvorlagen in dieser Arbeitsmappe enthalten eine Formatierung, die vom ausgewählten Dateiformat nicht unterstützt wird. Diese Formate werden in das ähnlichste verfügbare Format konvertiert.",null,null,35,"Excel 97-2003"]